Report Type,Report Period,Body Name,Service Label,Service Code,Service Divison Label,Service Divison Code,Supplier Name,Expenditure Category,Expenditure Code,Date,Transaction Number,Net Amount,Merchant Category,Merchant Category Code
Expenditure - Over 500,2016 04,Worcestershire County Council,Children's Services,CH-PROFIT,Early Years - 2 year old funding,E23050,ABACUS NURSERY SCHOOL,Third Party Pymts 4Yr Old Nursery Education Grant,53657,07/07/2016,7200026125,994.5,,
Expenditure - Over 500,2016 04,Worcestershire County Council,Non Directorate Specific,LA01,Corporate Services - ICT Replacement,CA87501,INSIGHT DIRECT (UK) LTD,CAPEX IT Equipment,65202,04/07/2016,4101569919,440.58,,
Expenditure - Over 500,2016 04,Worcestershire County Council,Adult Services & Health,AC-PROFIT,North Supported Living Scheme,S31367,ADVANCE HOUSING AND SUPPORT LTD,Third Party Payments Purchase of Long Term Care,53667,11/07/2016,7310408797,1035.4,,
Expenditure - Over 500,2016 04,Worcestershire County Council,Adult Services & Health,AC-PROFIT,North Supported Living Scheme,S31367,ADVANCE HOUSING AND SUPPORT LTD,Third Party Payments Purchase of Long Term Care,53667,11/07/2016,7310408799,1035.4,,
Expenditure - Over 500,2016 04,Worcestershire County Council,Adult Services & Health,AC-PROFIT,North Supported Living Scheme,S31367,ADVANCE HOUSING AND SUPPORT LTD,Third Party Payments Purchase of Long Term Care,53667,11/07/2016,7310408817,5491,,
Expenditure - Over 500,2016 04,Worcestershire County Council,Adult Services & Health,AC-PROFIT,LT Residential - PD,S35441,ADVANCE HOUSING AND SUPPORT LTD,Third Party Payments Purchase of Long Term Care,53667,11/07/2016,7310408821,1035.4,,
Expenditure - Over 500,2016 04,Worcestershire County Council,Adult Services & Health,AC-PROFIT,North Supported Living Scheme,S31367,ADVANCE HOUSING AND SUPPORT LTD,Third Party Payments Purchase of Long Term Care,53667,11/07/2016,7310408823,1035.4,,
Expenditure - Over 500,2016 04,Worcestershire County Council,Adult Services & Health,AC-PROFIT,North Supported Living Scheme,S31367,ADVANCE HOUSING AND SUPPORT LTD,Third Party Payments Purchase of Long Term Care,53667,11/07/2016,7310408861,1774.97,,
Expenditure - Over 500,2016 04,Worcestershire County Council,Adult Services & Health,AC-PROFIT,North Supported Living Scheme,S31367,ADVANCE HOUSING AND SUPPORT LTD,Third Party Payments Purchase of Long Term Care,53667,11/07/2016,7310409153,3022.72,,
Expenditure - Over 500,2016 04,Worcestershire County Council,Adult Services & Health,AC-PROFIT,North Supported Living Scheme,S31367,ADVANCE HOUSING AND SUPPORT LTD,Third Party Payments Purchase of Long Term Care,53667,11/07/2016,7310409157,3022.72,,
Expenditure - Over 500,2016 04,Worcestershire County Council,Adult Services & Health,AC-PROFIT,North Supported Living Scheme,S31367,ADVANCE HOUSING AND SUPPORT LTD,Third Party Payments Purchase of Long Term Care,53667,11/07/2016,7310409165,3022.72,,
Expenditure - Over 500,2016 04,Worcestershire County Council,Children's Services,CH-PROFIT,Adoption,E37705,ADOPTION UK,Subscriptions,51001,21/07/2016,4101577263,1250,,
Expenditure - Over 500,2016 04,Worcestershire County Council,Non Directorate Specific,LA01,Corporate Services - ICT Replacement,CA87501,INSIGHT DIRECT (UK) LTD,CAPEX IT Equipment,65202,26/07/2016,4101577624,963.48,,
Expenditure - Over 500,2016 04,Worcestershire County Council,Adult Services & Health,AC-PROFIT,Houisng Adaptations/Repairs,S42090,AGE UK HRFDS & WORCS,Third Party Payments External Provider,54044,05/07/2016,4101570714,24500,,
Expenditure - Over 500,2016 04,Worcestershire County Council,Adult Services & Health,AC-PROFIT,Support to Access Info and Advice,S42057,AGE UK HRFDS & WORCS,Third Party Payments External Provider,54044,05/07/2016,4101570715,21619.25,,
Expenditure - Over 500,2016 04,Worcestershire County Council,Adult Services & Health,AC-PROFIT,Support to Access Info and Advice,S42057,AGE UK HRFDS & WORCS,Third Party Payments External Provider,54044,05/07/2016,4101570716,28380.75,,
Expenditure - Over 500,2016 04,Worcestershire County Council,Adult Services & Health,AC-PROFIT,LT Residential - OP,S35341,ALBION LODGE RESIDENTIAL HOME,Receipts Sales Long Term Residents,67047,11/07/2016,7310409257,1145.32,,
Expenditure - Over 500,2016 04,Worcestershire County Council,Adult Services & Health,AC-PROFIT,Property Charge Temporary Code,S35398,ALBION LODGE RESIDENTIAL HOME,Receipts Sales Long Term Residents,67047,11/07/2016,7310409277,1532.32,,
Expenditure - Over 500,2016 04,Worcestershire County Council,Adult Services & Health,AC-PROFIT,LT Residential - OP,S35341,ALBION LODGE RESIDENTIAL HOME,Third Party Payments Purchase of Long Term Care,53667,11/07/2016,7310409337,1229.24,,
Expenditure - Over 500,2016 04,Worcestershire County Council,Adult Services & Health,AC-PROFIT,Domiciliary Spot - OP,S33414,A & M BEWDLEY CARE SERVICES LTD,Third Party Payments Dom Care Frm Independent Prov,53669,07/07/2016,7320505744,563.6,,
Expenditure - Over 500,2016 04,Worcestershire County Council,Adult Services & Health,AC-PROFIT,Pershore Short Break Centre - Short Term,S31669,AIDSERVICE LTD,Equipment & Furniture,49001,07/07/2016,4101571495,871,,
Expenditure - Over 500,2016 04,Worcestershire County Council,Adult Services & Health,AC-PROFIT,South Worcester Residential LD,S35551,ALPHAGRANGE LTD,Third Party Payments Purchase of Long Term Care,53667,11/07/2016,7310408429,2320.48,,
Expenditure - Over 500,2016 04,Worcestershire County Council,Adult Services & Health,AC-PROFIT,South Worcester Residential LD,S35551,ALPHAGRANGE LTD,Third Party Payments Purchase of Long Term Care,53667,11/07/2016,7310408431,2320.48,,
Expenditure - Over 500,2016 04,Worcestershire County Council,Adult Services & Health,AC-PROFIT,South Worcester Residential LD,S35551,ALPHAGRANGE LTD,Third Party Payments Purchase of Long Term Care,53667,11/07/2016,7310408433,2320.48,,
Expenditure - Over 500,2016 04,Worcestershire County Council,Adult Services & Health,AC-PROFIT,South Worcester Residential LD,S35551,ARDEN HOUSE,Receipts Sales Long Term Residents,67047,11/07/2016,7310408407,1591.32,,
Expenditure - Over 500,2016 04,Worcestershire County Council,Adult Services & Health,AC-PROFIT,North Worcs Residential LD (Wyre Forest),S35511,ARDEN HOUSE,Third Party Payments Purchase of Long Term Care,53667,11/07/2016,7310408415,1936.76,,
Expenditure - Over 500,2016 04,Worcestershire County Council,Adult Services & Health,AC-PROFIT,LT Residential - PD,S35441,ARDEN HOUSE,Third Party Payments Purchase of Long Term Care,53667,11/07/2016,7310408461,4094.08,,
Expenditure - Over 500,2016 04,Worcestershire County Council,Adult Services & Health,AC-PROFIT,North Worcs Residential LD (Wyre Forest),S35511,ARDEN HOUSE,Receipts Sales Long Term Residents,67047,11/07/2016,7310408537,2137.2,,
Expenditure - Over 500,2016 04,Worcestershire County Council,Adult Services & Health,AC-PROFIT,North Worcs Residential LD (Wyre Forest),S35511,ARDEN HOUSE,Receipts Sales Long Term Residents,67047,11/07/2016,7310408539,2137.2,,
Expenditure - Over 500,2016 04,Worcestershire County Council,Adult Services & Health,AC-PROFIT,North Worcs Residential LD (Wyre Forest),S35511,ARDEN HOUSE,Third Party Payments Purchase of Long Term Care,53667,11/07/2016,7310408575,2501.32,,
Expenditure - Over 500,2016 04,Worcestershire County Council,Adult Services & Health,AC-PROFIT,LT Residential - OP,S35341,ARDEN HOUSE,Receipts Sales Long Term Residents,67047,11/07/2016,7310408697,-521,,
Expenditure - Over 500,2016 04,Worcestershire County Council,Adult Services & Health,AC-PROFIT,South Worcester Residential LD,S35551,ARDEN HOUSE,Third Party Payments Purchase of Long Term Care,53667,11/07/2016,7310408707,3860,,
Expenditure - Procurement Card,2016 04,Worcestershire County Council,Children's Services,CH-PROFIT,S17 Care Leavers Team,E36604,ARGOS LTD,Care Grants,51006,01/07/2016,4600126918,89.37,DISCOUNT STORES,5310
Expenditure - Over 500,2016 04,Worcestershire County Council,Adult Services & Health,AC-PROFIT,Domiciliary Spot - OP,S33414,A & M BEWDLEY CARE SERVICES LTD,Third Party Payments Dom Care Frm Independent Prov,53669,28/07/2016,7320511542,563.6,,
Expenditure - Procurement Card,2016 04,Worcestershire County Council,Children's Services,CH-PROFIT,S17 Care Leavers Team,E36604,ARGOS LTD,Care Grants,51006,08/07/2016,4600127596,107.5,DISCOUNT STORES,5310
Expenditure - Over 500,2016 04,Worcestershire County Council,Non Directorate Specific,LA01,"Oldbury Primary Sch, Asbestos Pre Work",CA38325,ANDY LOOS LTD,CAPEX Construction Costs Main Contractor,64951,18/07/2016,3330000117,1980,,
Expenditure - Procurement Card,2016 04,Worcestershire County Council,Children's Services,CH-PROFIT,126 Barnards Green Road,E31760,ARGOS,Services Personal Needs,50062,08/07/2016,4600127702,4.99,DISCOUNT STORES,5310
Expenditure - Procurement Card,2016 04,Worcestershire County Council,Children's Services,CH-PROFIT,126 Barnards Green Road,E31760,ARGOS,Services Personal Needs,50062,01/07/2016,4600126949,12.49,DISCOUNT STORES,5310
Expenditure - Over 500,2016 04,Worcestershire County Council,Adult Services & Health,AC-PROFIT,Equipment - Pooled Budgets,S31526,ARJOHUNTLEIGH UK,Equipment Adults SDD,49084,11/07/2016,4101572191,1080,,
Expenditure - Over 500,2016 04,Worcestershire County Council,Adult Services & Health,AC-PROFIT,Equipment - Pooled Budgets,S31526,ARJOHUNTLEIGH UK,Equipment Adults SDD,49084,11/07/2016,4101572192,680.7,,
Expenditure - Over 500,2016 04,Worcestershire County Council,Children's Services,CH-PROFIT,Short Breaks on framework,E31529,ARMCHAIR MINIBUSES,PTG - Transport Tendered / Cont. Services,46021,12/07/2016,7190132523,1989,,
Expenditure - Over 500,2016 04,Worcestershire County Council,Adult Services & Health,AC-PROFIT,LD Transport (PTG) North,S34844,ARMCHAIR MINIBUSES,PTG - Transport Tendered / Cont. Services,46021,12/07/2016,7190132524,2242,,
Expenditure - Over 500,2016 04,Worcestershire County Council,Children's Services,CH-PROFIT,Short Breaks on framework,E31529,ARMCHAIR MINIBUSES,PTG - Transport Tendered / Cont. Services,46021,12/07/2016,7190132537,3838,,
Expenditure - Over 500,2016 04,Worcestershire County Council,Adult Services & Health,AC-PROFIT,Domiciliary Spot - OP,S33414,A & M BEWDLEY CARE SERVICES LTD,Third Party Payments Dom Care Frm Independent Prov,53669,25/07/2016,7320510906,563.6,,
Expenditure - Over 500,2016 04,Worcestershire County Council,Children's Services,CH-PROFIT,Early Years - 2 year old funding,E23050,ASCENSION NURSERY,Third Party Pymts 4Yr Old Nursery Education Grant,53657,07/07/2016,7200026260,2281.5,,
Expenditure - Over 500,2016 04,Worcestershire County Council,Adult Services & Health,AC-PROFIT,Residential - MH,S35641,ASTON HOUSE,Third Party Payments Purchase of Long Term Care,53667,11/07/2016,7310409405,3060,,
Expenditure - Over 500,2016 04,Worcestershire County Council,Adult Services & Health,AC-PROFIT,Residential - MH,S35641,ASTON HOUSE,Third Party Payments Purchase of Long Term Care,53667,11/07/2016,7310409439,1271.28,,
Expenditure - Over 500,2016 04,Worcestershire County Council,Children's Services,CH-PROFIT,Secondary Home/School Transport,E10707,ASTONS COACHES LTD,PTG - Transport Tendered / Cont. Services,46021,07/07/2016,7190132175,3600,,
Expenditure - Over 500,2016 04,Worcestershire County Council,Children's Services,CH-PROFIT,Secondary Home/School Transport,E10707,ASTONS COACHES LTD,PTG - Transport Tendered / Cont. Services,46021,07/07/2016,7190132184,1891.36,,
Expenditure - Over 500,2016 04,Worcestershire County Council,Children's Services,CH-PROFIT,Secondary Home/School Transport,E10707,ASTONS COACHES LTD,PTG - Transport Tendered / Cont. Services,46021,07/07/2016,7190132185,1891.37,,
Expenditure - Over 500,2016 04,Worcestershire County Council,Children's Services,CH-PROFIT,Secondary Home/School Transport,E10707,ASTONS COACHES LTD,PTG - Transport Tendered / Cont. Services,46021,07/07/2016,7190132208,1644.86,,
Expenditure - Over 500,2016 04,Worcestershire County Council,Children's Services,CH-PROFIT,Secondary Home/School Transport,E10707,ASTONS COACHES LTD,PTG - Transport Tendered / Cont. Services,46021,07/07/2016,7190132209,1644.86,,
Expenditure - Over 500,2016 04,Worcestershire County Council,Children's Services,CH-PROFIT,Secondary Home/School Transport,E10707,ASTONS COACHES LTD,PTG - Transport Tendered / Cont. Services,46021,07/07/2016,7190132210,2038.18,,
Expenditure - Over 500,2016 04,Worcestershire County Council,Children's Services,CH-PROFIT,Secondary Home/School Transport,E10707,ASTONS COACHES LTD,PTG - Transport Tendered / Cont. Services,46021,07/07/2016,7190132211,2038.18,,
Expenditure - Over 500,2016 04,Worcestershire County Council,Children's Services,CH-PROFIT,Primary Home/School Transport,E10037,ASTONS COACHES LTD,PTG - Transport Tendered / Cont. Services,46021,07/07/2016,7190132223,4425.44,,
Expenditure - Over 500,2016 04,Worcestershire County Council,Children's Services,CH-PROFIT,Primary Home/School Transport,E10037,ASTONS COACHES LTD,PTG - Transport Tendered / Cont. Services,46021,07/07/2016,7190132224,1872.3,,
Expenditure - Over 500,2016 04,Worcestershire County Council,Children's Services,CH-PROFIT,Secondary Home/School Transport,E10707,ASTONS COACHES LTD,PTG - Transport Tendered / Cont. Services,46021,07/07/2016,7190132225,2163.79,,
Expenditure - Over 500,2016 04,Worcestershire County Council,Children's Services,CH-PROFIT,Trans't to Non WCC Primary Schools,E10027,ASTONS COACHES LTD,PTG - Transport Tendered / Cont. Services,46021,07/07/2016,7190132226,2163.79,,
Expenditure - Over 500,2016 04,Worcestershire County Council,Children's Services,CH-PROFIT,Secondary Home/School Transport,E10707,ASTONS COACHES LTD,PTG - Transport Tendered / Cont. Services,46021,07/07/2016,7190132244,4454.06,,
Expenditure - Over 500,2016 04,Worcestershire County Council,Children's Services,CH-PROFIT,Secondary Home/School Transport,E10707,ASTONS COACHES LTD,PTG - Transport Tendered / Cont. Services,46021,07/07/2016,7190132245,2941.37,,
Expenditure - Over 500,2016 04,Worcestershire County Council,Children's Services,CH-PROFIT,Secondary Home/School Transport,E10707,ASTONS COACHES LTD,PTG - Transport Tendered / Cont. Services,46021,07/07/2016,7190132246,2941.37,,
Expenditure - Over 500,2016 04,Worcestershire County Council,Children's Services,CH-PROFIT,Secondary Home/School Transport,E10707,ASTONS COACHES LTD,PTG - Transport Tendered / Cont. Services,46021,07/07/2016,7190132247,2773.29,,
Expenditure - Over 500,2016 04,Worcestershire County Council,Children's Services,CH-PROFIT,Primary Home/School Transport,E10037,ASTONS COACHES LTD,PTG - Transport Tendered / Cont. Services,46021,07/07/2016,7190132253,2001.73,,
Expenditure - Over 500,2016 04,Worcestershire County Council,Children's Services,CH-PROFIT,Primary Home/School Transport,E10037,ASTONS COACHES LTD,PTG - Transport Tendered / Cont. Services,46021,07/07/2016,7190132254,3297.17,,
Expenditure - Over 500,2016 04,Worcestershire County Council,Children's Services,CH-PROFIT,Secondary Home/School Transport,E10707,ASTONS COACHES LTD,PTG - Transport Tendered / Cont. Services,46021,07/07/2016,7190132257,10229.19,,
Expenditure - Over 500,2016 04,Worcestershire County Council,Adult Services & Health,AC-PROFIT,Domiciliary Spot - OP,S33414,A & M BEWDLEY CARE SERVICES LTD,Third Party Payments Dom Care Frm Independent Prov,53669,21/07/2016,7320509355,563.6,,
Expenditure - Procurement Card,2016 04,Worcestershire County Council,Children's Services,CH-PROFIT,126 Barnards Green Road,E31760,ARGOS LTD,Equipment & Furniture,49001,06/07/2016,4600127364,12.49,DISCOUNT STORES,5310
Expenditure - Procurement Card,2016 04,Worcestershire County Council,Children's Services,CH-PROFIT,126 Barnards Green Road,E31760,ARGOS,Services Out Of School Activities,50060,06/07/2016,4600127356,55,DISCOUNT STORES,5310
Expenditure - Procurement Card,2016 04,Worcestershire County Council,Adult Services & Health,AC-PROFIT,South Worcs Mental Health Crisis,S31547,ARGOS RETAIL GROUP,Communications Telephone,50311,07/07/2016,4600127689,10.79,DISCOUNT STORES,5310
Expenditure - Procurement Card,2016 04,Worcestershire County Council,Children's Services,CH-PROFIT,Supported Living Outreach,E31769,ARGOS LTD,Equipment & Furniture,49001,08/07/2016,4600127580,45.48,DISCOUNT STORES,5310
Expenditure - Procurement Card,2016 04,Worcestershire County Council,Children's Services,CH-PROFIT,S17 Care Leavers Team,E36604,ARGOS LTD,Care Grants,51006,15/07/2016,4600128370,51.65,DISCOUNT STORES,5310
Expenditure - Procurement Card,2016 04,Worcestershire County Council,Children's Services,CH-PROFIT,S17 Care Leavers Team,E36604,ARGOS,Care Grants,51006,15/07/2016,4600128394,63.9,DISCOUNT STORES,5310
Expenditure - Procurement Card,2016 04,Worcestershire County Council,Children's Services,CH-PROFIT,S17 Care Leavers Team,E36604,ARGOS,Care Grants,51006,15/07/2016,4600128395,79.15,DISCOUNT STORES,5310
Expenditure - Procurement Card,2016 04,Worcestershire County Council,Children's Services,CH-PROFIT,S17 Care Leavers Team,E36604,ARGOS LTD,Care Grants,51006,16/07/2016,4600128677,5.83,DISCOUNT STORES,5310
Expenditure - Procurement Card,2016 04,Worcestershire County Council,Children's Services,CH-PROFIT,S17 Care Leavers Team,E36604,ARGOS LTD,Care Grants,51006,16/07/2016,4600128678,141.66,DISCOUNT STORES,5310
Expenditure - Procurement Card,2016 04,Worcestershire County Council,Children's Services,CH-PROFIT,S17 Care Leavers Team,E36604,ARGOS LTD,Care Grants,51006,16/07/2016,4600128679,4.16,DISCOUNT STORES,5310
Expenditure - Procurement Card,2016 04,Worcestershire County Council,Children's Services,CH-PROFIT,S17 Care Leavers Team,E36604,ARGOS RETAIL GROUP,Care Grants,51006,18/07/2016,4600129013,110.83,DISCOUNT STORES,5310
Expenditure - Procurement Card,2016 04,Worcestershire County Council,Children's Services,CH-PROFIT,126 Barnards Green Road,E31760,ARGOS LTD,Equipment & Furniture,49001,20/07/2016,4600129369,33.33,DISCOUNT STORES,5310
Expenditure - Procurement Card,2016 04,Worcestershire County Council,Children's Services,CH-PROFIT,S17 Care Leavers Team,E36604,ARGOS RETAIL GROUP,Care Grants,51006,11/07/2016,4600127891,105.78,DISCOUNT STORES,5310
Expenditure - Procurement Card,2016 04,Worcestershire County Council,Adult Services & Health,AC-PROFIT,Howbury Pickersleigh Rd Malvern,S31764,ARGOS,Equipment & Furniture,49001,12/07/2016,4600127883,12.49,DISCOUNT STORES,5310
Expenditure - Procurement Card,2016 04,Worcestershire County Council,Children's Services,CH-PROFIT,126 Barnards Green Road,E31760,ARGOS,Equipment & Furniture,49001,26/07/2016,4600130427,8.33,DISCOUNT STORES,5310
Expenditure - Procurement Card,2016 04,Worcestershire County Council,Children's Services,CH-PROFIT,S17 Care Leavers Team,E36604,ARGOS LTD,Care Grants,51006,12/07/2016,4600127922,112.79,DISCOUNT STORES,5310
Expenditure - Procurement Card,2016 04,Worcestershire County Council,Children's Services,CH-PROFIT,S17 Care Leavers Team,E36604,ARGOS LTD,Care Grants,51006,12/07/2016,4600127923,1.67,DISCOUNT STORES,5310
Expenditure - Procurement Card,2016 04,Worcestershire County Council,Children's Services,CH-PROFIT,S17 Care Leavers Team,E36604,ARGOS LTD,Care Grants,51006,26/07/2016,4600130475,138.94,DISCOUNT STORES,5310
Expenditure - Procurement Card,2016 04,Worcestershire County Council,Children's Services,CH-PROFIT,"S17 Warndon, Tolladine, W Villages",E36516,ARGOS LTD,Services Other Fees,50035,27/07/2016,4600130555,62.48,DISCOUNT STORES,5310
Expenditure - Procurement Card,2016 04,Worcestershire County Council,Children's Services,CH-PROFIT,Oak House EBD Unit,E31765,ARGOS LTD,Equipment,48601,28/07/2016,4600130634,75.02,DISCOUNT STORES,5310
Expenditure - Procurement Card,2016 04,Worcestershire County Council,Children's Services,CH-PROFIT,Orchardene Residential Unit,E31764,ARGOS LTD,Equipment,48601,28/07/2016,4600130589,60.96,DISCOUNT STORES,5310
Expenditure - Over 500,2016 04,Worcestershire County Council,Children's Services,CH-PROFIT,Short Breaks on framework,E31529,ARMCHAIR MINIBUSES,PTG - Transport Tendered / Cont. Services,46021,12/07/2016,7190132541,3791,,
Expenditure - Procurement Card,2016 04,Worcestershire County Council,Children's Services,CH-PROFIT,S17 Care Leavers Team,E36604,ARGOS LTD,Care Grants,51006,12/07/2016,4600127924,5.42,DISCOUNT STORES,5310
Expenditure - Procurement Card,2016 04,Worcestershire County Council,Children's Services,CH-PROFIT,S17 Care Leavers Team,E36604,ARGOS LTD,Care Grants,51006,12/07/2016,4600127926,130.82,DISCOUNT STORES,5310
Expenditure - Procurement Card,2016 04,Worcestershire County Council,Children's Services,CH-PROFIT,S17 Care Leavers Team,E36604,ARGOS,Care Grants,51006,14/07/2016,4600128202,75.72,DISCOUNT STORES,5310
Expenditure - Procurement Card,2016 04,Worcestershire County Council,Children's Services,CH-PROFIT,S17 Care Leavers Team,E36604,ARGOS,Care Grants,51006,14/07/2016,4600128219,3.32,DISCOUNT STORES,5310
Expenditure - Procurement Card,2016 04,Worcestershire County Council,Children's Services,CH-PROFIT,S17 Care Leavers Team,E36604,ARGOS LTD,Care Grants,51006,15/07/2016,4600128400,36.02,DISCOUNT STORES,5310
Expenditure - Procurement Card,2016 04,Worcestershire County Council,Children's Services,CH-PROFIT,126 Barnards Green Road,E31760,ARGOS,Equipment & Furniture,49001,21/07/2016,4600129687,13.99,DISCOUNT STORES,5310
Expenditure - Procurement Card,2016 04,Worcestershire County Council,Children's Services,CH-PROFIT,Downsell Road Redditch,E31361,ARGOS LTD,Equipment,48601,21/07/2016,4600129592,19.16,DISCOUNT STORES,5310
Expenditure - Procurement Card,2016 04,Worcestershire County Council,Children's Services,CH-PROFIT,Rivendell Residential Unit,E31767,ARGOS LTD,Equipment,48601,22/07/2016,4600130033,30.75,DISCOUNT STORES,5310
Expenditure - Procurement Card,2016 04,Worcestershire County Council,Children's Services,CH-PROFIT,S17 Care Leavers Team,E36604,ARGOS,Care Grants,51006,22/07/2016,4600129857,61.62,DISCOUNT STORES,5310
Expenditure - Procurement Card,2016 04,Worcestershire County Council,Children's Services,CH-PROFIT,S17 Care Leavers Team,E36604,ARGOS RETAIL GROUP,Care Grants,51006,25/07/2016,4600130342,149.99,DISCOUNT STORES,5310
Expenditure - Procurement Card,2016 04,Worcestershire County Council,Children's Services,CH-PROFIT,S17 Care Leavers Team,E36604,ARGOS RETAIL GROUP,Care Grants,51006,25/07/2016,4600130463,15.36,DISCOUNT STORES,5310
Expenditure - Procurement Card,2016 04,Worcestershire County Council,Adult Services & Health,AC-LDDAYC,Malvern S.E.C,S31770,ARGOS,Stationery,49754,26/07/2016,4600130309,6.67,DISCOUNT STORES,5310
Expenditure - Procurement Card,2016 04,Worcestershire County Council,Children's Services,CH-PROFIT,Supported Living Outreach,E31769,ARGOS LTD,Equipment & Furniture,49001,26/07/2016,4600130446,10.49,DISCOUNT STORES,5310
Expenditure - Procurement Card,2016 04,Worcestershire County Council,Children's Services,CH-PROFIT,S17 Care Leavers Team,E36604,ARGOS,Care Grants,51006,26/07/2016,4600130466,61.64,DISCOUNT STORES,5310
Expenditure - Procurement Card,2016 04,Worcestershire County Council,Children's Services,CH-PROFIT,S17 Care Leavers Team,E36604,ARGOS,Care Grants,51006,26/07/2016,4600130467,283.32,DISCOUNT STORES,5310
Expenditure - Procurement Card,2016 04,Worcestershire County Council,Adult Services & Health,AC-PROFIT,Howbury Pickersleigh Rd Malvern,S31764,ARGOS,Bedding & Linen,49506,26/07/2016,4600130326,64.12,DISCOUNT STORES,5310
Expenditure - Procurement Card,2016 04,Worcestershire County Council,Children's Services,CH-PROFIT,126 Barnards Green Road,E31760,ARGOS,Equipment & Furniture,49001,26/07/2016,4600130426,41.66,DISCOUNT STORES,5310
Expenditure - Procurement Card,2016 04,Worcestershire County Council,Children's Services,CH-PROFIT,S20 LAC Permanancy North West,E35602,ARGOS RETAIL GROUP,Misc Other Expenses,51619,28/07/2016,4600130702,28.29,DISCOUNT STORES,5310
Expenditure - Procurement Card,2016 04,Worcestershire County Council,Children's Services,CH-PROFIT,S17 Care Leavers Team,E36604,ARGOS LTD,Care Grants,51006,29/07/2016,4600130723,13.71,DISCOUNT STORES,5310
Expenditure - Procurement Card,2016 04,Worcestershire County Council,Children's Services,CH-PROFIT,S17 Care Leavers Team,E36604,ARGOS LTD,Care Grants,51006,29/07/2016,4600130727,139.12,DISCOUNT STORES,5310
Expenditure - Procurement Card,2016 04,Worcestershire County Council,Children's Services,CH-PROFIT,Supported Living Outreach,E31769,ARGOS LTD,Equipment & Furniture,49001,29/07/2016,4600130759,24.99,DISCOUNT STORES,5310
Expenditure - Procurement Card,2016 04,Worcestershire County Council,Children's Services,CH-PROFIT,126 Barnards Green Road,E31760,ARGOS,Equipment & Furniture,49001,29/07/2016,4600130705,12.49,DISCOUNT STORES,5310
Expenditure - Procurement Card,2016 04,Worcestershire County Council,Children's Services,CH-PROFIT,Green Hill Lodge,E31761,ARGOS RETAIL GROUP,Equipment Office Equipment Purchase,49066,29/07/2016,4600130831,63.94,DISCOUNT STORES,5310
Expenditure - Procurement Card,2016 04,Worcestershire County Council,Children's Services,CH-PROFIT,Bromsgrove Respite Home,E31278,ARGOS LTD,Services Out Of School Activities,50060,30/07/2016,4600130797,324.3,DISCOUNT STORES,5310
Expenditure - Procurement Card,2016 04,Worcestershire County Council,Children's Services,CH-PROFIT,S17 Care Leavers Team,E36604,ARGOS LTD,Care Grants,51006,30/07/2016,4600130793,329.15,DISCOUNT STORES,5310
Expenditure - Over 500,2016 04,Worcestershire County Council,Children's Services,CH-PROFIT,Secondary Home/School Transport,E10707,ASTONS COACHES LTD,PTG - Transport Tendered / Cont. Services,46021,07/07/2016,7190132258,4567.74,,
Expenditure - Over 500,2016 04,Worcestershire County Council,Children's Services,CH-PROFIT,Secondary Home/School Transport,E10707,ASTONS COACHES LTD,PTG - Transport Tendered / Cont. Services,46021,07/07/2016,7190132259,3216.72,,
Expenditure - Over 500,2016 04,Worcestershire County Council,Children's Services,CH-PROFIT,Secondary Home/School Transport,E10707,ASTONS COACHES LTD,PTG - Transport Tendered / Cont. Services,46021,07/07/2016,7190132260,3474.05,,
Expenditure - Over 500,2016 04,Worcestershire County Council,Children's Services,CH-PROFIT,Secondary Home/School Transport,E10707,ASTONS COACHES LTD,PTG - Transport Tendered / Cont. Services,46021,07/07/2016,7190132261,3216.72,,
Expenditure - Over 500,2016 04,Worcestershire County Council,Children's Services,CH-PROFIT,Secondary Home/School Transport,E10707,ASTONS COACHES LTD,PTG - Transport Tendered / Cont. Services,46021,07/07/2016,7190132262,3731.4,,
Expenditure - Over 500,2016 04,Worcestershire County Council,Children's Services,CH-PROFIT,Secondary Home/School Transport,E10707,ASTONS COACHES LTD,PTG - Transport Tendered / Cont. Services,46021,07/07/2016,7190132263,3731.4,,
Expenditure - Over 500,2016 04,Worcestershire County Council,Children's Services,CH-PROFIT,Primary Home/School Transport,E10037,ASTONS COACHES LTD,PTG - Transport Tendered / Cont. Services,46021,11/07/2016,7190132446,2061.36,,
Expenditure - Over 500,2016 04,Worcestershire County Council,Children's Services,CH-PROFIT,Secondary Home/School Transport,E10707,ASTONS COACHES LTD,PTG - Transport Tendered / Cont. Services,46021,11/07/2016,7190132447,4032.56,,
Expenditure - Over 500,2016 04,Worcestershire County Council,"Business, Environment & Community",EN-DIR,Concessionary Fares Administration,V21015,ASTONS COACHES LTD,Third Party Pymnts Public Transport Operators,54005,12/07/2016,7190132451,1387.94,,
Expenditure - Over 500,2016 04,Worcestershire County Council,Children's Services,CH-PROFIT,FE Home/College Transport,E20227,ASTONS COACHES LTD,PTG - Public Transport Bus,47514,28/07/2016,7190132659,2495,,
Expenditure - Over 500,2016 04,Worcestershire County Council,"Business, Environment & Community",EN-DIR,Concessionary Fares Administration,V21015,ASTONS COACHES LTD,Third Party Pymnts Public Transport Operators,54005,28/07/2016,7190132688,1347.52,,
Expenditure - Over 500,2016 04,Worcestershire County Council,Children's Services,CH-PROFIT,FE Home/College Transport,E20227,ASTONS COACHES LTD,PTG - Public Transport Bus,47514,28/07/2016,7190132660,2491,,
Expenditure - Over 500,2016 04,Worcestershire County Council,Children's Services,CH-PROFIT,Early Years - 2 year old funding,E23050,ASTWOOD BANK PRE- SCHOOL,Third Party Pymts 4Yr Old Nursery Education Grant,53657,07/07/2016,7200026134,633.75,,
Expenditure - Over 500,2016 04,Worcestershire County Council,Children's Services,CH-PROFIT,Early Help Wyre Forest District,E21509,BARNARDO SERVICES LTD,Third Party Payments New Arrangements,53663,05/07/2016,4101570717,106853.67,,
Expenditure - Over 500,2016 04,Worcestershire County Council,Children's Services,CH-PROFIT,Low Level Mental Health,E36015,BARNARDO SERVICES LTD,Third Party Payments New Arrangements,53663,25/07/2016,4101573220,6500,,
Expenditure - Over 500,2016 04,Worcestershire County Council,Children's Services,CH-PROFIT,Foundation Learning,E35010,BARNARDO'S MIDLANDS,Services Client Training Fees,50036,07/07/2016,4101571800,10725,,
Expenditure - Over 500,2016 04,Worcestershire County Council,Children's Services,CH-PROFIT,Section 17 Team 20,E32015,BARNARDO'S MIDLANDS,Third Party Pymts Indepentent Fostering Agency,54059,21/07/2016,7220018561,3972.99,,
Expenditure - Over 500,2016 04,Worcestershire County Council,Children's Services,CH-PROFIT,External Placements Team 14,E38514,BARNARDO'S MIDLANDS,Third Party Pymts Indepentent Fostering Agency,54059,21/07/2016,7220018600,-8024.78,,
Expenditure - Over 500,2016 04,Worcestershire County Council,Children's Services,CH-PROFIT,External Placements Team 14,E38514,BARNARDO'S MIDLANDS,Third Party Pymts Indepentent Fostering Agency,54059,21/07/2016,7220018656,10798.79,,
Expenditure - Over 500,2016 04,Worcestershire County Council,Adult Services & Health,AC-PROFIT,LT Residential - OP,S35341,BEDWARDINE HOUSE RESIDENTIAL CARE H,Receipts Sales Long Term Residents,67047,11/07/2016,7310409149,1095.92,,
Expenditure - Over 500,2016 04,Worcestershire County Council,Adult Services & Health,AC-PROFIT,LT Residential - OP,S35341,BEDWARDINE HOUSE RESIDENTIAL CARE H,Receipts Sales Long Term Residents,67047,11/07/2016,7310409151,1231.64,,
Expenditure - Over 500,2016 04,Worcestershire County Council,Adult Services & Health,AC-PROFIT,LT Residential - OP,S35341,BEDWARDINE HOUSE RESIDENTIAL CARE H,Receipts Sales Long Term Residents,67047,11/07/2016,7310409287,1579.76,,
Expenditure - Over 500,2016 04,Worcestershire County Council,Children's Services,CH-PROFIT,Early Years - 2 year old funding,E23050,BENGEWORTH PRE-SCHOOL,Third Party Pymts 4Yr Old Nursery Education Grant,53657,07/07/2016,7200026147,1350,,
Expenditure - Over 500,2016 04,Worcestershire County Council,Children's Services,CH-PROFIT,The Bewdley School & Sixth Form Centre,E10732,BEWDLEY SCHOOL & SIXTH FORM CENTRE,Payments4Schools School Fund Contributions,83508,26/07/2016,3310036982,2863.24,,
Expenditure - Over 500,2016 04,Worcestershire County Council,Adult Services & Health,AC-PROFIT,Residential - MH,S35641,BIRMINGHAM INSTITUTE FOR THE DEAF,Third Party Payments Purchase of Long Term Care,53667,11/07/2016,7310409491,5022.52,,
Expenditure - Over 500,2016 04,Worcestershire County Council,Adult Services & Health,AC-PROFIT,LT Residential - PD,S35441,BIRMINGHAM FOCUS,Third Party Payments Purchase of Long Term Care,53667,11/07/2016,7310409493,4234.24,,
Expenditure - Over 500,2016 04,Worcestershire County Council,Children's Services,CH-PROFIT,Worcester. Blessed Edward Oldcorne,E10847,BLESSED EDWARD OLDCORNE,Education School Bank Accounts,99903,25/07/2016,3310036881,14370,,
Expenditure - Over 500,2016 04,Worcestershire County Council,Children's Services,CH-PROFIT,Pupil Premium Grant,E20844,BOOKTRUST,Educational Equip,49019,25/07/2016,4101579910,16276.57,,
Expenditure - Over 500,2016 04,Worcestershire County Council,Adult Services & Health,AC-PROFIT,Pharmacy - EHC (Sex Hlth/Contraception),S42034,BOOTS UK,Third Party Payments,53006,25/07/2016,7580001151,837,,
Expenditure - Over 500,2016 04,Worcestershire County Council,Adult Services & Health,AC-PROFIT,LT Residential - OP,S35341,BOURNVILLE VILLAGE TRUST,Third Party Payments Purchase of Long Term Care,53667,11/07/2016,7310409553,986.12,,
Expenditure - Over 500,2016 04,Worcestershire County Council,Children's Services,CH-PROFIT,Early Years - 2 year old funding,E23050,BRETFORTON PRESCHOOL PLAYGROUP,Third Party Pymts 4Yr Old Nursery Education Grant,53657,07/07/2016,7200026153,1812.5,,
Expenditure - Over 500,2016 04,Worcestershire County Council,Children's Services,CH-PROFIT,Section 17 Team 20,E32015,BROMSGROVE BUS & COACH CO LTD,PTG - Transport Tendered / Cont. Services,46021,07/07/2016,7190132076,2057,,
Expenditure - Over 500,2016 04,Worcestershire County Council,Children's Services,CH-PROFIT,Short Breaks on framework,E31529,BROMSGROVE BUS & COACH CO LTD,PTG - Transport Tendered / Cont. Services,46021,07/07/2016,7190132097,2160,,
Expenditure - Over 500,2016 04,Worcestershire County Council,Children's Services,CH-PROFIT,Special Home/School Transport,E10877,BROMSGROVE BUS & COACH CO LTD,PTG - Transport Tendered / Cont. Services,46021,07/07/2016,7190132098,2466,,
Expenditure - Over 500,2016 04,Worcestershire County Council,Children's Services,CH-PROFIT,Special Home/School Transport,E10877,BROMSGROVE BUS & COACH CO LTD,PTG - Transport Tendered / Cont. Services,46021,07/07/2016,7190132099,2376,,
Expenditure - Over 500,2016 04,Worcestershire County Council,Children's Services,CH-PROFIT,Primary Home/School Transport,E10037,BROOKSIDE TAXIS NO2 CLIENTS A/C,PTG - Transport Tendered / Cont. Services,46021,07/07/2016,7190132251,1455,,
Expenditure - Over 500,2016 04,Worcestershire County Council,Children's Services,CH-PROFIT,Special Home/School Transport,E10877,BROOKSIDE TAXIS NO2 CLIENTS A/C,PTG - Transport Tendered / Cont. Services,46021,12/07/2016,7190132477,1332,,
Expenditure - Over 500,2016 04,Worcestershire County Council,Children's Services,CH-PROFIT,Post 16 - SEN H/S Transport,E20803,BROOKSIDE TAXIS NO2 CLIENTS A/C,PTG - Transport Tendered / Cont. Services,46021,12/07/2016,7190132482,1140,,
Expenditure - Over 500,2016 04,Worcestershire County Council,Children's Services,CH-PROFIT,Short Breaks on framework,E31529,BROOKSIDE TAXIS NO2 CLIENTS A/C,PTG - Transport Tendered / Cont. Services,46021,12/07/2016,7190132486,2754.81,,
Expenditure - Over 500,2016 04,Worcestershire County Council,Resources,FS-PROFIT,Insurance - Central Funds (WCC),F40475,BROWNE JACOBSON LLP,Expenses Insurances Claims - Other,51636,28/07/2016,3300651358,544,,
Expenditure - Over 500,2016 04,Worcestershire County Council,Resources,CS-PROFIT,ICT - Webb Services,C40078,BYTES SOFTWARE SERVICES LTD,Computing Software,50319,05/07/2016,4101570290,587.88,,
Expenditure - Over 500,2016 04,Worcestershire County Council,Adult Services & Health,AC-PROFIT,County Museum Caf#,S80512,CALOR GAS LIMITED,Energy Costs Gas,43001,11/07/2016,4101571264,808,,
Expenditure - Over 500,2016 04,Worcestershire County Council,Adult Services & Health,AC-PROFIT,South Worcester Residential LD,S35551,CAMPHILL DEVON COMMUNITY LTD,Receipts Sales Long Term Residents,67047,11/07/2016,7310409431,1366.08,,
Expenditure - Over 500,2016 04,Worcestershire County Council,Adult Services & Health,AC-PROFIT,LT Residential - PD,S35441,CAMPHILL DEVON COMMUNITY LTD,Receipts Sales Long Term Residents,67047,11/07/2016,7310409665,2615.88,,
Expenditure - Over 500,2016 04,Worcestershire County Council,Adult Services & Health,AC-PROFIT,"Crofters Close Res.Home, Long Term",S31668,CANNON HYGIENE,Medical Requisites,49014,04/07/2016,4101556639,537.54,,
Expenditure - Over 500,2016 04,Worcestershire County Council,Adult Services & Health,AC-PROFIT,LT Nursing - OP,S35342,BUPA CARE SERVICES,Third Party Payments Purchase of Long Term Care,53667,11/07/2016,7310407498,1469.2,,
Expenditure - Over 500,2016 04,Worcestershire County Council,Adult Services & Health,AC-PROFIT,South Worcester Nursing LD,S35552,BUPA CARE SERVICES,Third Party Payments Purchase of Long Term Care,53667,11/07/2016,7310407500,2942.4,,
Expenditure - Over 500,2016 04,Worcestershire County Council,Adult Services & Health,AC-PROFIT,LT Nursing - OP,S35342,BUPA CARE SERVICES,Receipts Sales Long Term Residents,67047,11/07/2016,7310407502,1678.56,,
Expenditure - Over 500,2016 04,Worcestershire County Council,Adult Services & Health,AC-PROFIT,LT Nursing - OP,S35342,BUPA CARE SERVICES,Receipts Sales Long Term Residents,67047,11/07/2016,7310407516,1857.2,,
Expenditure - Over 500,2016 04,Worcestershire County Council,Adult Services & Health,AC-PROFIT,LT Nursing - OP,S35342,BUPA CARE SERVICES,Receipts Sales Long Term Residents,67047,11/07/2016,7310407538,1220.12,,
Expenditure - Over 500,2016 04,Worcestershire County Council,Adult Services & Health,AC-PROFIT,Nursing - MH,S35642,BUPA CARE SERVICES,Receipts Sales Long Term Residents,67047,11/07/2016,7310407558,-674.92,,
Expenditure - Over 500,2016 04,Worcestershire County Council,Adult Services & Health,AC-PROFIT,LT Nursing - OP,S35342,BUPA CARE SERVICES,Third Party Payments Purchase of Long Term Care,53667,11/07/2016,7310407564,2240,,
Expenditure - Over 500,2016 04,Worcestershire County Council,Adult Services & Health,AC-PROFIT,Domiciliary Spot - PD,S33412,CARE FORCE,Third Party Payments Dom Care Frm Independent Prov,53669,04/07/2016,7320504080,570.77,,
Expenditure - Over 500,2016 04,Worcestershire County Council,Adult Services & Health,AC-PROFIT,PoP Placements,S35386,BUPA CARE SERVICES,TPP Purchase of Planned Replacement Care,53666,11/07/2016,7310407922,574.5,,
Expenditure - Over 500,2016 04,Worcestershire County Council,Adult Services & Health,AC-PROFIT,ST Nursing - OP,S35344,BUPA CARE SERVICES,TPP Purchase of Planned Replacement Care,53666,11/07/2016,7310407900,1280,,
Expenditure - Over 500,2016 04,Worcestershire County Council,Adult Services & Health,AC-PROFIT,12-Week Disregard,S35308,BUPA CARE SERVICES,Receipts Sales Long Term Residents,67047,11/07/2016,7310407858,1287.25,,
Expenditure - Over 500,2016 04,Worcestershire County Council,Adult Services & Health,AC-PROFIT,Step Down Beds,S35724,BUPA CARE SERVICES,TPP Purchase of Planned Replacement Care,53666,11/07/2016,7310407856,-1848,,
Expenditure - Over 500,2016 04,Worcestershire County Council,Adult Services & Health,AC-PROFIT,LT Nursing - OP,S35342,BUPA CARE SERVICES,Third Party Payments Purchase of Long Term Care,53667,11/07/2016,7310407852,1489.4,,
Expenditure - Over 500,2016 04,Worcestershire County Council,Adult Services & Health,AC-PROFIT,LT Nursing - OP,S35342,BUPA CARE SERVICES,Receipts Sales Long Term Residents,67047,11/07/2016,7310407770,2962.8,,
Expenditure - Over 500,2016 04,Worcestershire County Council,Adult Services & Health,AC-PROFIT,South Worcester Nursing LD,S35552,BUPA CARE SERVICES,Receipts Sales Long Term Residents,67047,11/07/2016,7310407736,2826.72,,
Expenditure - Over 500,2016 04,Worcestershire County Council,Adult Services & Health,AC-PROFIT,LT Nursing - PD,S35442,BUPA CARE SERVICES,Third Party Payments Purchase of Long Term Care,53667,11/07/2016,7310407692,2543.56,,
Expenditure - Over 500,2016 04,Worcestershire County Council,Adult Services & Health,AC-PROFIT,LT Nursing - OP,S35342,BUPA CARE SERVICES,Receipts Sales Long Term Residents,67047,11/07/2016,7310407636,808.44,,
Expenditure - Over 500,2016 04,Worcestershire County Council,Adult Services & Health,AC-PROFIT,Property Charge Temporary Code,S35398,BUPA CARE SERVICES,Receipts Sales Long Term Residents,67047,11/07/2016,7310407608,1507,,
Expenditure - Over 500,2016 04,Worcestershire County Council,Adult Services & Health,AC-PROFIT,LT Nursing - OP,S35342,BUPA CARE SERVICES,Third Party Payments Purchase of Long Term Care,53667,11/07/2016,7310407598,1065.28,,
Expenditure - Over 500,2016 04,Worcestershire County Council,Adult Services & Health,AC-PROFIT,Domiciliary Spot - PD,S33412,CARE FORCE,Third Party Payments Dom Care Frm Independent Prov,53669,18/07/2016,7320508111,562.58,,
Expenditure - Over 500,2016 04,Worcestershire County Council,Adult Services & Health,AC-PROFIT,LT Nursing - OP,S35342,BUPA CARE SERVICES,Receipts Sales Long Term Residents,67047,11/07/2016,7310407596,1908.4,,
Expenditure - Over 500,2016 04,Worcestershire County Council,Adult Services & Health,AC-PROFIT,COP Property Temporary Code,S35397,BUPA CARE SERVICES,Third Party Payments Purchase of Long Term Care,53667,11/07/2016,7310407586,3729.56,,
Expenditure - Over 500,2016 04,Worcestershire County Council,Adult Services & Health,AC-PROFIT,LT Nursing - OP,S35342,BUPA CARE SERVICES,Third Party Payments Purchase of Long Term Care,53667,11/07/2016,7310407574,1497,,
Expenditure - Over 500,2016 04,Worcestershire County Council,Adult Services & Health,AC-PROFIT,Property Charge Temporary Code,S35398,BUPA CARE SERVICES,Third Party Payments Purchase of Long Term Care,53667,11/07/2016,7310407570,890.16,,
Expenditure - Over 500,2016 04,Worcestershire County Council,Adult Services & Health,AC-PROFIT,LT Nursing - OP,S35342,BUPA CARE SERVICES,Third Party Payments Purchase of Long Term Care,53667,11/07/2016,7310407566,1728.76,,
Expenditure - Over 500,2016 04,Worcestershire County Council,Adult Services & Health,AC-PROFIT,"Crofters Close Res.Home, Long Term",S31668,CAPITA BUSINESS SERVICES LTD,Medical Requisites,49014,04/07/2016,4101570162,473.24,,
Expenditure - Over 500,2016 04,Worcestershire County Council,Children's Services,CH-PROFIT,Worcester. Blessed Edward Oldcorne,E10847,BLESSED EDWARD OLDCORNE,Education School Bank Accounts,99903,25/07/2016,3310036882,14727.68,,
Expenditure - Over 500,2016 04,Worcestershire County Council,Adult Services & Health,AC-PROFIT,PoP Placements,S35386,BUPA CARE SERVICES,TPP Purchase of Planned Replacement Care,53666,11/07/2016,7310407944,588,,
Expenditure - Over 500,2016 04,Worcestershire County Council,Adult Services & Health,AC-PROFIT,Interim Care,S35385,BUPA CARE SERVICES,TPP Purchase of Planned Replacement Care,53666,11/07/2016,7310407940,588,,
Expenditure - Over 500,2016 04,Worcestershire County Council,Adult Services & Health,AC-PROFIT,PoP Placements,S35386,BUPA CARE SERVICES,TPP Purchase of Planned Replacement Care,53666,11/07/2016,7310407924,588,,
Expenditure - Over 500,2016 04,Worcestershire County Council,Adult Services & Health,AC-PROFIT,Residential - MH,S35641,CASA MIA,Receipts Sales Long Term Residents,67047,11/07/2016,7310406891,1367.96,,
Expenditure - Over 500,2016 04,Worcestershire County Council,Adult Services & Health,AC-PROFIT,Residential - MH,S35641,CASA MIA,Third Party Payments Purchase of Long Term Care,53667,11/07/2016,7310406893,2348.48,,
Expenditure - Over 500,2016 04,Worcestershire County Council,Adult Services & Health,AC-PROFIT,LT Residential - PD,S35441,CASA MIA,Third Party Payments Purchase of Long Term Care,53667,11/07/2016,7310406897,1331.32,,
Expenditure - Over 500,2016 04,Worcestershire County Council,Adult Services & Health,AC-PROFIT,North Worcs Residential LD (Wyre Forest),S35511,CASA MIA,Receipts Sales Long Term Residents,67047,11/07/2016,7310406899,2737.2,,
Expenditure - Over 500,2016 04,Worcestershire County Council,Adult Services & Health,AC-PROFIT,Residential - MH,S35641,CASA MIA,Third Party Payments Purchase of Long Term Care,53667,11/07/2016,7310406917,2396.8,,
Expenditure - Over 500,2016 04,Worcestershire County Council,Adult Services & Health,AC-PROFIT,North Worcs Residential LD (Wyre Forest),S35511,CASA MIA,Receipts Sales Long Term Residents,67047,11/07/2016,7310406939,2174.52,,
Expenditure - Over 500,2016 04,Worcestershire County Council,Adult Services & Health,AC-PROFIT,Residential - MH,S35641,CASA MIA,Third Party Payments Purchase of Long Term Care,53667,11/07/2016,7310406955,2460,,
Expenditure - Over 500,2016 04,Worcestershire County Council,Adult Services & Health,AC-PROFIT,Residential - MH,S35641,CASA MIA,Third Party Payments Purchase of Long Term Care,53667,11/07/2016,7310406957,3260,,
Expenditure - Over 500,2016 04,Worcestershire County Council,Children's Services,CH-PROFIT,Bromsgrove. Catshill Middle,E10627,CATSHILL MIDDLE SCHOOL FUND ACCOUNT,Payments4Schools School Fund Contributions,83508,11/07/2016,3310036636,1068.5,,
Expenditure - Over 500,2016 04,Worcestershire County Council,Children's Services,CH-PROFIT,Policy Development,E10017,CAPITA BUSINESS SERVICES LTD,Services Other Fees,50035,07/07/2016,4101550249,990,,
Expenditure - Over 500,2016 04,Worcestershire County Council,Adult Services & Health,AC-PROFIT,South Worcester Residential LD,S35551,CEDAR GARDENS,Receipts Sales Long Term Residents,67047,11/07/2016,7310408909,1949.88,,
Expenditure - Over 500,2016 04,Worcestershire County Council,Adult Services & Health,AC-PROFIT,South Worcester Residential LD,S35551,CEDAR GARDENS,Receipts Sales Long Term Residents,67047,11/07/2016,7310408919,2844.32,,
Expenditure - Over 500,2016 04,Worcestershire County Council,Adult Services & Health,AC-PROFIT,South Worcester Residential LD,S35551,CEDAR GARDENS,Receipts Sales Long Term Residents,67047,11/07/2016,7310408921,2922.76,,
Expenditure - Over 500,2016 04,Worcestershire County Council,Adult Services & Health,AC-PROFIT,South Worcester Residential LD,S35551,CEDAR GARDENS,Third Party Payments Purchase of Long Term Care,53667,11/07/2016,7310408957,1875.08,,
Expenditure - Over 500,2016 04,Worcestershire County Council,Adult Services & Health,AC-PROFIT,LT Residential - OP,S35341,CHANDOS LODGE LIMITED,Receipts Sales Long Term Residents,67047,11/07/2016,7310408529,1096.04,,
Expenditure - Over 500,2016 04,Worcestershire County Council,Adult Services & Health,AC-PROFIT,LT Residential - OP,S35341,CHANDOS LODGE LIMITED,Receipts Sales Long Term Residents,67047,11/07/2016,7310408667,1238.52,,
Expenditure - Over 500,2016 04,Worcestershire County Council,Adult Services & Health,AC-PROFIT,LT Residential - OP,S35341,CHANDOS LODGE LIMITED,Third Party Payments Purchase of Long Term Care,53667,11/07/2016,7310408721,1824,,
Expenditure - Over 500,2016 04,Worcestershire County Council,Children's Services,CH-PROFIT,Secondary Home/School Transport,E10707,BROMSGROVE BUS & COACH CO LTD,PTG - Transport Tendered / Cont. Services,46021,07/07/2016,7190132277,1949.99,,
Expenditure - Over 500,2016 04,Worcestershire County Council,Children's Services,CH-PROFIT,Secondary Home/School Transport,E10707,BROMSGROVE BUS & COACH CO LTD,PTG - Transport Tendered / Cont. Services,46021,07/07/2016,7190132273,1395,,
Expenditure - Over 500,2016 04,Worcestershire County Council,Children's Services,CH-PROFIT,Primary Home/School Transport,E10037,BROMSGROVE BUS & COACH CO LTD,PTG - Transport Tendered / Cont. Services,46021,07/07/2016,7190132270,1606.36,,
Expenditure - Over 500,2016 04,Worcestershire County Council,Children's Services,CH-PROFIT,Secondary Home/School Transport,E10707,BROMSGROVE BUS & COACH CO LTD,PTG - Transport Tendered / Cont. Services,46021,07/07/2016,7190132264,1692.73,,
Expenditure - Over 500,2016 04,Worcestershire County Council,Adult Services & Health,AC-PROFIT,LT Residential - OP,S35341,CHASE REST HOME,Receipts Sales Long Term Residents,67047,11/07/2016,7310406999,1226.52,,
Expenditure - Over 500,2016 04,Worcestershire County Council,Adult Services & Health,AC-PROFIT,LT Residential - OP,S35341,CHASE REST HOME,Receipts Sales Long Term Residents,67047,11/07/2016,7310407005,1249.68,,
Expenditure - Over 500,2016 04,Worcestershire County Council,Adult Services & Health,AC-PROFIT,LT Residential - OP,S35341,CHASE REST HOME,Receipts Sales Long Term Residents,67047,11/07/2016,7310407023,1205.2,,
Expenditure - Over 500,2016 04,Worcestershire County Council,Adult Services & Health,AC-PROFIT,LT Residential - OP,S35341,CHASE REST HOME,Receipts Sales Long Term Residents,67047,11/07/2016,7310407087,1194,,
Expenditure - Over 500,2016 04,Worcestershire County Council,Adult Services & Health,AC-PROFIT,LT Residential - OP,S35341,CHASE REST HOME,Third Party Payments Purchase of Long Term Care,53667,11/07/2016,7310407103,913.76,,
Expenditure - Over 500,2016 04,Worcestershire County Council,Adult Services & Health,AC-PROFIT,LT Residential - OP,S35341,CHASE REST HOME,Third Party Payments Purchase of Long Term Care,53667,11/07/2016,7310407107,2496,,
Expenditure - Over 500,2016 04,Worcestershire County Council,Adult Services & Health,AC-PROFIT,LT Residential - OP,S35341,CHASE REST HOME,Third Party Payments Purchase of Long Term Care,53667,11/07/2016,7310407161,973.44,,
Expenditure - Over 500,2016 04,Worcestershire County Council,Adult Services & Health,AC-PROFIT,LT Residential - OP,S35341,CHASE REST HOME,Third Party Payments Purchase of Long Term Care,53667,11/07/2016,7310407181,1737.2,,
Expenditure - Over 500,2016 04,Worcestershire County Council,"Business, Environment & Community",EN-DIR,Local Bus WCC Services,V21020,BROMSGROVE BUS & COACH CO LTD,Third Party Pymnts Other Hired & Contracted Servs,53986,07/07/2016,7190132162,2565,,
Expenditure - Over 500,2016 04,Worcestershire County Council,Adult Services & Health,AC-DIR,Museum & Art Gallery,S80524,CARTER GRAPHICS LIMITED,Expenses Promotion,51631,18/07/2016,4101573735,970,,
Expenditure - Over 500,2016 04,Worcestershire County Council,"Business, Environment & Community",EN-PROFIT,Transport Planning Overheads,V19400,CARTER GRAPHICS LIMITED,Equipment Tools,49005,18/07/2016,4101573925,845,,
Expenditure - Over 500,2016 04,Worcestershire County Council,Children's Services,CH-PROFIT,Early Years - 2 year old funding,E23050,CHEEKY CHARLEYS NURSERY,Third Party Pymts 4Yr Old Nursery Education Grant,53657,07/07/2016,7200026166,2808.3,,
Expenditure - Over 500,2016 04,Worcestershire County Council,Children's Services,CH-PROFIT,Early Years - 2 year old funding,E23050,CHURCH HOUSE DAY NURSERY LTD,Third Party Pymts 4Yr Old Nursery Education Grant,53657,07/07/2016,7200026172,6949.8,,
Expenditure - Over 500,2016 04,Worcestershire County Council,Resources,FS-PROFIT,Management Team,F40300,CIPFA,Employee Training External Fees & Accommodation,39009,19/07/2016,4101575497,4129.13,,
Expenditure - Over 500,2016 04,Worcestershire County Council,Resources,FS-PROFIT,Management Team,F40300,CIPFA,Employee Training External Fees & Accommodation,39009,19/07/2016,4101575501,4129.13,,
Expenditure - Over 500,2016 04,Worcestershire County Council,Adult Services & Health,AC-PROFIT,Domiciliary Spot - OP,S33414,HOUSING 21,Third Party Payments Dom Care Frm Independent Prov,53669,18/07/2016,7320507445,820.48,,
Expenditure - Over 500,2016 04,Worcestershire County Council,Adult Services & Health,AC-PROFIT,Domiciliary Spot - PD,S33412,HOUSING 21,Third Party Payments Dom Care Frm Independent Prov,53669,18/07/2016,7320507446,1299.36,,
Expenditure - Over 500,2016 04,Worcestershire County Council,Adult Services & Health,AC-PROFIT,Domiciliary Spot - OP,S33414,HOUSING 21,Third Party Payments Dom Care Frm Independent Prov,53669,18/07/2016,7320507447,940.8,,
Expenditure - Over 500,2016 04,Worcestershire County Council,Adult Services & Health,AC-PROFIT,Domiciliary Spot - PD,S33412,HOUSING 21,Third Party Payments Dom Care Frm Independent Prov,53669,18/07/2016,7320507448,1750.4,,
Expenditure - Over 500,2016 04,Worcestershire County Council,Adult Services & Health,AC-PROFIT,LT Nursing - OP,S35342,CLASSIC CARE LTD,Receipts Sales Long Term Residents,67047,11/07/2016,7310407488,1339.56,,
Expenditure - Over 500,2016 04,Worcestershire County Council,Adult Services & Health,AC-PROFIT,LT Nursing - OP,S35342,CLASSIC CARE LTD,Third Party Payments Purchase of Long Term Care,53667,11/07/2016,7310407494,1861.2,,
Expenditure - Over 500,2016 04,Worcestershire County Council,Adult Services & Health,AC-PROFIT,LT Nursing - OP,S35342,CLASSIC CARE LTD,Receipts Sales Long Term Residents,67047,11/07/2016,7310407496,1661.2,,
Expenditure - Over 500,2016 04,Worcestershire County Council,Adult Services & Health,AC-PROFIT,ST Residential - OP,S35343,CHASE REST HOME,TPP Purchase of Planned Replacement Care,53666,11/07/2016,7310407369,1200,,
Expenditure - Over 500,2016 04,Worcestershire County Council,Adult Services & Health,AC-PROFIT,Residential - MH,S35641,CASA MIA,Third Party Payments Purchase of Long Term Care,53667,11/07/2016,7310406959,2860,,
Expenditure - Over 500,2016 04,Worcestershire County Council,Adult Services & Health,AC-PROFIT,Residential - MH,S35641,CASA MIA,Third Party Payments Purchase of Long Term Care,53667,11/07/2016,7310406967,2893.6,,
Expenditure - Over 500,2016 04,Worcestershire County Council,Adult Services & Health,AC-PROFIT,Residential - MH,S35641,CASA MIA,Third Party Payments Purchase of Long Term Care,53667,11/07/2016,7310406969,2860,,
Expenditure - Over 500,2016 04,Worcestershire County Council,Adult Services & Health,AC-PROFIT,Residential - MH,S35641,CASA MIA,Third Party Payments Purchase of Long Term Care,53667,11/07/2016,7310406973,3260,,
Expenditure - Over 500,2016 04,Worcestershire County Council,Adult Services & Health,AC-PROFIT,Residential - MH,S35641,CASA MIA,Third Party Payments Purchase of Long Term Care,53667,11/07/2016,7310406987,3260,,
Expenditure - Over 500,2016 04,Worcestershire County Council,Adult Services & Health,AC-PROFIT,Residential - MH,S35641,CASA MIA,Third Party Payments Purchase of Long Term Care,53667,11/07/2016,7310406989,3260,,
Expenditure - Over 500,2016 04,Worcestershire County Council,Adult Services & Health,AC-PROFIT,Residential - MH,S35641,CASA MIA,Third Party Payments Purchase of Long Term Care,53667,11/07/2016,7310407029,3260,,
Expenditure - Over 500,2016 04,Worcestershire County Council,Adult Services & Health,AC-PROFIT,Residential - MH,S35641,CASA MIA,Third Party Payments Purchase of Long Term Care,53667,11/07/2016,7310407047,3260,,
Expenditure - Over 500,2016 04,Worcestershire County Council,Adult Services & Health,AC-PROFIT,Primary Care - LARC Sex.Hlth/Contracept,S42033,CHURCHFIELDS SURGERY,Third Party Payments,53006,14/07/2016,4101574986,1510.9,,
Expenditure - Over 500,2016 04,Worcestershire County Council,Adult Services & Health,AC-PROFIT,Primary Care - LARC Sex.Hlth/Contracept,S42033,CHURCHFIELDS SURGERY,Third Party Payments,53006,14/07/2016,4101575850,-1510.9,,
Expenditure - Over 500,2016 04,Worcestershire County Council,Adult Services & Health,AC-PROFIT,LT Nursing - OP,S35342,TEWKESBURY NURSING HOME LTD,Receipts Sales Long Term Residents,67047,11/07/2016,7310408519,1103.52,,
Expenditure - Over 500,2016 04,Worcestershire County Council,Adult Services & Health,AC-PROFIT,LT Nursing - OP,S35342,TEWKESBURY NURSING HOME LTD,Receipts Sales Long Term Residents,67047,11/07/2016,7310408549,1964.32,,
Expenditure - Over 500,2016 04,Worcestershire County Council,Adult Services & Health,AC-PROFIT,LT Nursing - OP,S35342,TEWKESBURY NURSING HOME LTD,Receipts Sales Long Term Residents,67047,11/07/2016,7310408573,2130.12,,
Expenditure - Over 500,2016 04,Worcestershire County Council,Adult Services & Health,AC-PROFIT,LT Nursing - OP,S35342,TEWKESBURY NURSING HOME LTD,Receipts Sales Long Term Residents,67047,11/07/2016,7310408597,1620.4,,
Expenditure - Over 500,2016 04,Worcestershire County Council,Adult Services & Health,AC-PROFIT,LT Nursing - OP,S35342,TEWKESBURY NURSING HOME LTD,Third Party Payments Purchase of Long Term Care,53667,11/07/2016,7310408783,1650.12,,
Expenditure - Over 500,2016 04,Worcestershire County Council,Adult Services & Health,AC-PROFIT,LT Residential - OP,S35341,TEWKESBURY NURSING HOME LTD,Third Party Payments Purchase of Long Term Care,53667,11/07/2016,7310408805,827.36,,
Expenditure - Over 500,2016 04,Worcestershire County Council,Adult Services & Health,AC-PROFIT,Residential - MH,S35641,CASA MIA,Third Party Payments Purchase of Long Term Care,53667,11/07/2016,7310407089,3260,,
Expenditure - Over 500,2016 04,Worcestershire County Council,Adult Services & Health,AC-PROFIT,Residential - MH,S35641,CASA MIA,Third Party Payments Purchase of Long Term Care,53667,11/07/2016,7310407165,4060,,
Expenditure - Over 500,2016 04,Worcestershire County Council,Adult Services & Health,AC-PROFIT,North Worcs Residential LD (Wyre Forest),S35511,CASA MIA,Third Party Payments Purchase of Long Term Care,53667,11/07/2016,7310407257,4880,,
Expenditure - Over 500,2016 04,Worcestershire County Council,Adult Services & Health,AC-PROFIT,Residential - MH,S35641,CASA MIA,Third Party Payments Purchase of Long Term Care,53667,11/07/2016,7310407265,4113.28,,
Expenditure - Over 500,2016 04,Worcestershire County Council,Children's Services,CH-PROFIT,Primary - SEN H/S Transport,E20801,CLEARWAY TAXIS,PTG - Transport Tendered / Cont. Services,46021,07/07/2016,7190131998,2052,,
Expenditure - Over 500,2016 04,Worcestershire County Council,Children's Services,CH-PROFIT,Secondary Home/School Transport,E10707,CLEARWAY TAXIS,PTG - Transport Tendered / Cont. Services,46021,07/07/2016,7190132267,1653.31,,
Expenditure - Over 500,2016 04,Worcestershire County Council,Children's Services,CH-PROFIT,Early Years - Other Providers,E21205,CLEEVE PRIOR PRE-SCHOOL,Third Party Pymts 4Yr Old Nursery Education Grant,53657,12/07/2016,3310036693,2129.43,,
Expenditure - Over 500,2016 04,Worcestershire County Council,Children's Services,CH-PROFIT,Early Years - 2 year old funding,E23050,CLEEVE PRIOR PRE-SCHOOL,Third Party Pymts 4Yr Old Nursery Education Grant,53657,21/07/2016,7200026173,780,,
Expenditure - Over 500,2016 04,Worcestershire County Council,Adult Services & Health,AC-PROFIT,LT Residential - OP,S35341,CHANDOS LODGE LIMITED,Receipts Sales Long Term Residents,67047,11/07/2016,7310408767,1196.56,,
Expenditure - Over 500,2016 04,Worcestershire County Council,"Business, Environment & Community",EN-DIR,Concessionary Fares Administration,V21015,EUROLINERS,Third Party Pymnts Public Transport Operators,54005,25/07/2016,7190132590,2113.96,,
Expenditure - Over 500,2016 04,Worcestershire County Council,Adult Services & Health,AC-PROFIT,LT Residential - OP,S35341,CHANDOS LODGE LIMITED,Receipts Sales Long Term Residents,67047,11/07/2016,7310408775,1668.36,,
Expenditure - Over 500,2016 04,Worcestershire County Council,Adult Services & Health,AC-PROFIT,LT Residential - OP,S35341,CHANDOS LODGE LIMITED,Third Party Payments Purchase of Long Term Care,53667,11/07/2016,7310408819,1477.2,,
Expenditure - Over 500,2016 04,Worcestershire County Council,Adult Services & Health,AC-PROFIT,ST Residential - OP,S35343,CHANDOS LODGE LIMITED,TPP Purchase of Planned Replacement Care,53666,11/07/2016,7310408863,882,,
Expenditure - Over 500,2016 04,Worcestershire County Council,Adult Services & Health,AC-PROFIT,LT Residential - OP,S35341,CHASE REST HOME,Third Party Payments Purchase of Long Term Care,53667,11/07/2016,7310407183,1537.2,,
Expenditure - Over 500,2016 04,Worcestershire County Council,Children's Services,CH-PROFIT,Primary Home/School Transport,E10037,COLWALL COACHES,PTG - Transport Tendered / Cont. Services,46021,07/07/2016,7190132229,2417.58,,
Expenditure - Over 500,2016 04,Worcestershire County Council,Adult Services & Health,AC-PROFIT,LT Residential - OP,S35341,CHASE REST HOME,Receipts Sales Long Term Residents,67047,11/07/2016,7310407259,1105.92,,
Expenditure - Over 500,2016 04,Worcestershire County Council,Adult Services & Health,AC-PROFIT,LT Residential - OP,S35341,CHASE REST HOME,Third Party Payments Purchase of Long Term Care,53667,11/07/2016,7310407269,1205.2,,
Expenditure - Over 500,2016 04,Worcestershire County Council,Adult Services & Health,AC-PROFIT,LT Residential - OP,S35341,CHASE REST HOME,Receipts Sales Long Term Residents,67047,11/07/2016,7310407283,1589.16,,
Expenditure - Over 500,2016 04,Worcestershire County Council,Adult Services & Health,AC-PROFIT,Domiciliary Spot - PD,S33412,CARE FORCE,Third Party Payments Dom Care Frm Independent Prov,53669,25/07/2016,7320510316,554.39,,
Expenditure - Over 500,2016 04,Worcestershire County Council,Children's Services,CH-PROFIT,Primary Home/School Transport,E10037,COMMANDERY COACHES LLP,PTG - Transport Tendered / Cont. Services,46021,07/07/2016,7190132178,2219.54,,
Expenditure - Over 500,2016 04,Worcestershire County Council,Children's Services,CH-PROFIT,Primary Home/School Transport,E10037,COMMANDERY COACHES LLP,PTG - Transport Tendered / Cont. Services,46021,07/07/2016,7190132194,3060,,
Expenditure - Over 500,2016 04,Worcestershire County Council,Children's Services,CH-PROFIT,Primary Home/School Transport,E10037,COMMANDERY COACHES LLP,PTG - Transport Tendered / Cont. Services,46021,07/07/2016,7190132252,2331.8,,
Expenditure - Over 500,2016 04,Worcestershire County Council,Adult Services & Health,AC-PROFIT,LT Residential - OP,S35341,CHASE REST HOME,Third Party Payments Purchase of Long Term Care,53667,11/07/2016,7310407301,-838.54,,
Expenditure - Over 500,2016 04,Worcestershire County Council,Adult Services & Health,AC-PROFIT,LT Residential - OP,S35341,CHASE REST HOME,TPP Purchase of Planned Replacement Care,53666,11/07/2016,7310407303,1554.12,,
Expenditure - Over 500,2016 04,Worcestershire County Council,Adult Services & Health,AC-PROFIT,LT Residential - OP,S35341,CHASE REST HOME,Receipts Sales Long Term Residents,67047,11/07/2016,7310407347,22835.55,,
Expenditure - Over 500,2016 04,Worcestershire County Council,"Business, Environment & Community",EN-DIR,Concessionary Fares Administration,V21015,COMMUNITY ACTION GROUP,Third Party Pymts Public Transport Voluntary Orgs,53672,28/07/2016,7190132673,1260,,
Expenditure - Over 500,2016 04,Worcestershire County Council,Children's Services,CH-PROFIT,Early Years - 2 year old funding,E23050,COMMUNITY CORNER PRE-SCHOOL,Third Party Pymts 4Yr Old Nursery Education Grant,53657,07/07/2016,7200026175,2760,,
Expenditure - Over 500,2016 04,Worcestershire County Council,Adult Services & Health,AC-PROFIT,LT Residential - OP,S35341,COMMUNITY WORLD LTD,Third Party Payments Purchase of Long Term Care,53667,11/07/2016,7310408505,2042.32,,
Expenditure - Over 500,2016 04,Worcestershire County Council,Adult Services & Health,AC-PROFIT,LT Residential - OP,S35341,COMMUNITY WORLD LTD,Third Party Payments Purchase of Long Term Care,53667,11/07/2016,7310408535,704,,
Expenditure - Over 500,2016 04,Worcestershire County Council,Adult Services & Health,AC-PROFIT,LT Residential - OP,S35341,COMMUNITY WORLD LTD,Receipts Sales Long Term Residents,67047,11/07/2016,7310408639,1380.32,,
Expenditure - Over 500,2016 04,Worcestershire County Council,Adult Services & Health,AC-PROFIT,LT Residential - OP,S35341,COMMUNITY WORLD LTD,Third Party Payments Purchase of Long Term Care,53667,11/07/2016,7310408657,1193.28,,
Expenditure - Over 500,2016 04,Worcestershire County Council,Adult Services & Health,AC-PROFIT,LT Residential - OP,S35341,COMMUNITY WORLD LTD,Receipts Sales Long Term Residents,67047,11/07/2016,7310408683,1059.52,,
Expenditure - Over 500,2016 04,Worcestershire County Council,Adult Services & Health,AC-PROFIT,LT Residential - OP,S35341,COMMUNITY WORLD LTD,Receipts Sales Long Term Residents,67047,11/07/2016,7310408685,-866.92,,
Expenditure - Over 500,2016 04,Worcestershire County Council,Adult Services & Health,AC-PROFIT,LT Residential - OP,S35341,COMMUNITY WORLD LTD,Receipts Sales Long Term Residents,67047,11/07/2016,7310408737,1547.32,,
Expenditure - Over 500,2016 04,Worcestershire County Council,Adult Services & Health,AC-PROFIT,LT Residential - OP,S35341,COMMUNITY WORLD LTD,Receipts Sales Long Term Residents,67047,11/07/2016,7310408831,1501.6,,
Expenditure - Over 500,2016 04,Worcestershire County Council,Adult Services & Health,AC-PROFIT,ST Residential - OP,S35343,CHASE REST HOME,TPP Purchase of Planned Replacement Care,53666,11/07/2016,7310407351,864,,
Expenditure - Over 500,2016 04,Worcestershire County Council,Adult Services & Health,AC-PROFIT,Domiciliary Spot - PD,S33412,CARE FORCE,Third Party Payments Dom Care Frm Independent Prov,53669,25/07/2016,7320510505,570.77,,
Expenditure - Over 500,2016 04,Worcestershire County Council,Adult Services & Health,AC-PROFIT,LT Nursing - OP,S35342,CLASSIC CARE LTD,Third Party Payments Purchase of Long Term Care,53667,11/07/2016,7310407626,1800.68,,
Expenditure - Over 500,2016 04,Worcestershire County Council,Adult Services & Health,AC-PROFIT,LT Nursing - OP,S35342,CLASSIC CARE LTD,Third Party Payments Purchase of Long Term Care,53667,11/07/2016,7310407662,1827.88,,
Expenditure - Over 500,2016 04,Worcestershire County Council,Adult Services & Health,AC-PROFIT,LT Nursing - PD,S35442,CLASSIC CARE LTD,Receipts Sales Long Term Residents,67047,11/07/2016,7310407664,2101.72,,
Expenditure - Over 500,2016 04,Worcestershire County Council,Adult Services & Health,AC-ERROR,Adults & Community Servs Error Suspense,ACSSER001,CLASSIC CARE LTD,Adult & Community Servs - Other,98254,11/07/2016,7310407678,-512,,
Expenditure - Over 500,2016 04,Worcestershire County Council,Adult Services & Health,AC-PROFIT,COP Property Temporary Code,S35397,CLASSIC CARE LTD,Third Party Payments Purchase of Long Term Care,53667,11/07/2016,7310407712,2556,,
Expenditure - Over 500,2016 04,Worcestershire County Council,Adult Services & Health,AC-PROFIT,LT Nursing - OP,S35342,CLASSIC CARE LTD,Third Party Payments Purchase of Long Term Care,53667,11/07/2016,7310407722,2565.56,,
Expenditure - Over 500,2016 04,Worcestershire County Council,Adult Services & Health,AC-PROFIT,LT Nursing - OP,S35342,CLASSIC CARE LTD,Receipts Sales Long Term Residents,67047,11/07/2016,7310407734,1718.8,,
Expenditure - Over 500,2016 04,Worcestershire County Council,Adult Services & Health,AC-PROFIT,LT Nursing - OP,S35342,CLASSIC CARE LTD,Third Party Payments Purchase of Long Term Care,53667,11/07/2016,7310407744,1636.04,,
Expenditure - Over 500,2016 04,Worcestershire County Council,Adult Services & Health,AC-PROFIT,Property Charge Temporary Code,S35398,CLASSIC CARE LTD,Receipts Sales Long Term Residents,67047,11/07/2016,7310407762,3293.4,,
Expenditure - Over 500,2016 04,Worcestershire County Council,Adult Services & Health,AC-PROFIT,LT Nursing - OP,S35342,CLASSIC CARE LTD,Third Party Payments Purchase of Long Term Care,53667,11/07/2016,7310407766,1691.32,,
Expenditure - Over 500,2016 04,Worcestershire County Council,Adult Services & Health,AC-PROFIT,LT Nursing - OP,S35342,CLASSIC CARE LTD,Receipts Sales Long Term Residents,67047,11/07/2016,7310407806,1655.56,,
Expenditure - Over 500,2016 04,Worcestershire County Council,Adult Services & Health,AC-PROFIT,COP Property Temporary Code,S35397,CLASSIC CARE LTD,Third Party Payments Purchase of Long Term Care,53667,11/07/2016,7310407810,3452,,
Expenditure - Over 500,2016 04,Worcestershire County Council,Adult Services & Health,AC-PROFIT,PoP Placements,S35386,CLASSIC CARE LTD,TPP Purchase of Planned Replacement Care,53666,11/07/2016,7310407870,-588,,
Expenditure - Over 500,2016 04,Worcestershire County Council,Children's Services,CH-PROFIT,Inter-Auth Recoupment - Special,E10872,HUNTERCOMBE COTSWOLD SPA,Third Party Payments Inter Authority Recoupment,52354,12/07/2016,4101573158,1500,,
Expenditure - Over 500,2016 04,Worcestershire County Council,Adult Services & Health,AC-PROFIT,North Worcs Residential LD (Wyre Forest),S35511,COTTAGE & RURAL ENTERPRISES LTD,Receipts Sales Long Term Residents,67047,11/07/2016,7310409569,3201.32,,
Expenditure - Over 500,2016 04,Worcestershire County Council,Adult Services & Health,AC-PROFIT,PoP Placements,S35386,CLASSIC CARE LTD,TPP Purchase of Planned Replacement Care,53666,11/07/2016,7310407890,1176,,
Expenditure - Over 500,2016 04,Worcestershire County Council,Adult Services & Health,AC-PROFIT,PoP Placements,S35386,CLASSIC CARE LTD,TPP Purchase of Planned Replacement Care,53666,11/07/2016,7310407926,588,,
Expenditure - Over 500,2016 04,Worcestershire County Council,Adult Services & Health,AC-PROFIT,ST Nursing - OP,S35344,CLASSIC CARE LTD,TPP Purchase of Planned Replacement Care,53666,11/07/2016,7310407938,560,,
Expenditure - Over 500,2016 04,Worcestershire County Council,Adult Services & Health,AC-PROFIT,PoP Placements,S35386,CLASSIC CARE LTD,TPP Purchase of Planned Replacement Care,53666,11/07/2016,7310407942,1176,,
Expenditure - Over 500,2016 04,Worcestershire County Council,Adult Services & Health,AC-ERROR,Adults & Community Servs Error Suspense,ACSSER001,CLASSIC CARE LTD,Adult & Community Servs - Other,98254,11/07/2016,7310407962,2912,,
Expenditure - Over 500,2016 04,Worcestershire County Council,Adult Services & Health,AC-ERROR,Adults & Community Servs Error Suspense,ACSSER001,CLASSIC CARE LTD,Adult & Community Servs - Other,98254,11/07/2016,7310407972,720,,
Expenditure - Over 500,2016 04,Worcestershire County Council,Children's Services,CH-PROFIT,Special Home/School Transport,E10877,CLEARWAY TAXIS,PTG - Transport Tendered / Cont. Services,46021,11/07/2016,7190132424,2856,,
Expenditure - Over 500,2016 04,Worcestershire County Council,Children's Services,CH-PROFIT,Secondary Home/School Transport,E10707,CLEARWAY TAXIS,PTG - Public Transport Bus,47514,12/07/2016,4101574230,1108.8,,
Expenditure - Over 500,2016 04,Worcestershire County Council,"Business, Environment & Community",EN-DIR,Concessionary Fares Administration,V21015,CLEARWAY TAXIS,Third Party Pymnts Public Transport Operators,54005,12/07/2016,7190132453,2720.26,,
Expenditure - Over 500,2016 04,Worcestershire County Council,Adult Services & Health,AC-PROFIT,ASH H&S,S34797,COGNET LTD,Training Expenses,51665,21/07/2016,4101576937,1495,,
Expenditure - Over 500,2016 04,Worcestershire County Council,Adult Services & Health,AC-PROFIT,ASH VIPS,S34796,COGNET LTD,Training Expenses,51665,28/07/2016,4101581928,1495,,
Expenditure - Over 500,2016 04,Worcestershire County Council,Children's Services,CH-PROFIT,Early Years - 2 year old funding,E23050,CRABBS CROSS & HUNT END PLAY GROUP,Third Party Pymts 4Yr Old Nursery Education Grant,53657,07/07/2016,7200026177,2281.5,,
Expenditure - Over 500,2016 04,Worcestershire County Council,Adult Services & Health,AC-PROFIT,PoP Placements,S35386,COMMUNITY WORLD LTD,TPP Purchase of Planned Replacement Care,53666,11/07/2016,7310408873,908,,
Expenditure - Over 500,2016 04,Worcestershire County Council,Adult Services & Health,AC-PROFIT,Investment in Extra Care,S32360,COUNTY HOME CARE SERVICES LTD T/A,Third Party Payments Purchase of Long Term Care,53667,18/07/2016,7320507989,637.05,,
Expenditure - Over 500,2016 04,Worcestershire County Council,Adult Services & Health,AC-PROFIT,Investment in Extra Care,S32360,COUNTY HOME CARE SERVICES LTD T/A,Third Party Payments Purchase of Long Term Care,53667,18/07/2016,7320507990,637.05,,
Expenditure - Over 500,2016 04,Worcestershire County Council,Adult Services & Health,AC-PROFIT,Investment in Extra Care,S32360,COUNTY HOME CARE SERVICES LTD T/A,Third Party Payments Purchase of Long Term Care,53667,18/07/2016,7320507987,637.05,,
Expenditure - Over 500,2016 04,Worcestershire County Council,Adult Services & Health,AC-PROFIT,Investment in Extra Care,S32360,COUNTY HOME CARE SERVICES LTD T/A,Third Party Payments Purchase of Long Term Care,53667,18/07/2016,7320507988,637.05,,
Expenditure - Over 500,2016 04,Worcestershire County Council,Adult Services & Health,AC-PROFIT,Domiciliary Spot - OP,S33414,COUNTYWIDE HOMECARE LTD,Third Party Payments Dom Care Frm Independent Prov,53669,18/07/2016,7320507432,547.4,,
Expenditure - Over 500,2016 04,Worcestershire County Council,Adult Services & Health,AC-PROFIT,Domiciliary Spot - PD,S33412,COUNTYWIDE HOMECARE LTD,Third Party Payments Dom Care Frm Independent Prov,53669,18/07/2016,7320507436,627.55,,
Expenditure - Over 500,2016 04,Worcestershire County Council,Adult Services & Health,AC-PROFIT,Domiciliary Spot - OP,S33414,COUNTYWIDE HOMECARE LTD,Third Party Payments Dom Care Frm Independent Prov,53669,25/07/2016,7320511317,547.4,,
Expenditure - Over 500,2016 04,Worcestershire County Council,Adult Services & Health,AC-PROFIT,Domiciliary Spot - PD,S33412,COUNTYWIDE HOMECARE LTD,Third Party Payments Dom Care Frm Independent Prov,53669,25/07/2016,7320511329,627.55,,
Expenditure - Over 500,2016 04,Worcestershire County Council,Adult Services & Health,AC-PROFIT,Domiciliary Spot - OP,S33414,COUNTYWIDE HOMECARE LTD,Third Party Payments Dom Care Frm Independent Prov,53669,07/07/2016,7320505974,547.4,,
Expenditure - Over 500,2016 04,Worcestershire County Council,Adult Services & Health,AC-PROFIT,Domiciliary Spot - PD,S33412,COUNTYWIDE HOMECARE LTD,Third Party Payments Dom Care Frm Independent Prov,53669,07/07/2016,7320505997,668.3,,
Expenditure - Over 500,2016 04,Worcestershire County Council,Adult Services & Health,AC-PROFIT,Domiciliary Spot - OP,S33414,COUNTYWIDE HOMECARE LTD,Third Party Payments Dom Care Frm Independent Prov,53669,28/07/2016,7320511456,539.13,,
Expenditure - Over 500,2016 04,Worcestershire County Council,Adult Services & Health,AC-PROFIT,Domiciliary Spot - PD,S33412,COUNTYWIDE HOMECARE LTD,Third Party Payments Dom Care Frm Independent Prov,53669,28/07/2016,7320511460,627.55,,
Expenditure - Over 500,2016 04,Worcestershire County Council,Adult Services & Health,AC-PROFIT,Domiciliary Spot - OP,S33414,CROSSROADS CARE,Third Party Payments Dom Care Frm Independent Prov,53669,04/07/2016,7320504380,539.2,,
Expenditure - Over 500,2016 04,Worcestershire County Council,Children's Services,CH-PROFIT,Early Years - 2 year old funding,E23050,CROWLE PRE-SCHOOL,Third Party Pymts 4Yr Old Nursery Education Grant,53657,07/07/2016,7200026178,1342.5,,
Expenditure - Over 500,2016 04,Worcestershire County Council,Children's Services,CH-PROFIT,Special Home/School Transport,E10877,CROWN RADIO TAXIS,PTG - Transport Tendered / Cont. Services,46021,11/07/2016,7190132340,3135,,
Expenditure - Over 500,2016 04,Worcestershire County Council,Children's Services,CH-PROFIT,Special Home/School Transport,E10877,CROWN RADIO TAXIS,PTG - Transport Tendered / Cont. Services,46021,11/07/2016,7190132341,3002,,
Expenditure - Over 500,2016 04,Worcestershire County Council,Children's Services,CH-PROFIT,Post 16 - SEN H/S Transport,E20803,CROWN RADIO TAXIS,PTG - Transport Tendered / Cont. Services,46021,11/07/2016,7190132344,2394,,
Expenditure - Over 500,2016 04,Worcestershire County Council,Children's Services,CH-PROFIT,Special Home/School Transport,E10877,CROWN RADIO TAXIS,PTG - Transport Tendered / Cont. Services,46021,11/07/2016,7190132345,2375,,
Expenditure - Over 500,2016 04,Worcestershire County Council,Children's Services,CH-PROFIT,Post 16 - SEN H/S Transport,E20803,CROWN RADIO TAXIS,PTG - Transport Tendered / Cont. Services,46021,11/07/2016,7190132346,2166,,
Expenditure - Over 500,2016 04,Worcestershire County Council,Children's Services,CH-PROFIT,Special Home/School Transport,E10877,CROWN RADIO TAXIS,PTG - Transport Tendered / Cont. Services,46021,11/07/2016,7190132376,2907,,
Expenditure - Over 500,2016 04,Worcestershire County Council,Children's Services,CH-PROFIT,Special Home/School Transport,E10877,CROWN RADIO TAXIS,PTG - Transport Tendered / Cont. Services,46021,11/07/2016,7190132382,1350,,
Expenditure - Over 500,2016 04,Worcestershire County Council,Children's Services,CH-PROFIT,Short Breaks on framework,E31529,CROWN RADIO TAXIS,PTG - Transport Tendered / Cont. Services,46021,11/07/2016,7190132383,1620,,
Expenditure - Over 500,2016 04,Worcestershire County Council,Children's Services,CH-PROFIT,Special Home/School Transport,E10877,CUSTOM TRAVEL,PTG - Transport Tendered / Cont. Services,46021,12/07/2016,7190132521,2754,,
Expenditure - Over 500,2016 04,Worcestershire County Council,Children's Services,CH-PROFIT,Secondary Home/School Transport,E10707,CUSTOM TRAVEL,PTG - Transport Tendered / Cont. Services,46021,25/07/2016,7190132642,976.5,,
Expenditure - Over 500,2016 04,Worcestershire County Council,Children's Services,CH-PROFIT,Secondary Home/School Transport,E10707,CUSTOM TRAVEL,PTG - Transport Tendered / Cont. Services,46021,25/07/2016,7190132643,976.5,,
Expenditure - Over 500,2016 04,Worcestershire County Council,Adult Services & Health,AC-PROFIT,Bookfund,S80460,BERTRAM LIBRARY SERVICES,Books,49018,11/07/2016,7150038421,595.44,,
Expenditure - Over 500,2016 04,Worcestershire County Council,Adult Services & Health,AC-PROFIT,Equipment - Pooled Budgets,S31526,DCS JONCARE LTD,Equipment Children SSD,49083,18/07/2016,4101575831,462,,
Expenditure - Over 500,2016 04,Worcestershire County Council,Adult Services & Health,AC-PROFIT,Equipment - Pooled Budgets,S31526,DCS JONCARE LTD,Equipment Children SSD,49083,28/07/2016,4101577547,692,,
Expenditure - Over 500,2016 04,Worcestershire County Council,Adult Services & Health,AC-PROFIT,Support for Sensory Impairment,S42087,DEAF DIRECT LIMITED,Third Party Payments External Provider,54044,05/07/2016,4101570718,22375,,
Expenditure - Over 500,2016 04,Worcestershire County Council,Adult Services & Health,AC-PROFIT,Support for Sensory Impairment,S42087,DEAF DIRECT LIMITED,Third Party Payments External Provider,54044,05/07/2016,4101570719,1292.6,,
Expenditure - Over 500,2016 04,Worcestershire County Council,Children's Services,CH-PROFIT,Early Years - 2 year old funding,E23050,DEERHURST DAY NURSERY,Third Party Pymts 4Yr Old Nursery Education Grant,53657,07/07/2016,7200026180,1755,,
Expenditure - Over 500,2016 04,Worcestershire County Council,Adult Services & Health,AC-PROFIT,Equipment - Pooled Budgets,S31526,DENBIGHSHIRE COUNTY COUNCIL,Equipment Adults SDD,49084,04/07/2016,4101569821,1882.91,,
Expenditure - Over 500,2016 04,Worcestershire County Council,Adult Services & Health,AC-PROFIT,Equipment - Pooled Budgets,S31526,DENBIGHSHIRE COUNTY COUNCIL,Equipment Adults SDD,49084,21/07/2016,4101577634,1912.84,,
Expenditure - Over 500,2016 04,Worcestershire County Council,Adult Services & Health,AC-PROFIT,South Worcester Residential LD,S35551,DERWEN COLLEGE,Third Party Payments Purchase of Long Term Care,53667,11/07/2016,7310408701,1832.09,,
Expenditure - Over 500,2016 04,Worcestershire County Council,Adult Services & Health,AC-PROFIT,South Worcester Residential LD,S35551,DERWEN COLLEGE,Third Party Payments Purchase of Long Term Care,53667,11/07/2016,7310408705,1197.24,,
Expenditure - Over 500,2016 04,Worcestershire County Council,Adult Services & Health,AC-PROFIT,South Worcester Residential LD,S35551,DERWEN COLLEGE,Third Party Payments Purchase of Long Term Care,53667,11/07/2016,7310408711,818.81,,
Expenditure - Over 500,2016 04,Worcestershire County Council,Adult Services & Health,AC-PROFIT,North Worcs Residential LD (Wyre Forest),S35511,DEVON & CORNWALL AUTISTIC COMM'TY T,Third Party Payments Purchase of Long Term Care,53667,11/07/2016,7310409417,4754.92,,
Expenditure - Over 500,2016 04,Worcestershire County Council,Adult Services & Health,AC-PROFIT,The Grange Kidderminster,S31164,DDC DOLPHIN LTD,Equipment Equipment Repair & Maintenance,49004,19/07/2016,4101574297,1197,,
Expenditure - Over 500,2016 04,Worcestershire County Council,Children's Services,CH-PROFIT,Foundation Learning,E35010,DROITWICH SPA & RURAL COUNCIL,Services Course Fees For Pupils,50038,21/07/2016,4101577436,4140,,
Expenditure - Over 500,2016 04,Worcestershire County Council,Children's Services,CH-PROFIT,Early Years - 2 year old funding,E23050,DROITWICH SPA NURSERY & KINDERGARTE,Third Party Pymts 4Yr Old Nursery Education Grant,53657,07/07/2016,7200026184,1306.5,,
Expenditure - Over 500,2016 04,Worcestershire County Council,"Business, Environment & Community",EN-PROFIT,Locally determined,V16103,DROITWICH SPA TOWN COUNCIL,Third Party Pymnts Other Hired & Contracted Servs,53986,04/07/2016,4101569315,2925,,
Expenditure - Over 500,2016 04,Worcestershire County Council,Children's Services,CH-PROFIT,Primary Home/School Transport,E10037,DUDLEY'S COACHES,PTG - Transport Tendered / Cont. Services,46021,12/07/2016,7190132577,3325,,
Expenditure - Over 500,2016 04,Worcestershire County Council,Adult Services & Health,AC-PROFIT,Equipment - Pooled Budgets,S31526,DENBIGHSHIRE COUNTY COUNCIL,Equipment Adults SDD,49084,04/07/2016,4101569910,1098.27,,
Expenditure - Over 500,2016 04,Worcestershire County Council,Children's Services,CH-PROFIT,Early Years - 2 year old funding,E23050,EAST REALM LTD,Third Party Pymts 4Yr Old Nursery Education Grant,53657,07/07/2016,7200026329,2632.5,,
Expenditure - Over 500,2016 04,Worcestershire County Council,Adult Services & Health,AC-PROFIT,Equipment - Pooled Budgets,S31526,DENBIGHSHIRE COUNTY COUNCIL,Equipment Adults SDD,49084,18/07/2016,4101575010,663.4,,
Expenditure - Over 500,2016 04,Worcestershire County Council,Adult Services & Health,AC-PROFIT,Equipment - Pooled Budgets,S31526,DENBIGHSHIRE COUNTY COUNCIL,Equipment Adults SDD,49084,19/07/2016,4101576406,443,,
Expenditure - Over 500,2016 04,Worcestershire County Council,Adult Services & Health,AC-PROFIT,North Supported Living Scheme,S31367,EDGEVIEW HOMES LTD,Third Party Payments Purchase of Long Term Care,53667,11/07/2016,7310406846,3769.92,,
Expenditure - Over 500,2016 04,Worcestershire County Council,Adult Services & Health,AC-PROFIT,North Worcs Residential LD (Wyre Forest),S35511,EDGEVIEW HOMES LTD,Receipts Sales Long Term Residents,67047,11/07/2016,7310406972,9864.12,,
Expenditure - Over 500,2016 04,Worcestershire County Council,Adult Services & Health,AC-PROFIT,North Worcs Residential LD (Wyre Forest),S35511,EDGEVIEW HOMES LTD,Third Party Payments Purchase of Long Term Care,53667,11/07/2016,7310409545,10182.72,,
Expenditure - Over 500,2016 04,Worcestershire County Council,Adult Services & Health,AC-PROFIT,North Worcs Nursing LD (Wyre Forest),S35512,EDGEVIEW HOMES LTD,Receipts Sales Long Term Residents,67047,11/07/2016,7310409920,4738.84,,
Expenditure - Over 500,2016 04,Worcestershire County Council,Adult Services & Health,AC-PROFIT,South Worcester Nursing LD,S35552,EDGEVIEW HOMES LTD,Third Party Payments Purchase of Long Term Care,53667,11/07/2016,7310409922,5124.28,,
Expenditure - Over 500,2016 04,Worcestershire County Council,Adult Services & Health,AC-PROFIT,North Worcs Nursing LD (Wyre Forest),S35512,EDGEVIEW HOMES LTD,Third Party Payments Purchase of Long Term Care,53667,11/07/2016,7310409923,3131.52,,
Expenditure - Over 500,2016 04,Worcestershire County Council,Adult Services & Health,AC-PROFIT,North Worcs Nursing LD (Wyre Forest),S35512,EDGEVIEW HOMES LTD,Receipts Sales Long Term Residents,67047,11/07/2016,7310409925,3532.84,,
Expenditure - Over 500,2016 04,Worcestershire County Council,Adult Services & Health,AC-PROFIT,North Worcs Nursing LD (Wyre Forest),S35512,EDGEVIEW HOMES LTD,Receipts Sales Long Term Residents,67047,11/07/2016,7310409926,3698.36,,
Expenditure - Over 500,2016 04,Worcestershire County Council,Adult Services & Health,AC-PROFIT,Nursing - MH,S35642,EDGEVIEW HOMES LTD,Third Party Payments Purchase of Long Term Care,53667,11/07/2016,7310409927,3468.68,,
Expenditure - Over 500,2016 04,Worcestershire County Council,Adult Services & Health,AC-PROFIT,North Worcs Nursing LD (Wyre Forest),S35512,EDGEVIEW HOMES LTD,Third Party Payments Purchase of Long Term Care,53667,11/07/2016,7310409932,8815.24,,
Expenditure - Over 500,2016 04,Worcestershire County Council,Adult Services & Health,AC-PROFIT,Nursing - MH,S35642,EDGEVIEW HOMES LTD,Third Party Payments Purchase of Long Term Care,53667,11/07/2016,7310409933,9695.6,,
Expenditure - Over 500,2016 04,Worcestershire County Council,Adult Services & Health,AC-PROFIT,South Worcester Nursing LD,S35552,EDGEVIEW HOMES LTD,Third Party Payments Purchase of Long Term Care,53667,11/07/2016,7310409944,11172,,
Expenditure - Over 500,2016 04,Worcestershire County Council,Adult Services & Health,AC-PROFIT,South Worcester Residential LD,S35551,ELERI HOUSE,Receipts Sales Long Term Residents,67047,11/07/2016,7310409451,2840.48,,
Expenditure - Over 500,2016 04,Worcestershire County Council,Adult Services & Health,AC-PROFIT,North Worcs Residential LD (Wyre Forest),S35511,ELERI HOUSE,Receipts Sales Long Term Residents,67047,11/07/2016,7310409453,2815.56,,
Expenditure - Over 500,2016 04,Worcestershire County Council,Children's Services,CH-PROFIT,Primary Home/School Transport,E10037,ELGAR COACHES,PTG - Transport Tendered / Cont. Services,46021,07/07/2016,7190132151,4617,,
Expenditure - Over 500,2016 04,Worcestershire County Council,Children's Services,CH-PROFIT,Secondary Home/School Transport,E10707,ELGAR COACHES,PTG - Transport Tendered / Cont. Services,46021,07/07/2016,7190132152,3980.5,,
Expenditure - Over 500,2016 04,Worcestershire County Council,Children's Services,CH-PROFIT,Secondary Home/School Transport,E10707,ELGAR COACHES,PTG - Transport Tendered / Cont. Services,46021,07/07/2016,7190132153,4085,,
Expenditure - Over 500,2016 04,Worcestershire County Council,Children's Services,CH-PROFIT,Secondary Home/School Transport,E10707,ELGAR COACHES,PTG - Transport Tendered / Cont. Services,46021,07/07/2016,7190132154,3420,,
Expenditure - Over 500,2016 04,Worcestershire County Council,Children's Services,CH-PROFIT,Primary Home/School Transport,E10037,ELGAR COACHES,PTG - Transport Tendered / Cont. Services,46021,07/07/2016,7190132155,1268.25,,
Expenditure - Over 500,2016 04,Worcestershire County Council,Children's Services,CH-PROFIT,Secondary Home/School Transport,E10707,ELGAR COACHES,PTG - Transport Tendered / Cont. Services,46021,07/07/2016,7190132156,1268.44,,
Expenditure - Over 500,2016 04,Worcestershire County Council,Adult Services & Health,AC-PROFIT,Equipment - Pooled Budgets,S31526,ELGAR COACHES,Equipment Adults Special SSD,49086,21/07/2016,4101577224,860,,
Expenditure - Over 500,2016 04,Worcestershire County Council,Adult Services & Health,AC-PROFIT,Property Charge Temporary Code,S35398,ELIZABETH FINN GROUP,Receipts Sales Long Term Residents,67047,11/07/2016,7310407223,3742.6,,
Expenditure - Over 500,2016 04,Worcestershire County Council,Adult Services & Health,AC-ERROR,Adults & Community Servs Error Suspense,ACSSER001,ELIZABETH FINN GROUP,Adult & Community Servs - Other,98254,11/07/2016,7310407377,976,,
Expenditure - Over 500,2016 04,Worcestershire County Council,Adult Services & Health,AC-PROFIT,North Worcs Residential LD (Wyre Forest),S35511,FITZROY SUPPORT,Third Party Payments Purchase of Long Term Care,53667,11/07/2016,7310408889,5923.36,,
Expenditure - Over 500,2016 04,Worcestershire County Council,Adult Services & Health,AC-PROFIT,South Worcester Residential LD,S35551,FITZROY SUPPORT,Third Party Payments Purchase of Long Term Care,53667,11/07/2016,7310408955,6375.24,,
Expenditure - Over 500,2016 04,Worcestershire County Council,Adult Services & Health,AC-PROFIT,South Worcester Residential LD,S35551,FITZROY SUPPORT,Third Party Payments Purchase of Long Term Care,53667,11/07/2016,7310409003,6532.24,,
Expenditure - Over 500,2016 04,Worcestershire County Council,Adult Services & Health,AC-PROFIT,South Worcester Residential LD,S35551,FITZROY SUPPORT,Third Party Payments Purchase of Long Term Care,53667,11/07/2016,7310409125,4785.08,,
Expenditure - Over 500,2016 04,Worcestershire County Council,"Business, Environment & Community",EN-PROFIT,Area North East,V82809,ELMS,Third Party Pymnts Other Hired & Contracted Servs,53986,04/07/2016,4101569904,850,,
Expenditure - Over 500,2016 04,Worcestershire County Council,"Business, Environment & Community",EN-PROFIT,Area North East,V82809,ELMS,Misc Other Expenses,51619,11/07/2016,4101572129,850,,
Expenditure - Over 500,2016 04,Worcestershire County Council,Adult Services & Health,AC-LDDAYC,Evesham Day Centre,S31670,SOUTH WORCESTERSHIRE COLLEGE,Energy Costs Gas,43001,21/07/2016,4101577213,2198.74,,
Expenditure - Over 500,2016 04,Worcestershire County Council,Children's Services,CH-PROFIT,The De Montfort School,E10746,THE DE MONTFORD SCHOOL,Payments4Schools School Fund Contributions,83508,05/07/2016,3310036580,2518,,
Expenditure - Over 500,2016 04,Worcestershire County Council,Children's Services,CH-PROFIT,Primary Home/School Transport,E10037,DUDLEY'S COACHES,PTG - Transport Tendered / Cont. Services,46021,07/07/2016,7190132181,3898.11,,
Expenditure - Over 500,2016 04,Worcestershire County Council,Children's Services,CH-PROFIT,Primary Home/School Transport,E10037,DUDLEY'S COACHES,PTG - Transport Tendered / Cont. Services,46021,07/07/2016,7190132182,3748.19,,
Expenditure - Over 500,2016 04,Worcestershire County Council,Children's Services,CH-PROFIT,Trans't to Non WCC Secondary Schools,E10028,DUDLEY'S COACHES,PTG - Transport Tendered / Cont. Services,46021,07/07/2016,7190132186,3249.58,,
Expenditure - Over 500,2016 04,Worcestershire County Council,"Business, Environment & Community",EN-DIR,Concessionary Fares Administration,V21015,DUDLEY'S COACHES,Third Party Pymnts Public Transport Operators,54005,11/07/2016,7190132281,1589.7,,
Expenditure - Over 500,2016 04,Worcestershire County Council,Children's Services,CH-PROFIT,Primary Home/School Transport,E10037,DUDLEY'S COACHES,PTG - Transport Tendered / Cont. Services,46021,25/07/2016,7190132651,3325,,
Expenditure - Over 500,2016 04,Worcestershire County Council,Children's Services,CH-PROFIT,FE Home/College Transport,E20227,DUDLEY'S COACHES,PTG - Public Transport Bus,47514,28/07/2016,7190132662,5395,,
Expenditure - Over 500,2016 04,Worcestershire County Council,Adult Services & Health,AC-PROFIT,South Worcester Residential LD,S35551,DERWEN COLLEGE,Third Party Payments Purchase of Long Term Care,53667,11/07/2016,7310408719,2003.12,,
Expenditure - Over 500,2016 04,Worcestershire County Council,Adult Services & Health,AC-PROFIT,South Worcester Residential LD,S35551,DERWEN COLLEGE,Third Party Payments Purchase of Long Term Care,53667,11/07/2016,7310408725,786.21,,
Expenditure - Over 500,2016 04,Worcestershire County Council,"Business, Environment & Community",EN-PROFIT,Area North East,V82809,ELMS,Misc Other Expenses,51619,18/07/2016,4101575494,2695,,
Expenditure - Over 500,2016 04,Worcestershire County Council,Adult Services & Health,AC-PROFIT,South Worcester Residential LD,S35551,DERWEN COLLEGE,Third Party Payments Purchase of Long Term Care,53667,11/07/2016,7310408735,648,,
Expenditure - Over 500,2016 04,Worcestershire County Council,Adult Services & Health,AC-PROFIT,LT Residential - PD,S35441,DERWEN COLLEGE,Third Party Payments Purchase of Long Term Care,53667,11/07/2016,7310408801,691.36,,
Expenditure - Over 500,2016 04,Worcestershire County Council,Children's Services,CH-PROFIT,Early Years - 2 year old funding,E23050,FAIRFIELD PRESCHOOL LIMITED,Third Party Pymts 4Yr Old Nursery Education Grant,53657,07/07/2016,7200026190,910,,
Expenditure - Over 500,2016 04,Worcestershire County Council,Adult Services & Health,AC-PROFIT,LT Residential - PD,S35441,FATHER HUDSON'S SOCIETY,Receipts Sales Long Term Residents,67047,11/07/2016,7310409389,3992.12,,
Expenditure - Over 500,2016 04,Worcestershire County Council,Adult Services & Health,AC-PROFIT,North Worcs Residential LD (Wyre Forest),S35511,FAVOR HOUSE HOMES,Third Party Payments Purchase of Long Term Care,53667,11/07/2016,7310408417,1816.8,,
Expenditure - Over 500,2016 04,Worcestershire County Council,Adult Services & Health,AC-PROFIT,North Worcs Residential LD (Wyre Forest),S35511,FAVOR HOUSE HOMES,Third Party Payments Purchase of Long Term Care,53667,11/07/2016,7310408419,1689.8,,
Expenditure - Over 500,2016 04,Worcestershire County Council,Adult Services & Health,AC-PROFIT,North Worcs Residential LD (Wyre Forest),S35511,FAVOR HOUSE HOMES,Third Party Payments Purchase of Long Term Care,53667,11/07/2016,7310408421,1846.2,,
Expenditure - Over 500,2016 04,Worcestershire County Council,Adult Services & Health,AC-PROFIT,North Worcs Residential LD (Wyre Forest),S35511,FAVOR HOUSE HOMES,Third Party Payments Purchase of Long Term Care,53667,11/07/2016,7310408423,2210,,
Expenditure - Over 500,2016 04,Worcestershire County Council,Adult Services & Health,AC-PROFIT,North Worcs Residential LD (Wyre Forest),S35511,FAVOR HOUSE HOMES,Receipts Sales Long Term Residents,67047,11/07/2016,7310408425,1826.88,,
Expenditure - Over 500,2016 04,Worcestershire County Council,Adult Services & Health,AC-PROFIT,North Worcs Residential LD (Wyre Forest),S35511,FAVOR HOUSE HOMES,Receipts Sales Long Term Residents,67047,11/07/2016,7310408427,5100.56,,
Expenditure - Over 500,2016 04,Worcestershire County Council,Adult Services & Health,AC-PROFIT,North Worcs Residential LD (Wyre Forest),S35511,FAVOR HOUSE HOMES,Receipts Sales Long Term Residents,67047,11/07/2016,7310408451,3924.64,,
Expenditure - Over 500,2016 04,Worcestershire County Council,Adult Services & Health,AC-PROFIT,North Worcs Residential LD (Wyre Forest),S35511,FAVOR HOUSE HOMES,Third Party Payments Purchase of Long Term Care,53667,11/07/2016,7310408483,5100.56,,
Expenditure - Over 500,2016 04,Worcestershire County Council,Adult Services & Health,AC-PROFIT,North Worcs Residential LD (Wyre Forest),S35511,FAVOR HOUSE HOMES,Third Party Payments Purchase of Long Term Care,53667,11/07/2016,7310408489,2522.2,,
Expenditure - Over 500,2016 04,Worcestershire County Council,Adult Services & Health,AC-PROFIT,North Worcs Residential LD (Wyre Forest),S35511,FAVOR HOUSE HOMES,Third Party Payments Purchase of Long Term Care,53667,11/07/2016,7310408497,3601.2,,
Expenditure - Over 500,2016 04,Worcestershire County Council,Adult Services & Health,AC-PROFIT,North Worcs Residential LD (Wyre Forest),S35511,FAVOR HOUSE HOMES,Third Party Payments Purchase of Long Term Care,53667,11/07/2016,7310408511,4337.2,,
Expenditure - Over 500,2016 04,Worcestershire County Council,Adult Services & Health,AC-PROFIT,North Worcs Short Breaks LD,S35510,FAVOR HOUSE HOMES,TPP Purchase of Planned Replacement Care,53666,11/07/2016,7310408845,10028.57,,
Expenditure - Over 500,2016 04,Worcestershire County Council,Adult Services & Health,AC-PROFIT,North Supported Living Scheme,S31367,FAVOR HOUSE HOMES,Third Party Payments Purchase of Long Term Care,53667,11/07/2016,7310409797,1848.32,,
Expenditure - Over 500,2016 04,Worcestershire County Council,Adult Services & Health,AC-PROFIT,Adults Housing Related Support,S42082,FCH HOUSING & CARE,Third Party Payments External Provider,54044,19/07/2016,4101576671,1066.66,,
Expenditure - Over 500,2016 04,Worcestershire County Council,Adult Services & Health,AC-PROFIT,LT Residential - OP,S35341,FIELD VIEW RESIDENTIAL HOME,Receipts Sales Long Term Residents,67047,11/07/2016,7310408491,1199.24,,
Expenditure - Over 500,2016 04,Worcestershire County Council,Adult Services & Health,AC-PROFIT,LT Residential - OP,S35341,FIELD VIEW RESIDENTIAL HOME,Receipts Sales Long Term Residents,67047,11/07/2016,7310408521,1845.89,,
Expenditure - Over 500,2016 04,Worcestershire County Council,Adult Services & Health,AC-PROFIT,COP Property Temporary Code,S35397,FIELD VIEW RESIDENTIAL HOME,Third Party Payments Purchase of Long Term Care,53667,11/07/2016,7310408687,1980,,
Expenditure - Over 500,2016 04,Worcestershire County Council,Adult Services & Health,AC-PROFIT,LT Residential - OP,S35341,FIELD VIEW RESIDENTIAL HOME,Receipts Sales Long Term Residents,67047,11/07/2016,7310408793,1397.2,,
Expenditure - Over 500,2016 04,Worcestershire County Council,Adult Services & Health,AC-PROFIT,LT Residential - OP,S35341,FIELD VIEW RESIDENTIAL HOME,Receipts Sales Long Term Residents,67047,11/07/2016,7310408841,2534.7,,
Expenditure - Over 500,2016 04,Worcestershire County Council,Adult Services & Health,AC-PROFIT,ST Residential - OP,S35343,FIELD VIEW RESIDENTIAL HOME,TPP Purchase of Planned Replacement Care,53666,11/07/2016,7310408843,957.2,,
Expenditure - Over 500,2016 04,Worcestershire County Council,Adult Services & Health,AC-PROFIT,Preserved Rights OP,S35309,FIELD VIEW RESIDENTIAL HOME,Receipts Sales Long Term Residents,67047,11/07/2016,7310408865,-863.35,,
Expenditure - Over 500,2016 04,Worcestershire County Council,Adult Services & Health,AC-PROFIT,ST Residential - OP,S35343,FIELD VIEW RESIDENTIAL HOME,TPP Purchase of Planned Replacement Care,53666,11/07/2016,7310408871,957.2,,
Expenditure - Over 500,2016 04,Worcestershire County Council,Adult Services & Health,AC-PROFIT,ST Residential - OP,S35343,FIELD VIEW RESIDENTIAL HOME,TPP Purchase of Planned Replacement Care,53666,11/07/2016,7310408879,957.2,,
Expenditure - Over 500,2016 04,Worcestershire County Council,Children's Services,CH-PROFIT,Early Years - 2 year old funding,E23050,FIRST CLASS NURSERY (KIDDERMINSTER),Third Party Pymts 4Yr Old Nursery Education Grant,53657,07/07/2016,7200026191,4523.5,,
Expenditure - Over 500,2016 04,Worcestershire County Council,Adult Services & Health,AC-PROFIT,LT Nursing - OP,S35342,HERITAGE MANOR LTD,Receipts Sales Long Term Residents,67047,11/07/2016,7310409929,1653.2,,
Expenditure - Over 500,2016 04,Worcestershire County Council,Adult Services & Health,AC-PROFIT,LT Nursing - OP,S35342,HERITAGE MANOR LTD,Receipts Sales Long Term Residents,67047,11/07/2016,7310409960,1660.88,,
Expenditure - Over 500,2016 04,Worcestershire County Council,Adult Services & Health,AC-PROFIT,LT Nursing - OP,S35342,HERITAGE MANOR LTD,Receipts Sales Long Term Residents,67047,11/07/2016,7310409969,1965.26,,
Expenditure - Over 500,2016 04,Worcestershire County Council,Adult Services & Health,AC-PROFIT,LT Nursing - OP,S35342,HERITAGE MANOR LTD,Third Party Payments Purchase of Long Term Care,53667,11/07/2016,7310409972,1817.08,,
Expenditure - Over 500,2016 04,Worcestershire County Council,Adult Services & Health,AC-PROFIT,LT Nursing - OP,S35342,HERITAGE MANOR LTD,Receipts Sales Long Term Residents,67047,11/07/2016,7310409993,1758.04,,
Expenditure - Over 500,2016 04,Worcestershire County Council,Adult Services & Health,AC-PROFIT,LT Nursing - OP,S35342,HERITAGE MANOR LTD,Third Party Payments Purchase of Long Term Care,53667,11/07/2016,7310410029,1959.52,,
Expenditure - Over 500,2016 04,Worcestershire County Council,Adult Services & Health,AC-PROFIT,LT Nursing - OP,S35342,HERITAGE MANOR LTD,Third Party Payments Purchase of Long Term Care,53667,11/07/2016,7310410034,1701.84,,
Expenditure - Over 500,2016 04,Worcestershire County Council,Adult Services & Health,AC-PROFIT,LT Nursing - OP,S35342,HERITAGE MANOR LTD,Third Party Payments Purchase of Long Term Care,53667,11/07/2016,7310410074,2481.24,,
Expenditure - Over 500,2016 04,Worcestershire County Council,Adult Services & Health,AC-PROFIT,LT Nursing - OP,S35342,HERITAGE MANOR LTD,Receipts Sales Long Term Residents,67047,11/07/2016,7310410077,1172.08,,
Expenditure - Over 500,2016 04,Worcestershire County Council,Adult Services & Health,AC-PROFIT,Equipment - Pooled Budgets,S31526,G & S SMIRTHWAITE LTD,Equipment Children SSD,49083,05/07/2016,4101569866,469,,
Expenditure - Over 500,2016 04,Worcestershire County Council,Adult Services & Health,AC-PROFIT,Equipment - Pooled Budgets,S31526,G & S SMIRTHWAITE LTD,Equipment Children SSD,49083,05/07/2016,4101569867,469,,
Expenditure - Over 500,2016 04,Worcestershire County Council,Adult Services & Health,AC-PROFIT,Equipment - Pooled Budgets,S31526,G & S SMIRTHWAITE LTD,Equipment Children SSD,49083,21/07/2016,4101577073,469,,
Expenditure - Over 500,2016 04,Worcestershire County Council,Adult Services & Health,AC-PROFIT,Equipment - Pooled Budgets,S31526,G & S SMIRTHWAITE LTD,Equipment Children SSD,49083,21/07/2016,4101577079,469,,
Expenditure - Over 500,2016 04,Worcestershire County Council,Adult Services & Health,AC-PROFIT,Field Service Projects,S80559,G RYDER & CO LTD,Stationery,49754,07/07/2016,4101571493,712.5,,
Expenditure - Over 500,2016 04,Worcestershire County Council,Adult Services & Health,AC-PROFIT,Residential - MH,S35641,GALLTFAENAN HALL,Third Party Payments Purchase of Long Term Care,53667,11/07/2016,7310409447,2984.04,,
Expenditure - Over 500,2016 04,Worcestershire County Council,Adult Services & Health,AC-PROFIT,LT Nursing - OP,S35342,GLENFIELD HOUSE NURSING HOME LTD,Receipts Sales Long Term Residents,67047,11/07/2016,7310408090,1617.36,,
Expenditure - Over 500,2016 04,Worcestershire County Council,Adult Services & Health,AC-PROFIT,LT Nursing - OP,S35342,GLENFIELD HOUSE NURSING HOME LTD,Third Party Payments Purchase of Long Term Care,53667,11/07/2016,7310408104,1741.08,,
Expenditure - Over 500,2016 04,Worcestershire County Council,Adult Services & Health,AC-PROFIT,LT Nursing - OP,S35342,GLENFIELD HOUSE NURSING HOME LTD,Receipts Sales Long Term Residents,67047,11/07/2016,7310408200,2021.64,,
Expenditure - Over 500,2016 04,Worcestershire County Council,Adult Services & Health,AC-PROFIT,LT Nursing - OP,S35342,GLENFIELD HOUSE NURSING HOME LTD,Receipts Sales Long Term Residents,67047,11/07/2016,7310408260,1698.84,,
Expenditure - Over 500,2016 04,Worcestershire County Council,Adult Services & Health,AC-PROFIT,LT Nursing - OP,S35342,GLENFIELD HOUSE NURSING HOME LTD,Receipts Sales Long Term Residents,67047,11/07/2016,7310408292,2161.08,,
Expenditure - Over 500,2016 04,Worcestershire County Council,Adult Services & Health,AC-ERROR,Adults & Community Servs Error Suspense,ACSSER001,GLENFIELD HOUSE NURSING HOME LTD,Adult & Community Servs - Other,98254,11/07/2016,7310408296,-544,,
Expenditure - Over 500,2016 04,Worcestershire County Council,Adult Services & Health,AC-ERROR,Adults & Community Servs Error Suspense,ACSSER001,GLENFIELD HOUSE NURSING HOME LTD,Adult & Community Servs - Other,98254,11/07/2016,7310408366,-656,,
Expenditure - Over 500,2016 04,Worcestershire County Council,Adult Services & Health,AC-PROFIT,PoP Placements,S35386,GLENFIELD HOUSE NURSING HOME LTD,TPP Purchase of Planned Replacement Care,53666,11/07/2016,7310408446,1142,,
Expenditure - Over 500,2016 04,Worcestershire County Council,Adult Services & Health,AC-PROFIT,Interim Care,S35385,GLENFIELD HOUSE NURSING HOME LTD,TPP Purchase of Planned Replacement Care,53666,11/07/2016,7310408448,656.57,,
Expenditure - Over 500,2016 04,Worcestershire County Council,Children's Services,CH-PROFIT,Inter-Auth Recoupment - Primary,E10032,GLOUCESTERSHIRE COUNTY COUNCIL,Third Party Payments Inter Authority Recoupment,52354,12/07/2016,4101573827,2306,,
Expenditure - Over 500,2016 04,Worcestershire County Council,Adult Services & Health,AC-PROFIT,LT Residential - OP,S35341,GRANGE HILL HOUSE RESIDENTIAL CARE,Third Party Payments Purchase of Long Term Care,53667,11/07/2016,7310409641,1120.92,,
Expenditure - Over 500,2016 04,Worcestershire County Council,Adult Services & Health,AC-PROFIT,LT Residential - OP,S35341,GRANGE HILL HOUSE RESIDENTIAL CARE,Third Party Payments Purchase of Long Term Care,53667,11/07/2016,7310409827,2022.88,,
Expenditure - Over 500,2016 04,Worcestershire County Council,Children's Services,CH-PROFIT,Early Years - 2 year old funding,E23050,GREAT WITLEY PRE-SCHOOL PLAYGROUP,Third Party Pymts 4Yr Old Nursery Education Grant,53657,07/07/2016,7200026195,819,,
Expenditure - Over 500,2016 04,Worcestershire County Council,Adult Services & Health,AC-PROFIT,LT Residential - OP,S35341,GREENHILL PARK RESIDENTIAL CARE HOM,Third Party Payments Purchase of Long Term Care,53667,11/07/2016,7310409169,995.08,,
Expenditure - Over 500,2016 04,Worcestershire County Council,Adult Services & Health,AC-PROFIT,LT Residential - OP,S35341,GREENHILL PARK RESIDENTIAL CARE HOM,Receipts Sales Long Term Residents,67047,11/07/2016,7310409251,1902.72,,
Expenditure - Over 500,2016 04,Worcestershire County Council,Adult Services & Health,AC-PROFIT,LT Residential - OP,S35341,GREENHILL PARK RESIDENTIAL CARE HOM,Receipts Sales Long Term Residents,67047,11/07/2016,7310409301,995.56,,
Expenditure - Over 500,2016 04,Worcestershire County Council,Adult Services & Health,AC-PROFIT,LT Residential - OP,S35341,GREENHILL PARK RESIDENTIAL CARE HOM,Receipts Sales Long Term Residents,67047,11/07/2016,7310409319,822.44,,
Expenditure - Over 500,2016 04,Worcestershire County Council,Non Directorate Specific,LA01,Tenbury Public Realm Improvements,CA60833,HALCROW GROUP LTD,CAPEX Profess & Tech Fees Other Ext Profess Fees,64457,04/07/2016,4101569371,1418.12,,
Expenditure - Over 500,2016 04,Worcestershire County Council,"Business, Environment & Community",EN-PROFIT,Development Control S278/38 Team,V16300,HALCROW GROUP LTD,Professional Fees,50031,04/07/2016,4101569372,990.32,,
Expenditure - Over 500,2016 04,Worcestershire County Council,"Business, Environment & Community",EN-PROFIT,Development Control S278/38 Team,V16300,HALCROW GROUP LTD,Professional Fees,50031,21/07/2016,4101543079,499.41,,
Expenditure - Over 500,2016 04,Worcestershire County Council,"Business, Environment & Community",EN-PROFIT,Contract Support & Development,V18007,HALCROW GROUP LTD,Professional Fees,50031,26/07/2016,4101515263,3729.41,,
Expenditure - Over 500,2016 04,Worcestershire County Council,"Business, Environment & Community",EN-DIR,Highways Status & Extent Team,V17450,HALCROW GROUP LTD,Professional Fees,50031,26/07/2016,4101515337,3075.25,,
Expenditure - Over 500,2016 04,Worcestershire County Council,"Business, Environment & Community",EN-PROFIT,Development Control S278/38 Team,V16300,HALCROW GROUP LTD,Professional Fees,50031,28/07/2016,4101580336,2002.29,,
Expenditure - Over 500,2016 04,Worcestershire County Council,"Business, Environment & Community",EN-PROFIT,Development Control S278/38 Team,V16300,HALCROW GROUP LTD,Professional Fees,50031,28/07/2016,4101580360,1689.16,,
Expenditure - Over 500,2016 04,Worcestershire County Council,"Business, Environment & Community",EN-PROFIT,Development Control S278/38 Team,V16300,HALCROW GROUP LTD,Professional Fees,50031,28/07/2016,4101580364,2053.98,,
Expenditure - Over 500,2016 04,Worcestershire County Council,"Business, Environment & Community",EN-PROFIT,Development Control S278/38 Team,V16300,HALCROW GROUP LTD,Professional Fees,50031,28/07/2016,4101580366,3151.07,,
Expenditure - Over 500,2016 04,Worcestershire County Council,"Business, Environment & Community",EN-PROFIT,Development Control S278/38 Team,V16300,HALCROW GROUP LTD,Professional Fees,50031,28/07/2016,4101580370,3049.17,,
Expenditure - Over 500,2016 04,Worcestershire County Council,"Business, Environment & Community",EN-PROFIT,Transport Planning Overheads,V19400,HALCROW GROUP LTD,Professional Fees,50031,28/07/2016,4101580381,9186.05,,
Expenditure - Over 500,2016 04,Worcestershire County Council,Non Directorate Specific,LA01,WTSMSB Real Time Information Syatems,CA40015,HALCROW GROUP LTD,CAPEX Profess & Tech Fees Other Ext Profess Fees,64457,28/07/2016,4101580382,2324.33,,
Expenditure - Over 500,2016 04,Worcestershire County Council,Non Directorate Specific,LA01,Worcestershire Parkway,CA60779,HALCROW GROUP LTD,CAPEX Profess & Tech Fees Other Ext Profess Fees,64457,28/07/2016,4101580414,20039.34,,
Expenditure - Over 500,2016 04,Worcestershire County Council,Children's Services,CH-PROFIT,Early Years - 2 year old funding,E23050,HANLEY SWAN PRE-SCHOOL PLAYGROUP,Third Party Pymts 4Yr Old Nursery Education Grant,53657,07/07/2016,7200026199,1280.5,,
Expenditure - Over 500,2016 04,Worcestershire County Council,Adult Services & Health,AC-PROFIT,LT Residential - OP,S35341,HAVEN HOME FOR THE ELDERLY,Third Party Payments Purchase of Long Term Care,53667,11/07/2016,7310408513,1721.12,,
Expenditure - Over 500,2016 04,Worcestershire County Council,Adult Services & Health,AC-PROFIT,LT Residential - OP,S35341,HAVEN HOME FOR THE ELDERLY,Third Party Payments Purchase of Long Term Care,53667,11/07/2016,7310408525,1336.28,,
Expenditure - Over 500,2016 04,Worcestershire County Council,Adult Services & Health,AC-PROFIT,Property Charge Temporary Code,S35398,HAVEN HOME FOR THE ELDERLY,Receipts Sales Long Term Residents,67047,11/07/2016,7310408541,1782.44,,
Expenditure - Over 500,2016 04,Worcestershire County Council,Adult Services & Health,AC-PROFIT,LT Residential - OP,S35341,HAVEN HOME FOR THE ELDERLY,Receipts Sales Long Term Residents,67047,11/07/2016,7310408583,1243.36,,
Expenditure - Over 500,2016 04,Worcestershire County Council,Adult Services & Health,AC-PROFIT,Property Charge Temporary Code,S35398,HAVEN HOME FOR THE ELDERLY,Third Party Payments Purchase of Long Term Care,53667,11/07/2016,7310408627,1782.12,,
Expenditure - Over 500,2016 04,Worcestershire County Council,Adult Services & Health,AC-PROFIT,COP Property Temporary Code,S35397,HAVEN HOME FOR THE ELDERLY,Third Party Payments Purchase of Long Term Care,53667,11/07/2016,7310408671,2696,,
Expenditure - Over 500,2016 04,Worcestershire County Council,Adult Services & Health,AC-PROFIT,LT Nursing - OP,S35342,HAVENCROFT NURSING HOME,Third Party Payments Purchase of Long Term Care,53667,11/07/2016,7310408567,1196.84,,
Expenditure - Over 500,2016 04,Worcestershire County Council,Adult Services & Health,AC-PROFIT,LT Nursing - OP,S35342,HAVENCROFT NURSING HOME,Third Party Payments Purchase of Long Term Care,53667,11/07/2016,7310408601,1285.2,,
Expenditure - Over 500,2016 04,Worcestershire County Council,Adult Services & Health,AC-PROFIT,LT Nursing - OP,S35342,HAVENCROFT NURSING HOME,Receipts Sales Long Term Residents,67047,11/07/2016,7310408747,1174.64,,
Expenditure - Over 500,2016 04,Worcestershire County Council,Adult Services & Health,AC-PROFIT,LT Nursing - OP,S35342,HAVENCROFT NURSING HOME,Receipts Sales Long Term Residents,67047,11/07/2016,7310408749,1677.24,,
Expenditure - Over 500,2016 04,Worcestershire County Council,Adult Services & Health,AC-PROFIT,LT Nursing - OP,S35342,HAVENCROFT NURSING HOME,Third Party Payments Purchase of Long Term Care,53667,11/07/2016,7310408777,1348.56,,
Expenditure - Over 500,2016 04,Worcestershire County Council,Adult Services & Health,AC-PROFIT,12-Week Disregard,S35308,HAVENCROFT NURSING HOME,Receipts Sales Long Term Residents,67047,11/07/2016,7310408877,1471.89,,
Expenditure - Over 500,2016 04,Worcestershire County Council,Adult Services & Health,AC-PROFIT,Day Care - OP,S33434,HEADWAY (WEST MIDLANDS) LTD,Third Party Payments Day Care Frm Independent Prov,53668,12/07/2016,7320507296,624,,
Expenditure - Over 500,2016 04,Worcestershire County Council,Children's Services,CH-PROFIT,Post 16 Students without a Statement,E24032,HALLMARK HULME LLP,Third Party Pymts Vol Assoc Indepen. Spec Sch Fees,53655,12/07/2016,4101573456,450,,
Expenditure - Over 500,2016 04,Worcestershire County Council,"Business, Environment & Community",EN-DIR,Concessionary Fares Administration,V21015,HANSONS (WORDSLEY) LIMITED,Third Party Pymnts Public Transport Operators,54005,25/07/2016,7190132591,2178.49,,
Expenditure - Over 500,2016 04,Worcestershire County Council,"Business, Environment & Community",EN-DIR,Local Bus WCC Services,V21020,HANSONS (WORDSLEY) LIMITED,Third Party Pymnts Other Hired & Contracted Servs,53986,07/07/2016,7190131936,4815.14,,
Expenditure - Over 500,2016 04,Worcestershire County Council,"Business, Environment & Community",EN-PROFIT,Principal inspections & Structural Inv,V17351,HALCROW GROUP LTD,Professional Fees,50031,28/07/2016,4101580635,-1355.61,,
Expenditure - Over 500,2016 04,Worcestershire County Council,"Business, Environment & Community",EN-PROFIT,SWDP - Transportation Studies,V19407,HALCROW GROUP LTD,Professional Fees,50031,28/07/2016,4101580509,8969.11,,
Expenditure - Over 500,2016 04,Worcestershire County Council,"Business, Environment & Community",EN-DIR,(189) Junc Deed Vari,V52093,HALCROW GROUP LTD,Professional Fees,50031,28/07/2016,4101580507,4604.15,,
Expenditure - Over 500,2016 04,Worcestershire County Council,"Business, Environment & Community",EN-PROFIT,Transport Planning Overheads,V19400,HALCROW GROUP LTD,Professional Fees,50031,28/07/2016,4101580503,6201.72,,
Expenditure - Over 500,2016 04,Worcestershire County Council,"Business, Environment & Community",EN-PROFIT,Transport Planning Overheads,V19400,HALCROW GROUP LTD,Professional Fees,50031,28/07/2016,4101580499,4967.84,,
Expenditure - Over 500,2016 04,Worcestershire County Council,"Business, Environment & Community",EN-PROFIT,Transport Planning Overheads,V19400,HALCROW GROUP LTD,Professional Fees,50031,28/07/2016,4101580497,22193.53,,
Expenditure - Over 500,2016 04,Worcestershire County Council,"Business, Environment & Community",EN-PROFIT,Transport Planning Overheads,V19400,HALCROW GROUP LTD,Professional Fees,50031,28/07/2016,4101580493,9184.83,,
Expenditure - Over 500,2016 04,Worcestershire County Council,Non Directorate Specific,LA01,Hoobrook Link Road Phase 2,CA40018,HALCROW GROUP LTD,CAPEX Profess & Tech Fees Other Ext Profess Fees,64457,28/07/2016,4101580488,16954.62,,
Expenditure - Over 500,2016 04,Worcestershire County Council,"Business, Environment & Community",EN-PROFIT,Development Control Planning Advice,V16310,HALCROW GROUP LTD,Professional Fees,50031,28/07/2016,4101580455,4906.7,,
Expenditure - Over 500,2016 04,Worcestershire County Council,Non Directorate Specific,LA01,WTSMSB Southern Link Road Dualling,CA40013,HALCROW GROUP LTD,CAPEX Profess & Tech Fees Other Ext Profess Fees,64457,28/07/2016,4101580447,66798.29,,
Expenditure - Over 500,2016 04,Worcestershire County Council,Resources,FS-PROFIT,Accountancy Section,F40301,HAYS SPECIALIST RECRUITMENT LTD,Services Bureau,50050,28/07/2016,4101581362,2125,,
Expenditure - Over 500,2016 04,Worcestershire County Council,Resources,FS-PROFIT,Accountancy Section,F40301,HAYS SPECIALIST RECRUITMENT LTD,Services Bureau,50050,12/07/2016,4101573806,2125,,
Expenditure - Over 500,2016 04,Worcestershire County Council,Resources,FS-PROFIT,Accountancy Section,F40301,HAYS SPECIALIST RECRUITMENT LTD,Services Bureau,50050,11/07/2016,4101572130,495,,
Expenditure - Over 500,2016 04,Worcestershire County Council,Resources,CS-PROFIT,COaCH Finance,C40031,HAYS SPECIALIST RECRUITMENT LTD,Services Bureau,50050,11/07/2016,4101569755,643.5,,
Expenditure - Over 500,2016 04,Worcestershire County Council,Non Directorate Specific,LA01,WTSMSB Southern Link Road Dualling,CA40013,HALCROW GROUP LTD,CAPEX Profess & Tech Fees Other Ext Profess Fees,64457,28/07/2016,4101580444,21978.04,,
Expenditure - Over 500,2016 04,Worcestershire County Council,"Business, Environment & Community",EN-PROFIT,SLR4,V19408,HALCROW GROUP LTD,Professional Fees,50031,28/07/2016,4101580440,61017.37,,
Expenditure - Over 500,2016 04,Worcestershire County Council,Non Directorate Specific,LA01,WTSMSB Southern Link Road Dualling,CA40013,HALCROW GROUP LTD,CAPEX Profess & Tech Fees Other Ext Profess Fees,64457,28/07/2016,4101580438,19731.68,,
Expenditure - Over 500,2016 04,Worcestershire County Council,"Business, Environment & Community",EN-PROFIT,Transport Planning Overheads,V19400,HALCROW GROUP LTD,Professional Fees,50031,28/07/2016,4101580435,1016.1,,
Expenditure - Over 500,2016 04,Worcestershire County Council,"Business, Environment & Community",EN-DIR,Transport Strategy Team,V19410,HALCROW GROUP LTD,Professional Fees,50031,28/07/2016,4101580429,1503.47,,
Expenditure - Over 500,2016 04,Worcestershire County Council,"Business, Environment & Community",EN-PROFIT,Transport Planning Overheads,V19400,HALCROW GROUP LTD,Professional Fees,50031,28/07/2016,4101580426,4306.51,,
Expenditure - Over 500,2016 04,Worcestershire County Council,Non Directorate Specific,LA01,Hoobrook Link Road Phase 2,CA40018,HALCROW GROUP LTD,CAPEX Profess & Tech Fees Other Ext Profess Fees,64457,28/07/2016,4101580422,10705.03,,
Expenditure - Over 500,2016 04,Worcestershire County Council,Non Directorate Specific,LA01,Kidderminster Transport Strategy,CA60778,HALCROW GROUP LTD,CAPEX Profess & Tech Fees Other Ext Profess Fees,64457,28/07/2016,4101580421,9994.42,,
Expenditure - Over 500,2016 04,Worcestershire County Council,Non Directorate Specific,LA01,WTSMSB Key Corridors,CA40014,HALCROW GROUP LTD,CAPEX Profess & Tech Fees Other Ext Profess Fees,64457,28/07/2016,4101580419,14345.13,,
Expenditure - Over 500,2016 04,Worcestershire County Council,Resources,CS-PROFIT,COaCH Finance,C40031,HAYS SPECIALIST RECRUITMENT LTD,Services Bureau,50050,26/07/2016,4101577437,636.35,,
Expenditure - Over 500,2016 04,Worcestershire County Council,Resources,FS-PROFIT,Accountancy Section,F40301,HAYS SPECIALIST RECRUITMENT LTD,Services Bureau,50050,19/07/2016,4101576813,2125,,
Expenditure - Over 500,2016 04,Worcestershire County Council,Resources,CS-PROFIT,COaCH Finance,C40031,HAYS SPECIALIST RECRUITMENT LTD,Services Bureau,50050,19/07/2016,4101572288,643.5,,
Expenditure - Over 500,2016 04,Worcestershire County Council,Adult Services & Health,AC-PROFIT,Block Zone Contract - OP,S33404,HELPING HANDS HOME CARE,Third Party Payments Dom Care Frm Independent Prov,53669,04/07/2016,7320503639,1906.78,,
Expenditure - Over 500,2016 04,Worcestershire County Council,Adult Services & Health,AC-PROFIT,Block Zone Contract PD,S33402,HELPING HANDS HOME CARE,Third Party Payments Dom Care Frm Independent Prov,53669,04/07/2016,7320503643,1379.18,,
Expenditure - Over 500,2016 04,Worcestershire County Council,Adult Services & Health,AC-PROFIT,Block Zone Contract - OP,S33404,HELPING HANDS HOME CARE,Third Party Payments Dom Care Frm Independent Prov,53669,04/07/2016,7320503645,521.64,,
Expenditure - Over 500,2016 04,Worcestershire County Council,Adult Services & Health,AC-PROFIT,Domiciliary Spot - OP,S33414,HELPING HANDS HOME CARE,Third Party Payments Dom Care Frm Independent Prov,53669,04/07/2016,7320504229,513.79,,
Expenditure - Over 500,2016 04,Worcestershire County Council,Adult Services & Health,AC-PROFIT,Domiciliary Spot - OP,S33414,HELPING HANDS HOME CARE,Third Party Payments Dom Care Frm Independent Prov,53669,04/07/2016,7320504230,692.72,,
Expenditure - Over 500,2016 04,Worcestershire County Council,Adult Services & Health,AC-PROFIT,Domiciliary Spot - OP,S33414,HELPING HANDS HOME CARE,Third Party Payments Dom Care Frm Independent Prov,53669,04/07/2016,7320504233,972.16,,
Expenditure - Over 500,2016 04,Worcestershire County Council,Adult Services & Health,AC-PROFIT,Domiciliary Spot - OP,S33414,HELPING HANDS HOME CARE,Third Party Payments Dom Care Frm Independent Prov,53669,04/07/2016,7320504236,744.51,,
Expenditure - Over 500,2016 04,Worcestershire County Council,Adult Services & Health,AC-PROFIT,Domiciliary Spot - OP,S33414,HELPING HANDS HOME CARE,Third Party Payments Dom Care Frm Independent Prov,53669,04/07/2016,7320504237,1471.12,,
Expenditure - Over 500,2016 04,Worcestershire County Council,Adult Services & Health,AC-PROFIT,Domiciliary Spot - OP,S33414,HELPING HANDS HOME CARE,Third Party Payments Dom Care Frm Independent Prov,53669,04/07/2016,7320504238,845.6,,
Expenditure - Over 500,2016 04,Worcestershire County Council,Adult Services & Health,AC-PROFIT,Domiciliary Spot - OP,S33414,HELPING HANDS HOME CARE,Third Party Payments Dom Care Frm Independent Prov,53669,04/07/2016,7320504239,785,,
Expenditure - Over 500,2016 04,Worcestershire County Council,Adult Services & Health,AC-PROFIT,Domiciliary Spot - PD,S33412,HELPING HANDS HOME CARE,Third Party Payments Dom Care Frm Independent Prov,53669,04/07/2016,7320504243,1164.2,,
Expenditure - Over 500,2016 04,Worcestershire County Council,Adult Services & Health,AC-PROFIT,Domiciliary Spot - OP,S33414,HELPING HANDS HOME CARE,Third Party Payments Dom Care Frm Independent Prov,53669,04/07/2016,7320504244,1241.72,,
Expenditure - Over 500,2016 04,Worcestershire County Council,Adult Services & Health,AC-PROFIT,Domiciliary Spot - OP,S33414,HELPING HANDS HOME CARE,Third Party Payments Dom Care Frm Independent Prov,53669,04/07/2016,7320504245,1054.4,,
Expenditure - Over 500,2016 04,Worcestershire County Council,Adult Services & Health,AC-PROFIT,Domiciliary Spot - OP,S33414,HELPING HANDS HOME CARE,Third Party Payments Dom Care Frm Independent Prov,53669,04/07/2016,7320504247,1770.58,,
Expenditure - Over 500,2016 04,Worcestershire County Council,Adult Services & Health,AC-PROFIT,Domiciliary Spot - OP,S33414,HELPING HANDS HOME CARE,Third Party Payments Dom Care Frm Independent Prov,53669,04/07/2016,7320504252,885.5,,
Expenditure - Over 500,2016 04,Worcestershire County Council,Adult Services & Health,AC-PROFIT,Domiciliary Spot - OP,S33414,HELPING HANDS HOME CARE,Third Party Payments Dom Care Frm Independent Prov,53669,04/07/2016,7320504253,801.8,,
Expenditure - Over 500,2016 04,Worcestershire County Council,Adult Services & Health,AC-PROFIT,Domiciliary Spot - OP,S33414,HELPING HANDS HOME CARE,Third Party Payments Dom Care Frm Independent Prov,53669,04/07/2016,7320504255,948.76,,
Expenditure - Over 500,2016 04,Worcestershire County Council,Adult Services & Health,AC-PROFIT,Domiciliary Spot - OP,S33414,HELPING HANDS HOME CARE,Third Party Payments Dom Care Frm Independent Prov,53669,04/07/2016,7320504256,532.76,,
Expenditure - Over 500,2016 04,Worcestershire County Council,Adult Services & Health,AC-PROFIT,Domiciliary Spot - PD,S33412,HELPING HANDS HOME CARE,Third Party Payments Dom Care Frm Independent Prov,53669,04/07/2016,7320504257,560.84,,
Expenditure - Over 500,2016 04,Worcestershire County Council,Adult Services & Health,AC-PROFIT,Domiciliary Spot - OP,S33414,HELPING HANDS HOME CARE,Third Party Payments Dom Care Frm Independent Prov,53669,04/07/2016,7320504258,693.95,,
Expenditure - Over 500,2016 04,Worcestershire County Council,Adult Services & Health,AC-PROFIT,Domiciliary Spot - OP,S33414,HELPING HANDS HOME CARE,Third Party Payments Dom Care Frm Independent Prov,53669,04/07/2016,7320504259,520.59,,
Expenditure - Over 500,2016 04,Worcestershire County Council,Adult Services & Health,AC-PROFIT,Domiciliary Spot - OP,S33414,HELPING HANDS HOME CARE,Third Party Payments Dom Care Frm Independent Prov,53669,04/07/2016,7320504260,768.27,,
Expenditure - Over 500,2016 04,Worcestershire County Council,Adult Services & Health,AC-PROFIT,Domiciliary Spot - OP,S33414,HELPING HANDS HOME CARE,Third Party Payments Dom Care Frm Independent Prov,53669,04/07/2016,7320504227,1736,,
Expenditure - Over 500,2016 04,Worcestershire County Council,Adult Services & Health,AC-PROFIT,Domiciliary Spot - PD,S33412,HELPING HANDS HOME CARE,Third Party Payments Dom Care Frm Independent Prov,53669,04/07/2016,7320504226,1114.5,,
Expenditure - Over 500,2016 04,Worcestershire County Council,Adult Services & Health,AC-PROFIT,Domiciliary Spot - OP,S33414,HELPING HANDS HOME CARE,Third Party Payments Dom Care Frm Independent Prov,53669,04/07/2016,7320504225,1229.2,,
Expenditure - Over 500,2016 04,Worcestershire County Council,Adult Services & Health,AC-PROFIT,LD North Domiciliary,S33413,HELPING HANDS HOME CARE,Third Party Payments Dom Care Frm Independent Prov,53669,04/07/2016,7320504224,960.96,,
Expenditure - Over 500,2016 04,Worcestershire County Council,Adult Services & Health,AC-PROFIT,Domiciliary Spot - OP,S33414,HELPING HANDS HOME CARE,Third Party Payments Dom Care Frm Independent Prov,53669,04/07/2016,7320504222,741.44,,
Expenditure - Over 500,2016 04,Worcestershire County Council,Adult Services & Health,AC-PROFIT,Domiciliary Spot - OP,S33414,HELPING HANDS HOME CARE,Third Party Payments Dom Care Frm Independent Prov,53669,04/07/2016,7320504221,692.72,,
Expenditure - Over 500,2016 04,Worcestershire County Council,Adult Services & Health,AC-PROFIT,Domiciliary - MH,S33411,HELPING HANDS HOME CARE,Third Party Payments Dom Care Frm Independent Prov,53669,04/07/2016,7320504220,549.2,,
Expenditure - Over 500,2016 04,Worcestershire County Council,Adult Services & Health,AC-PROFIT,Domiciliary Spot - PD,S33412,HELPING HANDS HOME CARE,Third Party Payments Dom Care Frm Independent Prov,53669,04/07/2016,7320504219,521.64,,
Expenditure - Over 500,2016 04,Worcestershire County Council,Adult Services & Health,AC-PROFIT,Domiciliary Spot - OP,S33414,HELPING HANDS HOME CARE,Third Party Payments Dom Care Frm Independent Prov,53669,04/07/2016,7320504218,521.64,,
Expenditure - Over 500,2016 04,Worcestershire County Council,Adult Services & Health,AC-PROFIT,Domiciliary Spot - OP,S33414,HELPING HANDS HOME CARE,Third Party Payments Dom Care Frm Independent Prov,53669,04/07/2016,7320504217,669.63,,
Expenditure - Over 500,2016 04,Worcestershire County Council,Adult Services & Health,AC-PROFIT,Domiciliary Spot - OP,S33414,HELPING HANDS HOME CARE,Third Party Payments Dom Care Frm Independent Prov,53669,04/07/2016,7320504215,511.24,,
Expenditure - Over 500,2016 04,Worcestershire County Council,Adult Services & Health,AC-PROFIT,Domiciliary Spot - OP,S33414,HELPING HANDS HOME CARE,Third Party Payments Dom Care Frm Independent Prov,53669,04/07/2016,7320504200,502.29,,
Expenditure - Over 500,2016 04,Worcestershire County Council,Adult Services & Health,AC-PROFIT,Domiciliary Spot - OP,S33414,HELPING HANDS HOME CARE,Third Party Payments Dom Care Frm Independent Prov,53669,04/07/2016,7320504190,944.64,,
Expenditure - Over 500,2016 04,Worcestershire County Council,Adult Services & Health,AC-PROFIT,Adults Housing Related Support,S42082,HEADWAY WORCESTERSHIRE,Third Party Payments External Provider,54044,19/07/2016,4101576672,12500,,
Expenditure - Over 500,2016 04,Worcestershire County Council,Adult Services & Health,AC-PROFIT,Domiciliary Spot - OP,S33414,HELPING HANDS HOME CARE,Third Party Payments Dom Care Frm Independent Prov,53669,04/07/2016,7320504261,706.8,,
Expenditure - Over 500,2016 04,Worcestershire County Council,Adult Services & Health,AC-PROFIT,Domiciliary Spot - OP,S33414,HELPING HANDS HOME CARE,Third Party Payments Dom Care Frm Independent Prov,53669,04/07/2016,7320504262,1011.64,,
Expenditure - Over 500,2016 04,Worcestershire County Council,Adult Services & Health,AC-PROFIT,Domiciliary Spot - OP,S33414,HELPING HANDS HOME CARE,Third Party Payments Dom Care Frm Independent Prov,53669,04/07/2016,7320504267,897.76,,
Expenditure - Over 500,2016 04,Worcestershire County Council,Adult Services & Health,AC-PROFIT,Domiciliary Spot - OP,S33414,HELPING HANDS HOME CARE,Third Party Payments Dom Care Frm Independent Prov,53669,04/07/2016,7320504268,560.84,,
Expenditure - Over 500,2016 04,Worcestershire County Council,Adult Services & Health,AC-PROFIT,Domiciliary Spot - OP,S33414,HELPING HANDS HOME CARE,Third Party Payments Dom Care Frm Independent Prov,53669,04/07/2016,7320504270,1044,,
Expenditure - Over 500,2016 04,Worcestershire County Council,Adult Services & Health,AC-PROFIT,Domiciliary Spot - OP,S33414,HELPING HANDS HOME CARE,Third Party Payments Dom Care Frm Independent Prov,53669,04/07/2016,7320504271,541.38,,
Expenditure - Over 500,2016 04,Worcestershire County Council,Adult Services & Health,AC-PROFIT,Domiciliary Spot - PD,S33412,HELPING HANDS HOME CARE,Third Party Payments Dom Care Frm Independent Prov,53669,04/07/2016,7320504274,831.88,,
Expenditure - Over 500,2016 04,Worcestershire County Council,Adult Services & Health,AC-PROFIT,Domiciliary Spot - OP,S33414,HELPING HANDS HOME CARE,Third Party Payments Dom Care Frm Independent Prov,53669,04/07/2016,7320504277,713.26,,
Expenditure - Over 500,2016 04,Worcestershire County Council,Adult Services & Health,AC-PROFIT,Domiciliary Spot - OP,S33414,HELPING HANDS HOME CARE,Third Party Payments Dom Care Frm Independent Prov,53669,04/07/2016,7320504280,1022.56,,
Expenditure - Over 500,2016 04,Worcestershire County Council,Adult Services & Health,AC-PROFIT,Domiciliary Spot - OP,S33414,HELPING HANDS HOME CARE,Third Party Payments Dom Care Frm Independent Prov,53669,04/07/2016,7320504281,773.8,,
Expenditure - Over 500,2016 04,Worcestershire County Council,Adult Services & Health,AC-PROFIT,Domiciliary Spot - OP,S33414,HELPING HANDS HOME CARE,Third Party Payments Dom Care Frm Independent Prov,53669,04/07/2016,7320504286,885.5,,
Expenditure - Over 500,2016 04,Worcestershire County Council,Adult Services & Health,AC-PROFIT,Domiciliary Spot - OP,S33414,HELPING HANDS HOME CARE,Third Party Payments Dom Care Frm Independent Prov,53669,04/07/2016,7320504292,584.15,,
Expenditure - Over 500,2016 04,Worcestershire County Council,Resources,PP-PROFIT,Sus - Waste Support,X81315,GARDEN ORGANIC,Expenses Project Activity Work,51674,25/07/2016,4101577403,588.77,,
Expenditure - Over 500,2016 04,Worcestershire County Council,Resources,PP-PROFIT,Sus - Waste Support,X81315,GARDEN ORGANIC,Misc Other Expenses,51619,25/07/2016,4101577404,458.5,,
Expenditure - Over 500,2016 04,Worcestershire County Council,Resources,PP-PROFIT,Sus - Waste Support,X81315,GARDEN ORGANIC,Misc Other Expenses,51619,25/07/2016,4101577405,485.24,,
Expenditure - Over 500,2016 04,Worcestershire County Council,Adult Services & Health,AC-PROFIT,LT Residential - PD,S35441,HENSHAWS YORKSHIRE,Receipts Sales Long Term Residents,67047,11/07/2016,7310409485,2813.72,,
Expenditure - Over 500,2016 04,Worcestershire County Council,Adult Services & Health,AC-PROFIT,Nursing - MH,S35642,HEREFORDSHIRE MIND,Third Party Payments Purchase of Long Term Care,53667,11/07/2016,7310409479,3823.32,,
Expenditure - Over 500,2016 04,Worcestershire County Council,Adult Services & Health,AC-PROFIT,South Worcester Residential LD,S35551,THE HESLEY GROUP LTD,Third Party Payments Purchase of Long Term Care,53667,11/07/2016,7310409799,17220.24,,
Expenditure - Over 500,2016 04,Worcestershire County Council,Children's Services,CH-PROFIT,Early Years - 2 year old funding,E23050,HICKORY DICKORY DOCK DAY NURSERY LT,Third Party Pymts 4Yr Old Nursery Education Grant,53657,07/07/2016,7200026206,877.5,,
Expenditure - Over 500,2016 04,Worcestershire County Council,Children's Services,CH-PROFIT,Primary Home/School Transport,E10037,HOLLAND COACHES,PTG - Transport Tendered / Cont. Services,46021,07/07/2016,7190132234,2236.82,,
Expenditure - Over 500,2016 04,Worcestershire County Council,Children's Services,CH-PROFIT,Primary Home/School Transport,E10037,HOLLAND COACHES,PTG - Transport Tendered / Cont. Services,46021,07/07/2016,7190132235,1468.31,,
Expenditure - Over 500,2016 04,Worcestershire County Council,Children's Services,CH-PROFIT,Primary Home/School Transport,E10037,HOLLAND COACHES,PTG - Transport Tendered / Cont. Services,46021,07/07/2016,7190132236,3195.31,,
Expenditure - Over 500,2016 04,Worcestershire County Council,Children's Services,CH-PROFIT,Primary Home/School Transport,E10037,HOLLAND COACHES,PTG - Transport Tendered / Cont. Services,46021,07/07/2016,7190132237,1347.27,,
Expenditure - Over 500,2016 04,Worcestershire County Council,Children's Services,CH-PROFIT,Special Home/School Transport,E10877,HOLLAND COACHES,PTG - Transport Tendered / Cont. Services,46021,11/07/2016,7190132361,1712,,
Expenditure - Over 500,2016 04,Worcestershire County Council,Children's Services,CH-PROFIT,Short Breaks on framework,E31529,HOLLAND COACHES,PTG - Transport Tendered / Cont. Services,46021,11/07/2016,7190132362,1952,,
Expenditure - Over 500,2016 04,Worcestershire County Council,Adult Services & Health,AC-PROFIT,LD Transport (PTG) North,S34844,HOLLAND COACHES,PTG - Transport Tendered / Cont. Services,46021,11/07/2016,7190132363,2193,,
Expenditure - Over 500,2016 04,Worcestershire County Council,Children's Services,CH-PROFIT,Short Breaks on framework,E31529,HOLLAND COACHES,PTG - Transport Tendered / Cont. Services,46021,11/07/2016,7190132371,3287,,
Expenditure - Over 500,2016 04,Worcestershire County Council,Children's Services,CH-PROFIT,Short Breaks on framework,E31529,HOLLAND COACHES,PTG - Transport Tendered / Cont. Services,46021,11/07/2016,7190132372,2070.81,,
Expenditure - Over 500,2016 04,Worcestershire County Council,Children's Services,CH-PROFIT,Short Breaks on framework,E31529,HOLLAND COACHES,PTG - Transport Tendered / Cont. Services,46021,11/07/2016,7190132373,2128,,
Expenditure - Over 500,2016 04,Worcestershire County Council,Children's Services,CH-PROFIT,Special Home/School Transport,E10877,HOLLAND COACHES,PTG - Transport Tendered / Cont. Services,46021,11/07/2016,7190132381,3042,,
Expenditure - Over 500,2016 04,Worcestershire County Council,Adult Services & Health,AC-PROFIT,LT Nursing - OP,S35342,BARCHESTER HEALTHCARE HOMES LTD,Third Party Payments Purchase of Long Term Care,53667,11/07/2016,7310407413,2939.6,,
Expenditure - Over 500,2016 04,Worcestershire County Council,Adult Services & Health,AC-PROFIT,Nursing - MH,S35642,BARCHESTER HEALTHCARE HOMES LTD,Third Party Payments Purchase of Long Term Care,53667,11/07/2016,7310407425,11645.7,,
Expenditure - Over 500,2016 04,Worcestershire County Council,Adult Services & Health,AC-PROFIT,LT Nursing - OP,S35342,BARCHESTER HEALTHCARE HOMES LTD,Receipts Sales Long Term Residents,67047,11/07/2016,7310407437,2095.84,,
Expenditure - Over 500,2016 04,Worcestershire County Council,Adult Services & Health,AC-PROFIT,North Worcs Nursing LD (Wyre Forest),S35512,BARCHESTER HEALTHCARE HOMES LTD,Third Party Payments Purchase of Long Term Care,53667,11/07/2016,7310407441,3016.84,,
Expenditure - Over 500,2016 04,Worcestershire County Council,Adult Services & Health,AC-PROFIT,North Worcs Nursing LD (Wyre Forest),S35512,BARCHESTER HEALTHCARE HOMES LTD,Third Party Payments Purchase of Long Term Care,53667,11/07/2016,7310407445,3511.04,,
Expenditure - Over 500,2016 04,Worcestershire County Council,Adult Services & Health,AC-PROFIT,LT Nursing - OP,S35342,BARCHESTER HEALTHCARE HOMES LTD,Third Party Payments Purchase of Long Term Care,53667,11/07/2016,7310407559,3006.04,,
Expenditure - Over 500,2016 04,Worcestershire County Council,Adult Services & Health,AC-PROFIT,LT Nursing - OP,S35342,BARCHESTER HEALTHCARE HOMES LTD,Third Party Payments Purchase of Long Term Care,53667,11/07/2016,7310407641,3928,,
Expenditure - Over 500,2016 04,Worcestershire County Council,Adult Services & Health,AC-PROFIT,LT Nursing - OP,S35342,BARCHESTER HEALTHCARE HOMES LTD,Third Party Payments Purchase of Long Term Care,53667,11/07/2016,7310407643,11532,,
Expenditure - Over 500,2016 04,Worcestershire County Council,Adult Services & Health,AC-PROFIT,LT Nursing - OP,S35342,BARCHESTER HEALTHCARE HOMES LTD,Third Party Payments Purchase of Long Term Care,53667,11/07/2016,7310407655,1939.96,,
Expenditure - Over 500,2016 04,Worcestershire County Council,Adult Services & Health,AC-PROFIT,LT Nursing - OP,S35342,BARCHESTER HEALTHCARE HOMES LTD,Receipts Sales Long Term Residents,67047,11/07/2016,7310407657,3182.16,,
Expenditure - Over 500,2016 04,Worcestershire County Council,Adult Services & Health,AC-PROFIT,LT Nursing - OP,S35342,BARCHESTER HEALTHCARE HOMES LTD,Receipts Sales Long Term Residents,67047,11/07/2016,7310407769,7506.25,,
Expenditure - Over 500,2016 04,Worcestershire County Council,Adult Services & Health,AC-PROFIT,LT Nursing - OP,S35342,BARCHESTER HEALTHCARE HOMES LTD,Third Party Payments Purchase of Long Term Care,53667,11/07/2016,7310407809,8916,,
Expenditure - Procurement Card,2016 04,Worcestershire County Council,Children's Services,CH-PROFIT,"Green Fingers, Healthy Care in Action Pr",E24044,HOMEBASE LTD 027,Expenses Educational Visits,51668,06/07/2016,4600127335,19.97,LUMBER/BUILD. SUPPLY STORES,5211
Expenditure - Procurement Card,2016 04,Worcestershire County Council,Children's Services,CH-PROFIT,S17 Care Leavers Team,E36604,HOMEBASE LTD 352,Care Grants,51006,12/07/2016,4600127921,10.47,LUMBER/BUILD. SUPPLY STORES,5211
Expenditure - Over 500,2016 04,Worcestershire County Council,Adult Services & Health,AC-PROFIT,LT Residential - OP,S35341,HOPWOOD COURT RETIREMENT HOME,Third Party Payments Purchase of Long Term Care,53667,11/07/2016,7310409079,1146.61,,
Expenditure - Over 500,2016 04,Worcestershire County Council,Adult Services & Health,AC-PROFIT,LT Residential - OP,S35341,HOPWOOD COURT RETIREMENT HOME,Third Party Payments Purchase of Long Term Care,53667,11/07/2016,7310409145,1024.4,,
Expenditure - Over 500,2016 04,Worcestershire County Council,Adult Services & Health,AC-PROFIT,LT Residential - OP,S35341,HOPWOOD COURT RETIREMENT HOME,Receipts Sales Long Term Residents,67047,11/07/2016,7310409213,1136.24,,
Expenditure - Over 500,2016 04,Worcestershire County Council,Adult Services & Health,AC-PROFIT,LT Residential - OP,S35341,HOPWOOD COURT RETIREMENT HOME,Third Party Payments Purchase of Long Term Care,53667,11/07/2016,7310409223,1365.76,,
Expenditure - Over 500,2016 04,Worcestershire County Council,Adult Services & Health,AC-PROFIT,Equipment - Pooled Budgets,S31526,HOSPITAL DIRECT (MARKETING) LTD,Equipment Adults SDD,49084,04/07/2016,4101569841,1645,,
Expenditure - Over 500,2016 04,Worcestershire County Council,Children's Services,CH-PROFIT,Special Home/School Transport,E10877,I & I TRANSPORT LTD,PTG - Transport Tendered / Cont. Services,46021,07/07/2016,7190132071,3268,,
Expenditure - Over 500,2016 04,Worcestershire County Council,Adult Services & Health,AC-PROFIT,LD Transport (PTG) North,S34844,I & I TRANSPORT LTD,PTG - Adhoc Transport,46506,07/07/2016,7190132073,840,,
Expenditure - Over 500,2016 04,Worcestershire County Council,Children's Services,CH-PROFIT,Special Home/School Transport,E10877,I & I TRANSPORT LTD,PTG - Transport Tendered / Cont. Services,46021,07/07/2016,7190132075,1875,,
Expenditure - Over 500,2016 04,Worcestershire County Council,Adult Services & Health,AC-PROFIT,LD Transport (PTG) North,S34844,I & I TRANSPORT LTD,PTG - Transport Tendered / Cont. Services,46021,07/07/2016,7190132079,2070,,
Expenditure - Over 500,2016 04,Worcestershire County Council,Adult Services & Health,AC-PROFIT,LD Transport (PTG) North,S34844,I & I TRANSPORT LTD,PTG - Adhoc Transport,46506,11/07/2016,7190132420,440,,
Expenditure - Over 500,2016 04,Worcestershire County Council,Adult Services & Health,AC-DIR,Archives & Archaeology Core,S80700,ICAM ARCHIVE SYSTEMS LTD,Computing Software,50319,18/07/2016,4101575796,4700,,
Expenditure - Over 500,2016 04,Worcestershire County Council,Adult Services & Health,AC-PROFIT,Equipment - Pooled Budgets,S31526,JAMES LECKEY DESIGN,Equip Children Physio,49094,19/07/2016,4101576435,1864,,
Expenditure - Over 500,2016 04,Worcestershire County Council,Adult Services & Health,AC-PROFIT,Equipment - Pooled Budgets,S31526,JCM SEATING SOLUTIONS LTD,Equipment Children SSD,49083,11/07/2016,4101572143,2652.96,,
Expenditure - Over 500,2016 04,Worcestershire County Council,Adult Services & Health,AC-PROFIT,Equipment - Pooled Budgets,S31526,JCM SEATING SOLUTIONS LTD,Equipment Children SSD,49083,11/07/2016,4101572148,2583.41,,
Expenditure - Over 500,2016 04,Worcestershire County Council,Adult Services & Health,AC-PROFIT,Equipment - Pooled Budgets,S31526,JCM SEATING SOLUTIONS LTD,Equipment Children SSD,49083,25/07/2016,4101576398,2016.99,,
Expenditure - Over 500,2016 04,Worcestershire County Council,"Business, Environment & Community",EN-DIR,Concessionary Fares Administration,V21015,JMP CONSULTANTS LTD,Professional Fees,50031,25/07/2016,4101579030,1680,,
Expenditure - Over 500,2016 04,Worcestershire County Council,"Business, Environment & Community",EN-DIR,Local Bus WCC Services,V21020,JOHNSONS COACH TRAVEL,Third Party Pymnts Other Hired & Contracted Servs,53986,07/07/2016,7190131939,2300,,
Expenditure - Over 500,2016 04,Worcestershire County Council,"Business, Environment & Community",EN-DIR,Local Bus WCC Services,V21020,JOHNSONS COACH TRAVEL,Third Party Pymnts Other Hired & Contracted Servs,53986,07/07/2016,7190131962,4910,,
Expenditure - Over 500,2016 04,Worcestershire County Council,"Business, Environment & Community",EN-DIR,Concessionary Fares Administration,V21015,JOHNSONS COACH TRAVEL,Third Party Pymnts Public Transport Operators,54005,12/07/2016,7190132455,8198.34,,
Expenditure - Procurement Card,2016 04,Worcestershire County Council,Children's Services,CH-PROFIT,Orchardene Residential Unit,E31764,HOMEBASE LTD 027,Repairs & Maintenance Grounds  Routine Mainte,42014,30/07/2016,4600130856,12.46,LUMBER/BUILD. SUPPLY STORES,5211
Expenditure - Procurement Card,2016 04,Worcestershire County Council,Children's Services,CH-PROFIT,Green Hill Lodge,E31761,HOMEBASE LTD 352,Equipment & Furniture,49001,26/07/2016,4600130408,74.97,LUMBER/BUILD. SUPPLY STORES,5211
Expenditure - Procurement Card,2016 04,Worcestershire County Council,Children's Services,CH-PROFIT,"Green Fingers, Healthy Care in Action Pr",E24044,HOMEBASE LTD 027,Educational Equip,49019,23/07/2016,4600130050,21.96,LUMBER/BUILD. SUPPLY STORES,5211
Expenditure - Procurement Card,2016 04,Worcestershire County Council,Children's Services,CH-PROFIT,"Green Fingers, Healthy Care in Action Pr",E24044,HOMEBASE LTD 299,Expenses Educational Visits,51668,23/07/2016,4600130217,11.96,LUMBER/BUILD. SUPPLY STORES,5211
Expenditure - Procurement Card,2016 04,Worcestershire County Council,Children's Services,CH-PROFIT,Green Hill Lodge,E31761,HOMEBASE LTD 352,Equipment & Furniture,49001,22/07/2016,4600129845,-3.33,LUMBER/BUILD. SUPPLY STORES,5211
Expenditure - Procurement Card,2016 04,Worcestershire County Council,Children's Services,CH-PROFIT,Green Hill Lodge,E31761,HOMEBASE LTD 352,Equipment & Furniture,49001,22/07/2016,4600129844,5.82,LUMBER/BUILD. SUPPLY STORES,5211
Expenditure - Over 500,2016 04,Worcestershire County Council,Children's Services,CH-PROFIT,Short Breaks on framework,E31529,HOLLAND COACHES,PTG - Adhoc Transport,46506,28/07/2016,7190132679,665,,
Expenditure - Over 500,2016 04,Worcestershire County Council,Children's Services,CH-PROFIT,DSG Post 16 SEN payments,E28212,HEREWARD COLLEGE,Third Party Pymts Vol Assoc Indepen. Spec Sch Fees,53655,07/07/2016,4101573243,-1088.66,,
Expenditure - Over 500,2016 04,Worcestershire County Council,Children's Services,CH-PROFIT,DSG Post 16 SEN payments,E28212,HEREWARD COLLEGE,Third Party Pymts Vol Assoc Indepen. Spec Sch Fees,53655,07/07/2016,4101568636,1088.66,,
Expenditure - Over 500,2016 04,Worcestershire County Council,Children's Services,CH-PROFIT,DSG Post 16 SEN payments,E28212,HEREWARD COLLEGE,Third Party Pymts Vol Assoc Indepen. Spec Sch Fees,53655,07/07/2016,4101573246,5646.4,,
Expenditure - Over 500,2016 04,Worcestershire County Council,Children's Services,CH-PROFIT,DSG Post 16 SEN payments,E28212,HEREWARD COLLEGE,Third Party Pymts Vol Assoc Indepen. Spec Sch Fees,53655,07/07/2016,4101533666,-5646.4,,
Expenditure - Over 500,2016 04,Worcestershire County Council,Adult Services & Health,AC-PROFIT,Domiciliary Spot - OP,S33414,HELPING HANDS HOME CARE,Third Party Payments Dom Care Frm Independent Prov,53669,21/07/2016,7320509640,511,,
Expenditure - Over 500,2016 04,Worcestershire County Council,Adult Services & Health,AC-PROFIT,Block Zone Contract - OP,S33404,HELPING HANDS HOME CARE,Third Party Payments Dom Care Frm Independent Prov,53669,12/07/2016,7320507280,1074.44,,
Expenditure - Over 500,2016 04,Worcestershire County Council,Adult Services & Health,AC-PROFIT,Block Zone Contract - OP,S33404,HELPING HANDS HOME CARE,Third Party Payments Dom Care Frm Independent Prov,53669,12/07/2016,7320507249,1110.57,,
Expenditure - Over 500,2016 04,Worcestershire County Council,Adult Services & Health,AC-PROFIT,Block Zone Contract - OP,S33404,HELPING HANDS HOME CARE,Third Party Payments Dom Care Frm Independent Prov,53669,04/07/2016,7320505129,659.4,,
Expenditure - Over 500,2016 04,Worcestershire County Council,Adult Services & Health,AC-PROFIT,Block Zone Contract - OP,S33404,HELPING HANDS HOME CARE,Third Party Payments Dom Care Frm Independent Prov,53669,04/07/2016,7320505127,560.84,,
Expenditure - Over 500,2016 04,Worcestershire County Council,Adult Services & Health,AC-PROFIT,Block Zone Contract - OP,S33404,HELPING HANDS HOME CARE,Third Party Payments Dom Care Frm Independent Prov,53669,04/07/2016,7320505125,1494.42,,
Expenditure - Over 500,2016 04,Worcestershire County Council,Adult Services & Health,AC-PROFIT,Block Zone Contract - OP,S33404,HELPING HANDS HOME CARE,Third Party Payments Dom Care Frm Independent Prov,53669,04/07/2016,7320505124,560.84,,
Expenditure - Over 500,2016 04,Worcestershire County Council,Adult Services & Health,AC-PROFIT,Domiciliary Spot - OP,S33414,HELPING HANDS HOME CARE,Third Party Payments Dom Care Frm Independent Prov,53669,04/07/2016,7320504296,1011.64,,
Expenditure - Over 500,2016 04,Worcestershire County Council,Adult Services & Health,AC-PROFIT,Domiciliary Spot - OP,S33414,HELPING HANDS HOME CARE,Third Party Payments Dom Care Frm Independent Prov,53669,04/07/2016,7320504294,560.84,,
Expenditure - Over 500,2016 04,Worcestershire County Council,Adult Services & Health,AC-PROFIT,Equipment - Pooled Budgets,S31526,JCM SEATING SOLUTIONS LTD,Equipment Children SSD,49083,18/07/2016,4101573500,1856.52,,
Expenditure - Over 500,2016 04,Worcestershire County Council,Adult Services & Health,AC-PROFIT,Equipment - Pooled Budgets,S31526,JCM SEATING SOLUTIONS LTD,Equipment Children SSD,49083,12/07/2016,4101573618,3075.09,,
Expenditure - Over 500,2016 04,Worcestershire County Council,Adult Services & Health,AC-PROFIT,Equipment - Pooled Budgets,S31526,HSBC INVOICE FINANCE (UK) LTD,Equipment Adults SDD,49084,21/07/2016,4101577127,579.8,,
Expenditure - Over 500,2016 04,Worcestershire County Council,Adult Services & Health,AC-PROFIT,Domiciliary Spot - OP,S33414,HELPING HANDS HOME CARE,Third Party Payments Dom Care Frm Independent Prov,53669,25/07/2016,7320511221,887.56,,
Expenditure - Over 500,2016 04,Worcestershire County Council,Adult Services & Health,AC-PROFIT,Domiciliary Spot - OP,S33414,HELPING HANDS HOME CARE,Third Party Payments Dom Care Frm Independent Prov,53669,07/07/2016,7320505914,665,,
Expenditure - Over 500,2016 04,Worcestershire County Council,Adult Services & Health,AC-PROFIT,Domiciliary Spot - OP,S33414,HELPING HANDS HOME CARE,Third Party Payments Dom Care Frm Independent Prov,53669,07/07/2016,7320505913,560.84,,
Expenditure - Over 500,2016 04,Worcestershire County Council,Adult Services & Health,AC-PROFIT,Domiciliary Spot - OP,S33414,HELPING HANDS HOME CARE,Third Party Payments Dom Care Frm Independent Prov,53669,07/07/2016,7320505911,623.64,,
Expenditure - Over 500,2016 04,Worcestershire County Council,Adult Services & Health,AC-PROFIT,Block Zone Contract PD,S33402,HELPING HANDS HOME CARE,Third Party Payments Dom Care Frm Independent Prov,53669,07/07/2016,7320505146,914.95,,
Expenditure - Over 500,2016 04,Worcestershire County Council,"Business, Environment & Community",EN-PROFIT,"Management, Admin, Prof & Eng",V83000,IMPACT PRINT & DESIGN LTD,"Printing, Stationery & Gen Office External",49758,11/07/2016,4101572360,1183,,
Expenditure - Over 500,2016 04,Worcestershire County Council,Adult Services & Health,AC-PROFIT,Equipment - Pooled Budgets,S31526,LANGHAM PRODUCTS,Equipment Adults SDD,49084,11/07/2016,4101572067,557.5,,
Expenditure - Over 500,2016 04,Worcestershire County Council,Adult Services & Health,AC-PROFIT,Equipment - Pooled Budgets,S31526,LANGHAM PRODUCTS,Equipment Adults SDD,49084,18/07/2016,4101574910,878.56,,
Expenditure - Over 500,2016 04,Worcestershire County Council,Adult Services & Health,AC-PROFIT,LT Residential - OP,S35341,LAWNS RESIDENTIAL CARE HOME LTD,Receipts Sales Long Term Residents,67047,11/07/2016,7310408623,1221.96,,
Expenditure - Over 500,2016 04,Worcestershire County Council,Adult Services & Health,AC-PROFIT,Property Charge Temporary Code,S35398,LAWNS RESIDENTIAL CARE HOME LTD,Third Party Payments Purchase of Long Term Care,53667,11/07/2016,7310408691,1042.56,,
Expenditure - Over 500,2016 04,Worcestershire County Council,Adult Services & Health,AC-PROFIT,LT Residential - OP,S35341,LAWNS RESIDENTIAL CARE HOME LTD,Third Party Payments Purchase of Long Term Care,53667,11/07/2016,7310408713,1245.88,,
Expenditure - Over 500,2016 04,Worcestershire County Council,Adult Services & Health,AC-PROFIT,LT Residential - OP,S35341,LAWNS RESIDENTIAL CARE HOME LTD,Third Party Payments Purchase of Long Term Care,53667,11/07/2016,7310408733,1416.98,,
Expenditure - Over 500,2016 04,Worcestershire County Council,Adult Services & Health,AC-PROFIT,12-Week Disregard,S35308,LAWNS RESIDENTIAL CARE HOME LTD,Receipts Sales Long Term Residents,67047,11/07/2016,7310408837,1205.2,,
Expenditure - Over 500,2016 04,Worcestershire County Council,Children's Services,CH-PROFIT,Early Years - 2 year old funding,E23050,LEAPFROG DAY NURSERIES LTD,Third Party Pymts 4Yr Old Nursery Education Grant,53657,07/07/2016,7200026162,4064.5,,
Expenditure - Over 500,2016 04,Worcestershire County Council,Children's Services,CH-PROFIT,Early Years - 2 year old funding,E23050,LEAPFROG DAY NURSERIES (TRADING) LT,Third Party Pymts 4Yr Old Nursery Education Grant,53657,07/07/2016,7200026161,2091.5,,
Expenditure - Over 500,2016 04,Worcestershire County Council,Adult Services & Health,AC-PROFIT,LT Residential - PD,S35441,LEONARD CHESHIRE FOUNDATION,Receipts Sales Long Term Residents,67047,11/07/2016,7310409383,2316.88,,
Expenditure - Over 500,2016 04,Worcestershire County Council,Resources,CS-PROFIT,ICT 3rd Party Payments - Managed Service,C40171,EMERSON NETWORK POWER LTD,Equipment Office Equipment Maintenance,49067,19/07/2016,4101576876,2929.96,,
Expenditure - Over 500,2016 04,Worcestershire County Council,Children's Services,CH-PROFIT,Early Years - 2 year old funding,E23050,LILLIPUT FARM NURSERY,Third Party Pymts 4Yr Old Nursery Education Grant,53657,07/07/2016,7200026227,650,,
Expenditure - Over 500,2016 04,Worcestershire County Council,Children's Services,CH-PROFIT,Early Years - 2 year old funding,E23050,LINDRIDGE PRE-SCHOOL GROUP,Third Party Pymts 4Yr Old Nursery Education Grant,53657,07/07/2016,7200026228,1950,,
Expenditure - Over 500,2016 04,Worcestershire County Council,Children's Services,CH-PROFIT,Early Years - 2 year old funding,E23050,LITTLE BEARS NURSERY,Third Party Pymts 4Yr Old Nursery Education Grant,53657,07/07/2016,7200026230,712.5,,
Expenditure - Over 500,2016 04,Worcestershire County Council,Children's Services,CH-PROFIT,Early Years - 2 year old funding,E23050,LITTLE LODGE NURSERY SCHOOL,Third Party Pymts 4Yr Old Nursery Education Grant,53657,07/07/2016,7200026234,1991.5,,
Expenditure - Over 500,2016 04,Worcestershire County Council,Children's Services,CH-PROFIT,Early Years - 2 year old funding,E23050,TINY TOEZ AT LITTLE LORDS AND LADIE,Third Party Pymts 4Yr Old Nursery Education Grant,53657,07/07/2016,7200026324,4050,,
Expenditure - Over 500,2016 04,Worcestershire County Council,Adult Services & Health,AC-PROFIT,LD Transport (PTG) South,S34866,LMS TRAVEL,PTG - Transport Tendered / Cont. Services,46021,07/07/2016,7190131996,2213.5,,
Expenditure - Over 500,2016 04,Worcestershire County Council,Children's Services,CH-PROFIT,Secondary - SEN H/S Transport,E20802,LMS TRAVEL,PTG - Transport Tendered / Cont. Services,46021,07/07/2016,7190132000,1881,,
Expenditure - Over 500,2016 04,Worcestershire County Council,Children's Services,CH-PROFIT,Special Home/School Transport,E10877,LMS TRAVEL,PTG - Transport Tendered / Cont. Services,46021,07/07/2016,7190132001,3078,,
Expenditure - Over 500,2016 04,Worcestershire County Council,Children's Services,CH-PROFIT,Special Home/School Transport,E10877,LMS TRAVEL,PTG - Transport Tendered / Cont. Services,46021,07/07/2016,7190132002,3181.55,,
Expenditure - Over 500,2016 04,Worcestershire County Council,Children's Services,CH-PROFIT,Special Home/School Transport,E10877,LMS TRAVEL,PTG - Transport Tendered / Cont. Services,46021,07/07/2016,7190132008,3287,,
Expenditure - Over 500,2016 04,Worcestershire County Council,Children's Services,CH-PROFIT,Post 16 - SEN H/S Transport,E20803,LMS TRAVEL,PTG - Transport Tendered / Cont. Services,46021,07/07/2016,7190132009,2783.5,,
Expenditure - Over 500,2016 04,Worcestershire County Council,Children's Services,CH-PROFIT,Post 16 - SEN H/S Transport,E20803,LMS TRAVEL,PTG - Transport Tendered / Cont. Services,46021,07/07/2016,7190132010,3496,,
Expenditure - Over 500,2016 04,Worcestershire County Council,Children's Services,CH-PROFIT,Primary Home/School Transport,E10037,LMS TRAVEL,PTG - Transport Tendered / Cont. Services,46021,07/07/2016,7190132011,570,,
Expenditure - Over 500,2016 04,Worcestershire County Council,Children's Services,CH-PROFIT,Secondary Home/School Transport,E10707,LMS TRAVEL,PTG - Transport Tendered / Cont. Services,46021,07/07/2016,7190132227,2600,,
Expenditure - Over 500,2016 04,Worcestershire County Council,Children's Services,CH-PROFIT,Secondary Home/School Transport,E10707,LMS TRAVEL,PTG - Transport Tendered / Cont. Services,46021,07/07/2016,7190132228,1600,,
Expenditure - Over 500,2016 04,Worcestershire County Council,"Business, Environment & Community",EN-DIR,Local Bus WCC Services,V21020,LMS TRAVEL,Third Party Pymnts Other Hired & Contracted Servs,53986,11/07/2016,7190132287,7256.5,,
Expenditure - Over 500,2016 04,Worcestershire County Council,"Business, Environment & Community",EN-DIR,Local Bus WCC Services,V21020,LMS TRAVEL,Third Party Pymnts Other Hired & Contracted Servs,53986,11/07/2016,7190132289,14596,,
Expenditure - Over 500,2016 04,Worcestershire County Council,"Business, Environment & Community",EN-DIR,Local Bus WCC Services,V21020,LMS TRAVEL,Third Party Pymnts Other Hired & Contracted Servs,53986,11/07/2016,7190132290,5638.1,,
Expenditure - Over 500,2016 04,Worcestershire County Council,"Business, Environment & Community",EN-DIR,Concessionary Fares Administration,V21015,LMS TRAVEL,Third Party Pymnts Public Transport Operators,54005,12/07/2016,7190132456,4615.32,,
Expenditure - Over 500,2016 04,Worcestershire County Council,"Business, Environment & Community",EN-DIR,Local Bus WCC Services,V21020,LMS TRAVEL,Third Party Pymnts Other Hired & Contracted Servs,53986,12/07/2016,7190132474,6019.5,,
Expenditure - Over 500,2016 04,Worcestershire County Council,Children's Services,CH-PROFIT,FE Home/College Transport,E20227,LMS TRAVEL,PTG - Public Transport Bus,47514,28/07/2016,7190132663,891,,
Expenditure - Over 500,2016 04,Worcestershire County Council,Adult Services & Health,AC-PROFIT,North Worcs Residential LD (Wyre Forest),S35511,LORNE HOUSE,Receipts Sales Long Term Residents,67047,11/07/2016,7310409478,1319.84,,
Expenditure - Over 500,2016 04,Worcestershire County Council,Adult Services & Health,AC-PROFIT,North Worcs Residential LD (Wyre Forest),S35511,LORNE HOUSE,Receipts Sales Long Term Residents,67047,11/07/2016,7310409480,1038.76,,
Expenditure - Over 500,2016 04,Worcestershire County Council,Adult Services & Health,AC-PROFIT,LT Residential - OP,S35341,LORNE HOUSE,Receipts Sales Long Term Residents,67047,11/07/2016,7310409482,1069.72,,
Expenditure - Over 500,2016 04,Worcestershire County Council,Adult Services & Health,AC-PROFIT,North Worcs Residential LD (Wyre Forest),S35511,LORNE HOUSE,Third Party Payments Purchase of Long Term Care,53667,11/07/2016,7310409484,1498.24,,
Expenditure - Over 500,2016 04,Worcestershire County Council,Adult Services & Health,AC-PROFIT,North Worcs Residential LD (Wyre Forest),S35511,LORNE HOUSE,Third Party Payments Purchase of Long Term Care,53667,11/07/2016,7310409486,1583,,
Expenditure - Over 500,2016 04,Worcestershire County Council,Adult Services & Health,AC-PROFIT,North Worcs Residential LD (Wyre Forest),S35511,LORNE HOUSE,Third Party Payments Purchase of Long Term Care,53667,11/07/2016,7310409488,2493.36,,
Expenditure - Over 500,2016 04,Worcestershire County Council,Adult Services & Health,AC-PROFIT,North Worcs Residential LD (Wyre Forest),S35511,LORNE HOUSE,Third Party Payments Purchase of Long Term Care,53667,11/07/2016,7310409490,1082.64,,
Expenditure - Over 500,2016 04,Worcestershire County Council,Adult Services & Health,AC-PROFIT,North Worcs Residential LD (Wyre Forest),S35511,LORNE HOUSE,Receipts Sales Long Term Residents,67047,11/07/2016,7310409496,1565.72,,
Expenditure - Over 500,2016 04,Worcestershire County Council,Adult Services & Health,AC-PROFIT,North Worcs Residential LD (Wyre Forest),S35511,LORNE HOUSE,Receipts Sales Long Term Residents,67047,11/07/2016,7310409510,1337.2,,
Expenditure - Over 500,2016 04,Worcestershire County Council,Adult Services & Health,AC-PROFIT,Preserved Rights OP,S35309,LORNE HOUSE,Receipts Sales Long Term Residents,67047,11/07/2016,7310409754,-528.04,,
Expenditure - Over 500,2016 04,Worcestershire County Council,Children's Services,CH-PROFIT,Early Years - 2 year old funding,E23050,LUCY LOCKET KINDERGARTENS LTD,Third Party Pymts 4Yr Old Nursery Education Grant,53657,07/07/2016,7200026242,877.5,,
Expenditure - Over 500,2016 04,Worcestershire County Council,Adult Services & Health,AC-PROFIT,North Supported Living Scheme,S31367,MACINTYRE,Third Party Payments Purchase of Long Term Care,53667,11/07/2016,7310406864,3068,,
Expenditure - Over 500,2016 04,Worcestershire County Council,Adult Services & Health,AC-PROFIT,Macintyre Care-(prev.King Georges Close),S33610,MACINTYRE,Third Party Payments Purchase of Long Term Care,53667,11/07/2016,7310408453,4382.2,,
Expenditure - Over 500,2016 04,Worcestershire County Council,Adult Services & Health,AC-PROFIT,Macintyre Care-(prev.King Georges Close),S33610,MACINTYRE,Receipts Sales Long Term Residents,67047,11/07/2016,7310408475,4302.2,,
Expenditure - Over 500,2016 04,Worcestershire County Council,Adult Services & Health,AC-PROFIT,Macintyre Care-(prev.King Georges Close),S33610,MACINTYRE,Receipts Sales Long Term Residents,67047,11/07/2016,7310408477,4717.48,,
Expenditure - Over 500,2016 04,Worcestershire County Council,Adult Services & Health,AC-PROFIT,Macintyre Care-(prev.King Georges Close),S33610,MACINTYRE,Receipts Sales Long Term Residents,67047,11/07/2016,7310408527,4617.28,,
Expenditure - Over 500,2016 04,Worcestershire County Council,Adult Services & Health,AC-PROFIT,South Worcester Residential LD,S35551,MACINTYRE,Third Party Payments Purchase of Long Term Care,53667,11/07/2016,7310408551,4598.2,,
Expenditure - Over 500,2016 04,Worcestershire County Council,Adult Services & Health,AC-PROFIT,South Worcester Residential LD,S35551,MACINTYRE,Receipts Sales Long Term Residents,67047,11/07/2016,7310408559,5059.4,,
Expenditure - Over 500,2016 04,Worcestershire County Council,Adult Services & Health,AC-PROFIT,Macintyre Care-(prev.King Georges Close),S33610,MACINTYRE,Third Party Payments Purchase of Long Term Care,53667,11/07/2016,7310408915,3211.88,,
Expenditure - Over 500,2016 04,Worcestershire County Council,Adult Services & Health,AC-PROFIT,Macintyre Care-(prev.King Georges Close),S33610,MACINTYRE,Receipts Sales Long Term Residents,67047,11/07/2016,7310408935,3010.88,,
Expenditure - Over 500,2016 04,Worcestershire County Council,Adult Services & Health,AC-PROFIT,Macintyre Care-(prev.King Georges Close),S33610,MACINTYRE,Third Party Payments Purchase of Long Term Care,53667,11/07/2016,7310409039,3010.88,,
Expenditure - Over 500,2016 04,Worcestershire County Council,Adult Services & Health,AC-PROFIT,South Worcester Residential LD,S35551,MACINTYRE,Third Party Payments Purchase of Long Term Care,53667,11/07/2016,7310409057,3164.92,,
Expenditure - Over 500,2016 04,Worcestershire County Council,Adult Services & Health,AC-PROFIT,North Worcs Residential LD (Wyre Forest),S35511,MACINTYRE,Receipts Sales Long Term Residents,67047,11/07/2016,7310409147,3253.08,,
Expenditure - Over 500,2016 04,Worcestershire County Council,Adult Services & Health,AC-PROFIT,North Supported Living Scheme,S31367,MACINTYRE,Third Party Payments Purchase of Long Term Care,53667,11/07/2016,7360016757,2118.76,,
Expenditure - Over 500,2016 04,Worcestershire County Council,Adult Services & Health,AC-PROFIT,South Supportd Living Scheme,S35501,MACINTYRE,Third Party Payments Purchase of Long Term Care,53667,11/07/2016,7360016768,3397.4,,
Expenditure - Over 500,2016 04,Worcestershire County Council,Adult Services & Health,AC-PROFIT,North Supported Living Scheme,S31367,MACINTYRE,Third Party Payments Purchase of Long Term Care,53667,11/07/2016,7360016801,3846.64,,
Expenditure - Over 500,2016 04,Worcestershire County Council,Adult Services & Health,AC-PROFIT,North Supported Living Scheme,S31367,MACINTYRE,Third Party Payments Purchase of Long Term Care,53667,11/07/2016,7360016802,1624.08,,
Expenditure - Over 500,2016 04,Worcestershire County Council,Adult Services & Health,AC-PROFIT,North Supported Living Scheme,S31367,MACINTYRE,Third Party Payments Purchase of Long Term Care,53667,11/07/2016,7360016805,3016.16,,
Expenditure - Over 500,2016 04,Worcestershire County Council,Adult Services & Health,AC-PROFIT,South Supportd Living Scheme,S35501,MACINTYRE,Third Party Payments Purchase of Long Term Care,53667,11/07/2016,7360016809,2256,,
Expenditure - Over 500,2016 04,Worcestershire County Council,Adult Services & Health,AC-PROFIT,North Supported Living Scheme,S31367,MACINTYRE,Third Party Payments Purchase of Long Term Care,53667,11/07/2016,7360016810,2832.2,,
Expenditure - Over 500,2016 04,Worcestershire County Council,Adult Services & Health,AC-PROFIT,South Supportd Living Scheme,S35501,MACINTYRE,Third Party Payments Purchase of Long Term Care,53667,11/07/2016,7360016811,1924.16,,
Expenditure - Over 500,2016 04,Worcestershire County Council,Adult Services & Health,AC-PROFIT,South Supportd Living Scheme,S35501,MACINTYRE,Third Party Payments Purchase of Long Term Care,53667,11/07/2016,7360016812,1752.24,,
Expenditure - Over 500,2016 04,Worcestershire County Council,Adult Services & Health,AC-PROFIT,South Supportd Living Scheme,S35501,MACINTYRE,Third Party Payments Purchase of Long Term Care,53667,11/07/2016,7360016813,2235.4,,
Expenditure - Over 500,2016 04,Worcestershire County Council,Adult Services & Health,AC-PROFIT,South Supportd Living Scheme,S35501,MACINTYRE,Third Party Payments Purchase of Long Term Care,53667,11/07/2016,7360016815,3216.08,,
Expenditure - Over 500,2016 04,Worcestershire County Council,Adult Services & Health,AC-PROFIT,South Supportd Living Scheme,S35501,MACINTYRE,Third Party Payments Purchase of Long Term Care,53667,11/07/2016,7360016817,1060.64,,
Expenditure - Over 500,2016 04,Worcestershire County Council,Adult Services & Health,AC-PROFIT,South Supportd Living Scheme,S35501,MACINTYRE,Third Party Payments Purchase of Long Term Care,53667,11/07/2016,7360016818,1094.72,,
Expenditure - Over 500,2016 04,Worcestershire County Council,Adult Services & Health,AC-PROFIT,North Supported Living Scheme,S31367,MACINTYRE,Third Party Payments Purchase of Long Term Care,53667,11/07/2016,7360016829,1083.84,,
Expenditure - Over 500,2016 04,Worcestershire County Council,Adult Services & Health,AC-PROFIT,South Supportd Living Scheme,S35501,MACINTYRE,Third Party Payments Purchase of Long Term Care,53667,11/07/2016,7360016845,2112,,
Expenditure - Over 500,2016 04,Worcestershire County Council,Adult Services & Health,AC-PROFIT,South Supportd Living Scheme,S35501,MACINTYRE,Third Party Payments Purchase of Long Term Care,53667,11/07/2016,7360016866,2749.32,,
Expenditure - Over 500,2016 04,Worcestershire County Council,Adult Services & Health,AC-PROFIT,South Supportd Living Scheme,S35501,MACINTYRE,Third Party Payments Purchase of Long Term Care,53667,11/07/2016,7360016873,2508,,
Expenditure - Over 500,2016 04,Worcestershire County Council,Adult Services & Health,AC-PROFIT,South Supportd Living Scheme,S35501,MACINTYRE,Third Party Payments Purchase of Long Term Care,53667,11/07/2016,7360016875,2309.6,,
Expenditure - Over 500,2016 04,Worcestershire County Council,Adult Services & Health,AC-PROFIT,South Supportd Living Scheme,S35501,MACINTYRE,Third Party Payments Purchase of Long Term Care,53667,11/07/2016,7360016876,2345.84,,
Expenditure - Over 500,2016 04,Worcestershire County Council,Adult Services & Health,AC-PROFIT,South Supportd Living Scheme,S35501,MACINTYRE,Third Party Payments Purchase of Long Term Care,53667,11/07/2016,7360016882,1106.72,,
Expenditure - Over 500,2016 04,Worcestershire County Council,Adult Services & Health,AC-PROFIT,North Supported Living Scheme,S31367,MACINTYRE,Third Party Payments Purchase of Long Term Care,53667,11/07/2016,7360016892,3864,,
Expenditure - Over 500,2016 04,Worcestershire County Council,Adult Services & Health,AC-PROFIT,North Supported Living Scheme,S31367,MACINTYRE,Third Party Payments Purchase of Long Term Care,53667,11/07/2016,7360016900,3431.4,,
Expenditure - Over 500,2016 04,Worcestershire County Council,Adult Services & Health,AC-PROFIT,LT Residential - PD,S35441,MACINTYRE,Third Party Payments Purchase of Long Term Care,53667,11/07/2016,7360016906,3600,,
Expenditure - Over 500,2016 04,Worcestershire County Council,Adult Services & Health,AC-PROFIT,North Supported Living Scheme,S31367,MACINTYRE,Third Party Payments Purchase of Long Term Care,53667,11/07/2016,7360016909,2024,,
Expenditure - Over 500,2016 04,Worcestershire County Council,Adult Services & Health,AC-PROFIT,South Supportd Living Scheme,S35501,MACINTYRE,Third Party Payments Purchase of Long Term Care,53667,11/07/2016,7360016911,5890.88,,
Expenditure - Over 500,2016 04,Worcestershire County Council,Adult Services & Health,AC-PROFIT,South Supportd Living Scheme,S35501,MACINTYRE,Third Party Payments Purchase of Long Term Care,53667,11/07/2016,7360016923,2211.08,,
Expenditure - Over 500,2016 04,Worcestershire County Council,Children's Services,CH-PROFIT,Early Years - 2 year old funding,E23050,MADRESFIELD EARLY YEARS,Third Party Pymts 4Yr Old Nursery Education Grant,53657,07/07/2016,7200026243,4728,,
Expenditure - Over 500,2016 04,Worcestershire County Council,Adult Services & Health,AC-PROFIT,North Worcs Residential LD (Wyre Forest),S35511,MAESTEILO CARE HOME,Receipts Sales Long Term Residents,67047,11/07/2016,7310409397,5253.4,,
Expenditure - Over 500,2016 04,Worcestershire County Council,"Business, Environment & Community",EN-PROFIT,"Management, Admin, Prof & Eng",V82800,MALVERN ART PRODUCTS,Misc Other Expenses,51619,18/07/2016,4101574453,630,,
Expenditure - Over 500,2016 04,Worcestershire County Council,"Business, Environment & Community",EN-PROFIT,"Management, Admin, Prof & Eng",V83000,MALVERN HILLS CONSERVATORS,Malvern Hills Conservators,51019,04/07/2016,4101569935,1468.09,,
Expenditure - Over 500,2016 04,Worcestershire County Council,"Business, Environment & Community",EN-PROFIT,"Management, Admin, Prof & Eng",V83000,MALVERN HILLS CONSERVATORS,Expenses Project Activity Work,51674,04/07/2016,4101569937,600,,
Expenditure - Over 500,2016 04,Worcestershire County Council,"Business, Environment & Community",EN-PROFIT,"Management, Admin, Professional & E",V22000,MALVERN HILLS DISTRICT COUNCIL,Rents Payable,43401,05/07/2016,4101568479,1500,,
Expenditure - Over 500,2016 04,Worcestershire County Council,Adult Services & Health,AC-PROFIT,North Worcs Residential LD (Wyre Forest),S35511,MARIANTONIA HOUSE,Third Party Payments Purchase of Long Term Care,53667,11/07/2016,7310407885,1256.48,,
Expenditure - Over 500,2016 04,Worcestershire County Council,Adult Services & Health,AC-PROFIT,North Worcs Residential LD (Wyre Forest),S35511,MARIANTONIA HOUSE,Third Party Payments Purchase of Long Term Care,53667,11/07/2016,7310407913,3180,,
Expenditure - Over 500,2016 04,Worcestershire County Council,Adult Services & Health,AC-PROFIT,Residential - MH,S35641,MARIANTONIA HOUSE,Third Party Payments Purchase of Long Term Care,53667,11/07/2016,7310407917,906,,
Expenditure - Over 500,2016 04,Worcestershire County Council,Adult Services & Health,AC-PROFIT,North Worcs Residential LD (Wyre Forest),S35511,MARIANTONIA HOUSE,Receipts Sales Long Term Residents,67047,11/07/2016,7310407921,1144.6,,
Expenditure - Over 500,2016 04,Worcestershire County Council,Adult Services & Health,AC-PROFIT,North Worcs Residential LD (Wyre Forest),S35511,MARIANTONIA HOUSE,Receipts Sales Long Term Residents,67047,11/07/2016,7310407923,1149,,
Expenditure - Over 500,2016 04,Worcestershire County Council,Adult Services & Health,AC-PROFIT,Residential - MH,S35641,MARIANTONIA HOUSE,Third Party Payments Purchase of Long Term Care,53667,11/07/2016,7310407925,1425.32,,
Expenditure - Over 500,2016 04,Worcestershire County Council,Adult Services & Health,AC-PROFIT,Residential - MH,S35641,MARIANTONIA HOUSE,Receipts Sales Long Term Residents,67047,11/07/2016,7310407927,984.44,,
Expenditure - Over 500,2016 04,Worcestershire County Council,Adult Services & Health,AC-PROFIT,Residential - MH,S35641,MARIANTONIA HOUSE,Third Party Payments Purchase of Long Term Care,53667,11/07/2016,7310407931,1137.88,,
Expenditure - Over 500,2016 04,Worcestershire County Council,Adult Services & Health,AC-PROFIT,Residential - MH,S35641,MARIANTONIA HOUSE,Third Party Payments Purchase of Long Term Care,53667,11/07/2016,7310407997,2259.96,,
Expenditure - Over 500,2016 04,Worcestershire County Council,Adult Services & Health,AC-PROFIT,North Worcs Residential LD (Wyre Forest),S35511,MARIANTONIA HOUSE,Third Party Payments Purchase of Long Term Care,53667,11/07/2016,7310408059,1856,,
Expenditure - Over 500,2016 04,Worcestershire County Council,Adult Services & Health,AC-PROFIT,Residential - MH,S35641,MARIANTONIA HOUSE,Third Party Payments Purchase of Long Term Care,53667,11/07/2016,7310408205,2859.4,,
Expenditure - Over 500,2016 04,Worcestershire County Council,Children's Services,CH-PROFIT,DSG- Independ't Special Schls Fees Pre16,E24001,MARLOWE CHILD & FAMILY SERVICES LTD,Third Party Pymts Vol Assoc Indepen. Spec Sch Fees,53655,19/07/2016,3310036768,3668.58,,
Expenditure - Over 500,2016 04,Worcestershire County Council,Children's Services,CH-PROFIT,Post 16 Students without a Statement,E24032,MARLOWE CHILD & FAMILY SERVICES LTD,Third Party Payments Agency,53959,25/07/2016,7520003324,2000,,
Expenditure - Over 500,2016 04,Worcestershire County Council,Children's Services,CH-PROFIT,External Placements Perm Team 3,E38602,MARLOWE CHILD & FAMILY SERVICES LTD,Third Party Pymts Agency Residential,54058,25/07/2016,7520003325,14400,,
Expenditure - Over 500,2016 04,Worcestershire County Council,Adult Services & Health,AC-PROFIT,South Worcester Nursing LD,S35552,MARTHA TRUST HEREFORD LTD,Third Party Payments Purchase of Long Term Care,53667,11/07/2016,7310409407,6658.48,,
Expenditure - Over 500,2016 04,Worcestershire County Council,Children's Services,CH-PROFIT,Early Years - 2 year old funding,E23050,MAYFIELD HOUSE KINDERGARTEN,Third Party Pymts 4Yr Old Nursery Education Grant,53657,07/07/2016,7200026252,3120,,
Expenditure - Over 500,2016 04,Worcestershire County Council,Children's Services,CH-PROFIT,Early Years - 2 year old funding,E23050,MEADOWS NURSERY,Third Party Pymts 4Yr Old Nursery Education Grant,53657,07/07/2016,7200026320,741,,
Expenditure - Over 500,2016 04,Worcestershire County Council,"Business, Environment & Community",EN-PROFIT,Mercia Waste Mgt - Disp Of Waste,V22001,MERCIA WASTE,Third Party Payments Performance Deductions,53982,12/07/2016,3300651210,506849.24,,
Expenditure - Over 500,2016 04,Worcestershire County Council,"Business, Environment & Community",EN-PROFIT,Mercia Waste Mgt - Disp Of Waste,V22001,MERCIA WASTE,Kidderminster Household Recycling Centre,54063,28/07/2016,3300651372,1846.4,,
Expenditure - Over 500,2016 04,Worcestershire County Council,"Business, Environment & Community",EN-PROFIT,Mercia Waste Mgt - Disp Of Waste,V22001,MERCIA WASTE,Third Party Payments Unavailability Deductions,53981,28/07/2016,3100008814,-2943.32,,
Expenditure - Over 500,2016 04,Worcestershire County Council,"Business, Environment & Community",EN-PROFIT,Mercia Waste Mgt - Disp Of Waste,V22001,MERCIA WASTE,Third Party Payments Disposal Of Waste,53976,28/07/2016,3300651366,2877532.54,,
Expenditure - Over 500,2016 04,Worcestershire County Council,"Business, Environment & Community",EN-PROFIT,Mercia Waste Mgt - Disp Of Waste,V22001,MERCIA WASTE,Third Party Payments Disposal Of Waste,53976,28/07/2016,3300651367,343936.26,,
Expenditure - Over 500,2016 04,Worcestershire County Council,"Business, Environment & Community",EN-PROFIT,Mercia Waste Mgt - Disp Of Waste,V22001,MERCIA WASTE,Third Party Pymnts Energy from Waste,54017,28/07/2016,3300651368,594381.32,,
Expenditure - Over 500,2016 04,Worcestershire County Council,"Business, Environment & Community",EN-PROFIT,Mercia Waste Mgt - Disp Of Waste,V22001,MERCIA WASTE,Third Party Payments Disposal Of Waste,53976,28/07/2016,3300651369,987.71,,
Expenditure - Over 500,2016 04,Worcestershire County Council,"Business, Environment & Community",EN-PROFIT,Mercia Waste Mgt - Disp Of Waste,V22001,MERCIA WASTE,Third Party Payments Land Fill Tax,53975,28/07/2016,3300651370,34557.85,,
Expenditure - Over 500,2016 04,Worcestershire County Council,"Business, Environment & Community",EN-PROFIT,Street Sweeping Recycling - Sita,V22020,MERCIA WASTE,Third Party Payments Disposal Of Waste,53976,28/07/2016,3300651371,3240.4,,
Expenditure - Over 500,2016 04,Worcestershire County Council,Adult Services & Health,AC-PROFIT,LT Nursing - OP,S35342,METHODIST HOMES,Receipts Sales Long Term Residents,67047,11/07/2016,7310406726,1201.7,,
Expenditure - Over 500,2016 04,Worcestershire County Council,Adult Services & Health,AC-PROFIT,Nursing - MH,S35642,METHODIST HOMES,Third Party Payments Purchase of Long Term Care,53667,11/07/2016,7310406780,3008.44,,
Expenditure - Over 500,2016 04,Worcestershire County Council,Adult Services & Health,AC-PROFIT,LT Residential - OP,S35341,METHODIST HOMES,Third Party Payments Purchase of Long Term Care,53667,11/07/2016,7310409255,817.28,,
Expenditure - Over 500,2016 04,Worcestershire County Council,Adult Services & Health,AC-PROFIT,Preserved Rights OP,S35309,METHODIST HOMES,Receipts Sales Long Term Residents,67047,11/07/2016,7310409341,-913.52,,
Expenditure - Over 500,2016 04,Worcestershire County Council,Adult Services & Health,AC-PROFIT,Nursing - MH,S35642,METHODIST HOMES,Third Party Payments Purchase of Long Term Care,53667,11/07/2016,7310409739,3008.44,,
Expenditure - Over 500,2016 04,Worcestershire County Council,Children's Services,CH-PROFIT,Primary Home/School Transport,E10037,MHS TRAVEL LIMITED,PTG - Transport Tendered / Cont. Services,46021,07/07/2016,7190132195,2480,,
Expenditure - Over 500,2016 04,Worcestershire County Council,Children's Services,CH-PROFIT,Primary Home/School Transport,E10037,MHS TRAVEL LIMITED,PTG - Transport Tendered / Cont. Services,46021,07/07/2016,7190132202,2077,,
Expenditure - Over 500,2016 04,Worcestershire County Council,Children's Services,CH-PROFIT,Primary Home/School Transport,E10037,MHS TRAVEL LIMITED,PTG - Transport Tendered / Cont. Services,46021,07/07/2016,7190132216,3473.73,,
Expenditure - Over 500,2016 04,Worcestershire County Council,Resources,PP-PROFIT,Photocopying,X40057,MIDSHIRE BUSINESS SYSTEMS LTD,Equipment Rentals & Leasing,49047,12/07/2016,4101572296,424,,
Expenditure - Over 500,2016 04,Worcestershire County Council,Adult Services & Health,AC-PROFIT,Equipment - Pooled Budgets,S31526,MIELE CO LTD,Cleaning & Domestic Cleaning Materials,45206,04/07/2016,4101569829,1214.06,,
Expenditure - Over 500,2016 04,Worcestershire County Council,Adult Services & Health,AC-PROFIT,LT Residential - PD,S35441,PARAGON,Third Party Payments Purchase of Long Term Care,53667,11/07/2016,7310409387,4797.8,,
Expenditure - Over 500,2016 04,Worcestershire County Council,Adult Services & Health,AC-PROFIT,LT Residential - OP,S35341,MILL HOUSE,Receipts Sales Long Term Residents,67047,11/07/2016,7310408609,793.88,,
Expenditure - Over 500,2016 04,Worcestershire County Council,Adult Services & Health,AC-PROFIT,LT Residential - OP,S35341,MILL HOUSE,Receipts Sales Long Term Residents,67047,11/07/2016,7310408611,1308.8,,
Expenditure - Over 500,2016 04,Worcestershire County Council,Adult Services & Health,AC-PROFIT,LT Residential - OP,S35341,MILL HOUSE,Third Party Payments Purchase of Long Term Care,53667,11/07/2016,7310408679,1728,,
Expenditure - Over 500,2016 04,Worcestershire County Council,Adult Services & Health,AC-PROFIT,LT Residential - OP,S35341,MILL HOUSE,Third Party Payments Purchase of Long Term Care,53667,11/07/2016,7310408681,759.4,,
Expenditure - Over 500,2016 04,Worcestershire County Council,Adult Services & Health,AC-PROFIT,LT Residential - OP,S35341,MILL HOUSE,Third Party Payments Purchase of Long Term Care,53667,11/07/2016,7310408715,2109.28,,
Expenditure - Over 500,2016 04,Worcestershire County Council,Adult Services & Health,AC-PROFIT,LT Residential - OP,S35341,MILL HOUSE,Third Party Payments Purchase of Long Term Care,53667,11/07/2016,7310408731,2052.52,,
Expenditure - Over 500,2016 04,Worcestershire County Council,Adult Services & Health,AC-PROFIT,LT Residential - OP,S35341,MILL HOUSE,Third Party Payments Purchase of Long Term Care,53667,11/07/2016,7310408809,1728,,
Expenditure - Over 500,2016 04,Worcestershire County Council,Adult Services & Health,AC-PROFIT,LT Residential - OP,S35341,MINSTER GRANGE RESIDENTIAL HOME,Receipts Sales Long Term Residents,67047,11/07/2016,7310407427,1806.49,,
Expenditure - Over 500,2016 04,Worcestershire County Council,Adult Services & Health,AC-PROFIT,LT Residential - OP,S35341,MINSTER GRANGE RESIDENTIAL HOME,Third Party Payments Purchase of Long Term Care,53667,11/07/2016,7310407443,752.36,,
Expenditure - Over 500,2016 04,Worcestershire County Council,Adult Services & Health,AC-PROFIT,LT Residential - OP,S35341,MINSTER GRANGE RESIDENTIAL HOME,Third Party Payments Purchase of Long Term Care,53667,11/07/2016,7310407525,1277.72,,
Expenditure - Over 500,2016 04,Worcestershire County Council,Adult Services & Health,AC-PROFIT,LT Residential - OP,S35341,MINSTER GRANGE RESIDENTIAL HOME,Receipts Sales Long Term Residents,67047,11/07/2016,7310407579,1465.2,,
Expenditure - Over 500,2016 04,Worcestershire County Council,Adult Services & Health,AC-PROFIT,Residential - MH,S35641,MINSTER GRANGE RESIDENTIAL HOME,Receipts Sales Long Term Residents,67047,11/07/2016,7310407599,-1260.36,,
Expenditure - Over 500,2016 04,Worcestershire County Council,Adult Services & Health,AC-PROFIT,LT Residential - OP,S35341,MINSTER GRANGE RESIDENTIAL HOME,Third Party Payments Purchase of Long Term Care,53667,11/07/2016,7310407679,1309.68,,
Expenditure - Over 500,2016 04,Worcestershire County Council,Adult Services & Health,AC-PROFIT,LT Residential - OP,S35341,MINSTER GRANGE RESIDENTIAL HOME,Third Party Payments Purchase of Long Term Care,53667,11/07/2016,7310407697,1728,,
Expenditure - Over 500,2016 04,Worcestershire County Council,Adult Services & Health,AC-PROFIT,LT Residential - OP,S35341,MINSTER GRANGE RESIDENTIAL HOME,Receipts Sales Long Term Residents,67047,11/07/2016,7310407713,1206.2,,
Expenditure - Over 500,2016 04,Worcestershire County Council,Adult Services & Health,AC-PROFIT,COP Property Temporary Code,S35397,MINSTER GRANGE RESIDENTIAL HOME,Third Party Payments Purchase of Long Term Care,53667,11/07/2016,7310407795,1860,,
Expenditure - Over 500,2016 04,Worcestershire County Council,Adult Services & Health,AC-PROFIT,LT Residential - OP,S35341,MINSTER GRANGE RESIDENTIAL HOME,Third Party Payments Purchase of Long Term Care,53667,11/07/2016,7310407827,1554.8,,
Expenditure - Over 500,2016 04,Worcestershire County Council,Adult Services & Health,AC-PROFIT,Step Down Beds,S35724,MINSTER GRANGE RESIDENTIAL HOME,TPP Purchase of Planned Replacement Care,53666,11/07/2016,7310407845,2724,,
Expenditure - Over 500,2016 04,Worcestershire County Council,Adult Services & Health,AC-PROFIT,12-Week Disregard,S35308,MINSTER GRANGE RESIDENTIAL HOME,Receipts Sales Long Term Residents,67047,11/07/2016,7310407861,4952.33,,
Expenditure - Over 500,2016 04,Worcestershire County Council,Adult Services & Health,AC-PROFIT,COP Property Temporary Code,S35397,MINSTER GRANGE RESIDENTIAL HOME,Third Party Payments Purchase of Long Term Care,53667,11/07/2016,7310407877,16585.71,,
Expenditure - Over 500,2016 04,Worcestershire County Council,Adult Services & Health,AC-PROFIT,LT Residential - OP,S35341,MOUNDSLEY HALL NURSING HOME,Third Party Payments Purchase of Long Term Care,53667,11/07/2016,7310406858,1896.36,,
Expenditure - Over 500,2016 04,Worcestershire County Council,Adult Services & Health,AC-PROFIT,LT Nursing - OP,S35342,MOUNDSLEY HALL NURSING HOME,Third Party Payments Purchase of Long Term Care,53667,11/07/2016,7310407156,2418.72,,
Expenditure - Over 500,2016 04,Worcestershire County Council,Adult Services & Health,AC-PROFIT,LT Nursing - OP,S35342,MOUNDSLEY HALL NURSING HOME,Third Party Payments Purchase of Long Term Care,53667,11/07/2016,7310407164,1918.76,,
Expenditure - Over 500,2016 04,Worcestershire County Council,Adult Services & Health,AC-PROFIT,LT Nursing - OP,S35342,MOUNDSLEY HALL NURSING HOME,Receipts Sales Long Term Residents,67047,11/07/2016,7310407210,-6574.17,,
Expenditure - Over 500,2016 04,Worcestershire County Council,Adult Services & Health,AC-PROFIT,LT Nursing - OP,S35342,MOUNDSLEY HALL NURSING HOME,Third Party Payments Purchase of Long Term Care,53667,11/07/2016,7310407258,1637.84,,
Expenditure - Over 500,2016 04,Worcestershire County Council,Adult Services & Health,AC-PROFIT,LT Residential - OP,S35341,MOUNDSLEY HALL NURSING HOME,Third Party Payments Purchase of Long Term Care,53667,11/07/2016,7310407266,619.68,,
Expenditure - Over 500,2016 04,Worcestershire County Council,Adult Services & Health,AC-PROFIT,LT Nursing - OP,S35342,MOUNDSLEY HALL NURSING HOME,Third Party Payments Purchase of Long Term Care,53667,11/07/2016,7310407278,2789.2,,
Expenditure - Over 500,2016 04,Worcestershire County Council,Adult Services & Health,AC-PROFIT,LT Residential - OP,S35341,MOUNDSLEY HALL NURSING HOME,Third Party Payments Purchase of Long Term Care,53667,11/07/2016,7310407322,989.2,,
Expenditure - Over 500,2016 04,Worcestershire County Council,Children's Services,CH-PROFIT,Secondary Home/School Transport,E10707,N N CRESSWELL COACH HIRE LTD,PTG - Public Transport Bus,47514,07/07/2016,7190131940,2571.43,,
Expenditure - Over 500,2016 04,Worcestershire County Council,Children's Services,CH-PROFIT,Secondary Home/School Transport,E10707,N N CRESSWELL COACH HIRE LTD,PTG - Transport Tendered / Cont. Services,46021,07/07/2016,7190132168,3121.61,,
Expenditure - Over 500,2016 04,Worcestershire County Council,Children's Services,CH-PROFIT,Secondary Home/School Transport,E10707,N N CRESSWELL COACH HIRE LTD,PTG - Transport Tendered / Cont. Services,46021,07/07/2016,7190132169,3121.62,,
Expenditure - Over 500,2016 04,Worcestershire County Council,Children's Services,CH-PROFIT,Primary Home/School Transport,E10037,N N CRESSWELL COACH HIRE LTD,PTG - Transport Tendered / Cont. Services,46021,07/07/2016,7190132179,2966.07,,
Expenditure - Over 500,2016 04,Worcestershire County Council,Children's Services,CH-PROFIT,Primary Home/School Transport,E10037,N N CRESSWELL COACH HIRE LTD,PTG - Transport Tendered / Cont. Services,46021,07/07/2016,7190132180,3451.09,,
Expenditure - Over 500,2016 04,Worcestershire County Council,Children's Services,CH-PROFIT,Secondary Home/School Transport,E10707,N N CRESSWELL COACH HIRE LTD,PTG - Transport Tendered / Cont. Services,46021,07/07/2016,7190132188,2984.72,,
Expenditure - Over 500,2016 04,Worcestershire County Council,Children's Services,CH-PROFIT,Trans't to Non WCC Secondary Schools,E10028,N N CRESSWELL COACH HIRE LTD,PTG - Transport Tendered / Cont. Services,46021,07/07/2016,7190132189,2984.73,,
Expenditure - Over 500,2016 04,Worcestershire County Council,Children's Services,CH-PROFIT,Trans't to Non WCC Secondary Schools,E10028,N N CRESSWELL COACH HIRE LTD,PTG - Transport Tendered / Cont. Services,46021,07/07/2016,7190132190,3182.5,,
Expenditure - Over 500,2016 04,Worcestershire County Council,Children's Services,CH-PROFIT,Primary Home/School Transport,E10037,N N CRESSWELL COACH HIRE LTD,PTG - Transport Tendered / Cont. Services,46021,07/07/2016,7190132191,1588.4,,
Expenditure - Over 500,2016 04,Worcestershire County Council,Children's Services,CH-PROFIT,Primary Home/School Transport,E10037,N N CRESSWELL COACH HIRE LTD,PTG - Transport Tendered / Cont. Services,46021,07/07/2016,7190132192,1588.4,,
Expenditure - Over 500,2016 04,Worcestershire County Council,Children's Services,CH-PROFIT,Trans't to Non WCC Secondary Schools,E10028,N N CRESSWELL COACH HIRE LTD,PTG - Transport Tendered / Cont. Services,46021,07/07/2016,7190132203,2854.15,,
Expenditure - Over 500,2016 04,Worcestershire County Council,Children's Services,CH-PROFIT,Trans't to Non WCC Secondary Schools,E10028,N N CRESSWELL COACH HIRE LTD,PTG - Transport Tendered / Cont. Services,46021,07/07/2016,7190132204,4076.95,,
Expenditure - Over 500,2016 04,Worcestershire County Council,Children's Services,CH-PROFIT,Secondary Home/School Transport,E10707,N N CRESSWELL COACH HIRE LTD,PTG - Transport Tendered / Cont. Services,46021,07/07/2016,7190132206,2135.95,,
Expenditure - Over 500,2016 04,Worcestershire County Council,Children's Services,CH-PROFIT,Secondary Home/School Transport,E10707,N N CRESSWELL COACH HIRE LTD,PTG - Transport Tendered / Cont. Services,46021,07/07/2016,7190132207,2135.94,,
Expenditure - Over 500,2016 04,Worcestershire County Council,"Business, Environment & Community",EN-DIR,Concessionary Fares Administration,V21015,N N CRESSWELL COACH HIRE LTD,Third Party Pymnts Public Transport Operators,54005,12/07/2016,7190132457,10636.38,,
Expenditure - Over 500,2016 04,Worcestershire County Council,Adult Services & Health,AC-PROFIT,North Worcs Residential LD (Wyre Forest),S35511,NAS Services Ltd,Third Party Payments Purchase of Long Term Care,53667,11/07/2016,7310409441,6406.2,,
Expenditure - Over 500,2016 04,Worcestershire County Council,Improvement & Efficiency WM,CE-DIR,Workforce Development,X50634,NATIONAL CHILDREN'S BUREAU,Consultants Fees,50030,21/07/2016,4101574890,550,,
Expenditure - Over 500,2016 04,Worcestershire County Council,Children's Services,CH-PROFIT,Early Help Worcester City,E21505,ACTION FOR CHILDREN,Third Party Payments New Arrangements,53663,07/07/2016,4101571135,122611.75,,
Expenditure - Over 500,2016 04,Worcestershire County Council,Children's Services,CH-PROFIT,Early Help Malvern Hill District,E21508,ACTION FOR CHILDREN,Third Party Payments New Arrangements,53663,11/07/2016,4101572083,115936.16,,
Expenditure - Over 500,2016 04,Worcestershire County Council,Children's Services,CH-PROFIT,Low Level Mental Health,E36015,ACTION FOR CHILDREN,Third Party Payments New Arrangements,53663,12/07/2016,4101573218,7000,,
Expenditure - Over 500,2016 04,Worcestershire County Council,Children's Services,CH-PROFIT,Low Level Mental Health,E36015,ACTION FOR CHILDREN,Third Party Payments New Arrangements,53663,12/07/2016,4101573219,3500,,
Expenditure - Over 500,2016 04,Worcestershire County Council,Adult Services & Health,AC-PROFIT,Dimensions Homes (Phase 1 & 2 Homes),S33626,DIMENSIONS (UK) LTD,Third Party Payments Purchase of Long Term Care,53667,11/07/2016,7310408895,5074.28,,
Expenditure - Over 500,2016 04,Worcestershire County Council,Adult Services & Health,AC-PROFIT,South Worcester Residential LD,S35551,DIMENSIONS (UK) LTD,Receipts Sales Long Term Residents,67047,11/07/2016,7310408897,-9502.01,,
Expenditure - Over 500,2016 04,Worcestershire County Council,Adult Services & Health,AC-PROFIT,South Worcester Residential LD,S35551,DIMENSIONS (UK) LTD,Receipts Sales Long Term Residents,67047,11/07/2016,7310408899,-9502.01,,
Expenditure - Over 500,2016 04,Worcestershire County Council,Adult Services & Health,AC-PROFIT,Dimensions Homes (Phase 1 & 2 Homes),S33626,DIMENSIONS (UK) LTD,Third Party Payments Purchase of Long Term Care,53667,11/07/2016,7310408917,-6886.61,,
Expenditure - Over 500,2016 04,Worcestershire County Council,Adult Services & Health,AC-PROFIT,Dimensions Homes (Phase 1 & 2 Homes),S33626,DIMENSIONS (UK) LTD,Third Party Payments Purchase of Long Term Care,53667,11/07/2016,7310408939,-7485.06,,
Expenditure - Over 500,2016 04,Worcestershire County Council,Adult Services & Health,AC-PROFIT,South Worcester Residential LD,S35551,DIMENSIONS (UK) LTD,Third Party Payments Purchase of Long Term Care,53667,11/07/2016,7310408947,-9502.01,,
Expenditure - Over 500,2016 04,Worcestershire County Council,Adult Services & Health,AC-PROFIT,Dimensions Homes (Phase 1 & 2 Homes),S33626,DIMENSIONS (UK) LTD,Receipts Sales Long Term Residents,67047,11/07/2016,7310408949,6218.12,,
Expenditure - Over 500,2016 04,Worcestershire County Council,Adult Services & Health,AC-PROFIT,Dimensions Homes (Phase 1 & 2 Homes),S33626,DIMENSIONS (UK) LTD,Receipts Sales Long Term Residents,67047,11/07/2016,7310408951,-6790.19,,
Expenditure - Over 500,2016 04,Worcestershire County Council,Adult Services & Health,AC-PROFIT,Dimensions Homes (Phase 1 & 2 Homes),S33626,DIMENSIONS (UK) LTD,Third Party Payments Purchase of Long Term Care,53667,11/07/2016,7310408953,-6790.19,,
Expenditure - Over 500,2016 04,Worcestershire County Council,Adult Services & Health,AC-PROFIT,Dimensions Homes (Phase 1 & 2 Homes),S33626,DIMENSIONS (UK) LTD,Receipts Sales Long Term Residents,67047,11/07/2016,7310408959,-6477.56,,
Expenditure - Over 500,2016 04,Worcestershire County Council,Adult Services & Health,AC-PROFIT,Dimensions Homes (Phase 1 & 2 Homes),S33626,DIMENSIONS (UK) LTD,Receipts Sales Long Term Residents,67047,11/07/2016,7310408961,-7023.91,,
Expenditure - Over 500,2016 04,Worcestershire County Council,Adult Services & Health,AC-PROFIT,Dimensions Homes (Phase 1 & 2 Homes),S33626,DIMENSIONS (UK) LTD,Receipts Sales Long Term Residents,67047,11/07/2016,7310408963,4030.48,,
Expenditure - Over 500,2016 04,Worcestershire County Council,Adult Services & Health,AC-PROFIT,Dimensions Homes (Phase 1 & 2 Homes),S33626,DIMENSIONS (UK) LTD,Third Party Payments Purchase of Long Term Care,53667,11/07/2016,7310408967,-7528.95,,
Expenditure - Over 500,2016 04,Worcestershire County Council,Adult Services & Health,AC-PROFIT,Dimensions Homes (Phase 1 & 2 Homes),S33626,DIMENSIONS (UK) LTD,Third Party Payments Purchase of Long Term Care,53667,11/07/2016,7310408969,-7201.28,,
Expenditure - Over 500,2016 04,Worcestershire County Council,Adult Services & Health,AC-PROFIT,Dimensions Homes (Phase 1 & 2 Homes),S33626,DIMENSIONS (UK) LTD,Receipts Sales Long Term Residents,67047,11/07/2016,7310408983,-7651.35,,
Expenditure - Over 500,2016 04,Worcestershire County Council,Adult Services & Health,AC-PROFIT,Dimensions Homes (Phase 1 & 2 Homes),S33626,DIMENSIONS (UK) LTD,Receipts Sales Long Term Residents,67047,11/07/2016,7310408985,6218.12,,
Expenditure - Over 500,2016 04,Worcestershire County Council,Adult Services & Health,AC-PROFIT,Dimensions Homes (Phase 1 & 2 Homes),S33626,DIMENSIONS (UK) LTD,Third Party Payments Purchase of Long Term Care,53667,11/07/2016,7310408987,-11104.25,,
Expenditure - Over 500,2016 04,Worcestershire County Council,Adult Services & Health,AC-PROFIT,Dimensions Homes (Phase 1 & 2 Homes),S33626,DIMENSIONS (UK) LTD,Third Party Payments Purchase of Long Term Care,53667,11/07/2016,7310408989,-7905.79,,
Expenditure - Over 500,2016 04,Worcestershire County Council,Adult Services & Health,AC-PROFIT,Dimensions Homes (Phase 1 & 2 Homes),S33626,DIMENSIONS (UK) LTD,Receipts Sales Long Term Residents,67047,11/07/2016,7310408995,-7155.5,,
Expenditure - Over 500,2016 04,Worcestershire County Council,Adult Services & Health,AC-PROFIT,Dimensions Homes (Phase 1 & 2 Homes),S33626,DIMENSIONS (UK) LTD,Third Party Payments Purchase of Long Term Care,53667,11/07/2016,7310408997,6218.12,,
Expenditure - Over 500,2016 04,Worcestershire County Council,Adult Services & Health,AC-PROFIT,Dimensions Homes (Phase 1 & 2 Homes),S33626,DIMENSIONS (UK) LTD,Third Party Payments Purchase of Long Term Care,53667,11/07/2016,7310408999,6218.12,,
Expenditure - Over 500,2016 04,Worcestershire County Council,Adult Services & Health,AC-PROFIT,Dimensions Homes (Phase 1 & 2 Homes),S33626,DIMENSIONS (UK) LTD,Receipts Sales Long Term Residents,67047,11/07/2016,7310409023,-7155.5,,
Expenditure - Over 500,2016 04,Worcestershire County Council,Adult Services & Health,AC-PROFIT,Dimensions Homes (Phase 1 & 2 Homes),S33626,DIMENSIONS (UK) LTD,Receipts Sales Long Term Residents,67047,11/07/2016,7310409027,-8187.96,,
Expenditure - Over 500,2016 04,Worcestershire County Council,Adult Services & Health,AC-PROFIT,Dimensions Homes (Phase 1 & 2 Homes),S33626,DIMENSIONS (UK) LTD,Receipts Sales Long Term Residents,67047,11/07/2016,7310409029,4291.88,,
Expenditure - Over 500,2016 04,Worcestershire County Council,Adult Services & Health,AC-PROFIT,Dimensions Homes (Phase 1 & 2 Homes),S33626,DIMENSIONS (UK) LTD,Third Party Payments Purchase of Long Term Care,53667,11/07/2016,7310409031,4090.88,,
Expenditure - Over 500,2016 04,Worcestershire County Council,Adult Services & Health,AC-PROFIT,Dimensions Homes (Phase 1 & 2 Homes),S33626,DIMENSIONS (UK) LTD,Receipts Sales Long Term Residents,67047,11/07/2016,7310409033,3931.64,,
Expenditure - Over 500,2016 04,Worcestershire County Council,Adult Services & Health,AC-PROFIT,Dimensions Homes (Phase 1 & 2 Homes),S33626,DIMENSIONS (UK) LTD,Receipts Sales Long Term Residents,67047,11/07/2016,7310409037,3730.64,,
Expenditure - Over 500,2016 04,Worcestershire County Council,Adult Services & Health,AC-PROFIT,Dimensions Homes (Phase 1 & 2 Homes),S33626,DIMENSIONS (UK) LTD,Third Party Payments Purchase of Long Term Care,53667,11/07/2016,7310409049,-7388.62,,
Expenditure - Over 500,2016 04,Worcestershire County Council,Adult Services & Health,AC-PROFIT,Dimensions Homes (Phase 1 & 2 Homes),S33626,DIMENSIONS (UK) LTD,Receipts Sales Long Term Residents,67047,11/07/2016,7310409051,-7155.5,,
Expenditure - Over 500,2016 04,Worcestershire County Council,Adult Services & Health,AC-PROFIT,Dimensions Homes (Phase 1 & 2 Homes),S33626,DIMENSIONS (UK) LTD,Third Party Payments Purchase of Long Term Care,53667,11/07/2016,7310409087,7643.08,,
Expenditure - Over 500,2016 04,Worcestershire County Council,Adult Services & Health,AC-PROFIT,Dimensions Homes (Phase 1 & 2 Homes),S33626,DIMENSIONS (UK) LTD,Third Party Payments Purchase of Long Term Care,53667,11/07/2016,7310409091,-6790.19,,
Expenditure - Over 500,2016 04,Worcestershire County Council,Adult Services & Health,AC-PROFIT,Dimensions Homes (Phase 1 & 2 Homes),S33626,DIMENSIONS (UK) LTD,Third Party Payments Purchase of Long Term Care,53667,11/07/2016,7310409093,-8187.96,,
Expenditure - Over 500,2016 04,Worcestershire County Council,Adult Services & Health,AC-PROFIT,Dimensions Homes (Phase 1 & 2 Homes),S33626,DIMENSIONS (UK) LTD,Third Party Payments Purchase of Long Term Care,53667,11/07/2016,7310409099,-8061.3,,
Expenditure - Over 500,2016 04,Worcestershire County Council,Adult Services & Health,AC-PROFIT,Dimensions Homes (Phase 1 & 2 Homes),S33626,DIMENSIONS (UK) LTD,Receipts Sales Long Term Residents,67047,11/07/2016,7310409127,-7528.95,,
Expenditure - Over 500,2016 04,Worcestershire County Council,Adult Services & Health,AC-PROFIT,Dimensions Homes (Phase 1 & 2 Homes),S33626,DIMENSIONS (UK) LTD,Receipts Sales Long Term Residents,67047,11/07/2016,7310409141,-7346.96,,
Expenditure - Over 500,2016 04,Worcestershire County Council,Adult Services & Health,AC-PROFIT,North Worcs Residential LD (Wyre Forest),S35511,DIMENSIONS (UK) LTD,Receipts Sales Long Term Residents,67047,11/07/2016,7310409175,-7974.4,,
Expenditure - Over 500,2016 04,Worcestershire County Council,Adult Services & Health,AC-PROFIT,Dimensions Homes (Phase 1 & 2 Homes),S33626,DIMENSIONS (UK) LTD,Third Party Payments Purchase of Long Term Care,53667,11/07/2016,7310409177,-8191.8,,
Expenditure - Over 500,2016 04,Worcestershire County Council,Adult Services & Health,AC-PROFIT,South Worcester Residential LD,S35551,DIMENSIONS (UK) LTD,Third Party Payments Purchase of Long Term Care,53667,11/07/2016,7310409201,4224.52,,
Expenditure - Over 500,2016 04,Worcestershire County Council,Adult Services & Health,AC-PROFIT,Dimensions Homes (Phase 1 & 2 Homes),S33626,DIMENSIONS (UK) LTD,Receipts Sales Long Term Residents,67047,11/07/2016,7310409239,-7847.74,,
Expenditure - Over 500,2016 04,Worcestershire County Council,Adult Services & Health,AC-PROFIT,Dimensions Homes (Phase 1 & 2 Homes),S33626,DIMENSIONS (UK) LTD,Third Party Payments Purchase of Long Term Care,53667,11/07/2016,7310409249,-6663.53,,
Expenditure - Over 500,2016 04,Worcestershire County Council,Adult Services & Health,AC-PROFIT,Dimensions Homes (Phase 1 & 2 Homes),S33626,DIMENSIONS (UK) LTD,Third Party Payments Purchase of Long Term Care,53667,11/07/2016,7310409313,-7441.41,,
Expenditure - Over 500,2016 04,Worcestershire County Council,Adult Services & Health,AC-PROFIT,North Supported Living Scheme,S31367,DIMENSIONS (UK) LTD,Third Party Payments Purchase of Long Term Care,53667,11/07/2016,7310409329,900.8,,
Expenditure - Over 500,2016 04,Worcestershire County Council,Adult Services & Health,AC-PROFIT,North Supported Living Scheme,S31367,DIMENSIONS (UK) LTD,Third Party Payments Purchase of Long Term Care,53667,11/07/2016,7310409333,900.8,,
Expenditure - Over 500,2016 04,Worcestershire County Council,Adult Services & Health,AC-PROFIT,North Supported Living Scheme,S31367,DIMENSIONS (UK) LTD,Third Party Payments Purchase of Long Term Care,53667,11/07/2016,7310409339,900.8,,
Expenditure - Over 500,2016 04,Worcestershire County Council,Adult Services & Health,AC-PROFIT,North Supported Living Scheme,S31367,DIMENSIONS (UK) LTD,Third Party Payments Purchase of Long Term Care,53667,11/07/2016,7310409343,900.8,,
Expenditure - Over 500,2016 04,Worcestershire County Council,Adult Services & Health,AC-PROFIT,North Supported Living Scheme,S31367,DIMENSIONS (UK) LTD,Third Party Payments Purchase of Long Term Care,53667,11/07/2016,7310409369,997.32,,
Expenditure - Over 500,2016 04,Worcestershire County Council,Adult Services & Health,AC-PROFIT,Dimensions Homes (Phase 1 & 2 Homes),S33626,DIMENSIONS (UK) LTD,Third Party Payments Purchase of Long Term Care,53667,11/07/2016,7310409481,679.36,,
Expenditure - Over 500,2016 04,Worcestershire County Council,Adult Services & Health,AC-PROFIT,Dimensions Homes (Phase 1 & 2 Homes),S33626,DIMENSIONS (UK) LTD,Third Party Payments Purchase of Long Term Care,53667,11/07/2016,7310409519,-9046.66,,
Expenditure - Over 500,2016 04,Worcestershire County Council,Adult Services & Health,AC-PROFIT,Dimensions Homes (Phase 1 & 2 Homes),S33626,DIMENSIONS (UK) LTD,Third Party Payments Purchase of Long Term Care,53667,11/07/2016,7310409547,3868.52,,
Expenditure - Over 500,2016 04,Worcestershire County Council,Adult Services & Health,AC-PROFIT,Dimensions Homes (Phase 1 & 2 Homes),S33626,DIMENSIONS (UK) LTD,Third Party Payments Purchase of Long Term Care,53667,11/07/2016,7310409571,3868.52,,
Expenditure - Over 500,2016 04,Worcestershire County Council,Adult Services & Health,AC-PROFIT,Dimensions Homes (Phase 1 & 2 Homes),S33626,DIMENSIONS (UK) LTD,Receipts Sales Long Term Residents,67047,11/07/2016,7310409617,5982.2,,
Expenditure - Over 500,2016 04,Worcestershire County Council,Adult Services & Health,AC-PROFIT,Dimensions Homes (Phase 1 & 2 Homes),S33626,DIMENSIONS (UK) LTD,Third Party Payments Purchase of Long Term Care,53667,11/07/2016,7310409649,4267.6,,
Expenditure - Over 500,2016 04,Worcestershire County Council,Adult Services & Health,AC-PROFIT,Dimensions Homes (Phase 1 & 2 Homes),S33626,DIMENSIONS (UK) LTD,Third Party Payments Purchase of Long Term Care,53667,11/07/2016,7310409801,3093.6,,
Expenditure - Over 500,2016 04,Worcestershire County Council,Adult Services & Health,AC-PROFIT,North Worcs Residential LD (Wyre Forest),S35511,NEW OUTLOOK HOUSING ASSOCIATION LTD,Third Party Payments Purchase of Long Term Care,53667,11/07/2016,7310409497,3581.72,,
Expenditure - Over 500,2016 04,Worcestershire County Council,Adult Services & Health,AC-PROFIT,North Worcs Residential LD (Wyre Forest),S35511,NEW OUTLOOK HOUSING ASSOCIATION LTD,Receipts Sales Long Term Residents,67047,11/07/2016,7310409499,3589,,
Expenditure - Over 500,2016 04,Worcestershire County Council,Adult Services & Health,AC-PROFIT,South Worcester Residential LD,S35551,NEWLAND HURST LTD,Receipts Sales Long Term Residents,67047,11/07/2016,7310408403,1512.56,,
Expenditure - Over 500,2016 04,Worcestershire County Council,Adult Services & Health,AC-PROFIT,South Worcester Residential LD,S35551,NEWLAND HURST LTD,Receipts Sales Long Term Residents,67047,11/07/2016,7310408445,1802,,
Expenditure - Over 500,2016 04,Worcestershire County Council,Adult Services & Health,AC-PROFIT,South Worcester Residential LD,S35551,NEWLAND HURST LTD,Receipts Sales Long Term Residents,67047,11/07/2016,7310408447,1519.44,,
Expenditure - Over 500,2016 04,Worcestershire County Council,Adult Services & Health,AC-PROFIT,South Worcester Residential LD,S35551,NEWLAND HURST LTD,Receipts Sales Long Term Residents,67047,11/07/2016,7310408449,1519.44,,
Expenditure - Over 500,2016 04,Worcestershire County Council,Adult Services & Health,AC-PROFIT,North Worcs Residential LD (Wyre Forest),S35511,NEWLAND HURST LTD,Third Party Payments Purchase of Long Term Care,53667,11/07/2016,7310408473,1841.24,,
Expenditure - Over 500,2016 04,Worcestershire County Council,Adult Services & Health,AC-PROFIT,North Worcs Residential LD (Wyre Forest),S35511,NEWLAND HURST LTD,Third Party Payments Purchase of Long Term Care,53667,11/07/2016,7310408501,2253.8,,
